Body Name,Portfolio,Organisation Code,Org Code Description,Object Code,Object Code Description,GL Date,Invoice No,Value,Supplier,Category,Category Description,Supplier No
SHEFFIELD CITY COUNCIL        ,PLACE                         ,97551,COUNCIL HSG ACQUISITIONS PROG ,1194,OTHER FEES                    ,01/07/2015,ERS INVOICE121917        ,"58,500.00",FOYS SOLICITORS                         ,,SOLICITORS                    ,
SHEFFIELD CITY COUNCIL        ,CYPF                          ,33112,LDD PLACEMENTS AUG14-JUL15    ,9120,OTHER AGENCIES                ,01/07/2015,ERS INVOICE121919        ,528.00,REDACTED PERSONAL DATA,,EDUCATIONAL SERVICES          ,
SHEFFIELD CITY COUNCIL        ,COMMUNITIES                   ,49030,PRIVATE RENTED SOLUTIONS      ,9120,OTHER AGENCIES                ,01/07/2015,ERS INVOICE121963        ,350.86,MARK PARKER                             ,,LETTING AGENTS                ,
SHEFFIELD CITY COUNCIL        ,PLACE                         ,21023,INCLUSIVE SPORT PROJECT       ,8250,MARKETING EXPENSES            ,01/07/2015,HW067304                 ,400.00,MACRO MEDIA LTD                         ,,NEWSPAPER & MAGAZINE PUBLISHER,
SHEFFIELD CITY COUNCIL        ,CYPF                          ,39260,SERVICE MANAGEMENT            ,7140,PUBLIC TRANSPORT COSTS        ,01/07/2015,01/5520937               ,337.00,CLARITY TRAVEL MANAGEMENT               ,,TRAVEL AGENTS & HOLIDAY COMPAN,
SHEFFIELD CITY COUNCIL        ,COMMUNITIES                   ,47009,MINOR WORKS & ADAPTATIONS     ,6030,REPAIRS AND MTCE - RESPONSIVE ,01/07/2015,601,443.00,MR H S CUTTS NEIL CONSTRUCTION          ,,BUILDING SERVICES             ,
SHEFFIELD CITY COUNCIL        ,COMMUNITIES                   ,47009,MINOR WORKS & ADAPTATIONS     ,6020,REPAIRS AND MTCE - PROGRAMMED ,01/07/2015,604,364.00,MR H S CUTTS NEIL CONSTRUCTION          ,,BUILDING SERVICES             ,
SHEFFIELD CITY COUNCIL        ,COMMUNITIES                   ,47009,MINOR WORKS & ADAPTATIONS     ,6020,REPAIRS AND MTCE - PROGRAMMED ,01/07/2015,603,330.00,MR H S CUTTS NEIL CONSTRUCTION          ,,BUILDING SERVICES             ,
SHEFFIELD CITY COUNCIL        ,CYPF                          ,36026,SCHOOL MEALS                  ,8440,FEE EXPENSES                  ,01/07/2015,SI-TSS-10002188          ,"7,044.58",TAYLOR SHAW LIMITED T/A TAYLOR SHAW     ,,CATERERS                      ,
SHEFFIELD CITY COUNCIL        ,CYPF                          ,36026,SCHOOL MEALS                  ,8440,FEE EXPENSES                  ,01/07/2015,SI-TSS-10002314          ,"7,044.58",TAYLOR SHAW LIMITED T/A TAYLOR SHAW     ,,CATERERS                      ,
SHEFFIELD CITY COUNCIL        ,CYPF                          ,35001,PORTFOLIO LEADERSHIP TEAM     ,8350,MISCELLANEOUS EXPENSES        ,01/07/2015,14110227,464.23,KIER FACILITIES SERVICES LTD            ,,FACILITIES MANAGEMENT         ,
SHEFFIELD CITY COUNCIL        ,COMMUNITIES                   ,49356,ESTATE & ENVIORMENTAL SERVICES,6090,TIPPING COSTS                 ,01/07/2015,FOR7676                  ,313.50,FORWARD ENVIRONMENTAL LIMITED           ,,PEST & VERMIN CONTROL         ,
SHEFFIELD CITY COUNCIL        ,PLACE                         ,97127,OBSOLETE HEATING              ,1157,DWELLINGS MAIN CONTRACT       ,01/07/2015,1091,494.00,VIEWPOINT RESEARCH COMMUNITY INTEREST CO,,MARKET RESEARCH               ,
SHEFFIELD CITY COUNCIL        ,PLACE                         ,21350,CEMETERIES                    ,8010,EQUIPMENT PURCHASE AND REPAIR ,01/07/2015,924882333,318.40,ARCO LTD                                ,,SAFETY EQUIPMENT & CLOTHING   ,
SHEFFIELD CITY COUNCIL        ,CYPF                          ,36026,SCHOOL MEALS                  ,8130,CATERING SUPPLIES             ,01/07/2015,MH/W15/1633A             ,"6,851.98",ACADEMY SERVICES (SHEFFIELD) LTD        ,,LEASING SERVICES              ,
SHEFFIELD CITY COUNCIL        ,CYPF                          ,36026,SCHOOL MEALS                  ,8150,CONTRACT CATERING             ,01/07/2015,MH/W15/1633A             ,774.07,ACADEMY SERVICES (SHEFFIELD) LTD        ,,LEASING SERVICES              ,
SHEFFIELD CITY COUNCIL        ,CYPF                          ,36026,SCHOOL MEALS                  ,8150,CONTRACT CATERING - INVOICE   ,01/07/2015,MH/W15/1633A             ,"27,582.57",ACADEMY SERVICES (SHEFFIELD) LTD        ,,LEASING SERVICES              ,
SHEFFIELD CITY COUNCIL        ,COMMUNITIES                   ,49003,GATEWAY EXTENSION PROJECT     ,8050,FURNITURE PURCHASES           ,01/07/2015,5587004,312.15,STEARN ELECTRIC CO. LTD                 ,,ELECTRICAL GOODS - SALES      ,
SHEFFIELD CITY COUNCIL        ,CYPF                          ,36026,SCHOOL MEALS                  ,8150,CONTRACT CATERING             ,01/07/2015,SI-TSS-10002049          ,"11,279.74",TAYLOR SHAW LIMITED T/A TAYLOR SHAW     ,,CATERERS                      ,
SHEFFIELD CITY COUNCIL        ,COMMUNITIES                   ,49682,NON CONTRACT TREATMENT COSTS  ,8060,MATERIALS AND SUPPLIES GENERAL,01/07/2015,83214,"3,037.61",EXCHANGE SUPPLIES LTD                   ,,PUBLISHERS                    ,
SHEFFIELD CITY COUNCIL        ,POLICY PERFORMANCE AND COMMS  ,18003,COMMUNICATIONS                ,8550,OTHER SERVICES                ,01/07/2015,75414,435.00,THE PRINT AND DESIGN FACTORY LTD        ,,PRINTERS                      ,
SHEFFIELD CITY COUNCIL        ,PLACE                         ,21351,GROUNDS MAINTENANCE           ,8010,EQUIPMENT PURCHASE AND REPAIR ,01/07/2015,18932,"1,100.82",BROADFIELD MOWERS LTD                   ,,LAWNMOWERS & GARDEN MACHINERY ,
SHEFFIELD CITY COUNCIL        ,COMMUNITIES                   ,47009,MINOR WORKS & ADAPTATIONS     ,6020,REPAIRS AND MTCE - PROGRAMMED ,01/07/2015,605,501.00,MR H S CUTTS NEIL CONSTRUCTION          ,,BUILDING SERVICES             ,
SHEFFIELD CITY COUNCIL        ,COMMUNITIES                   ,47009,MINOR WORKS & ADAPTATIONS     ,6020,REPAIRS AND MTCE - PROGRAMMED ,01/07/2015,606,375.00,MR H S CUTTS NEIL CONSTRUCTION          ,,BUILDING SERVICES             ,
SCR COMBINED AUTHORITY        ,ECONOMIC REGENERATION         ,30100,LEP CORE                      ,8240,CONFERENCE EXPENSES           ,01/07/2015,40806,"2,320.00",NEWSCO INSIDER                          ,,NEWSPAPER & MAGAZINE PUBLISHER,
SCR COMBINED AUTHORITY        ,ECONOMIC REGENERATION         ,30100,LEP CORE                      ,8460,CONSULTANTS FEES              ,01/07/2015,GEN866B                  ,"4,485.00",GENECON                                 ,,BUSINESS & MANAGEMENT CONSULTA,
SHEFFIELD CITY COUNCIL        ,PLACE                         ,21351,GROUNDS MAINTENANCE           ,7020,VEHICLE FUEL COSTS            ,01/07/2015,4614414,576.00,CARLTON FUELS                           ,,FUEL DEALERS                  ,
SHEFFIELD CITY COUNCIL        ,RESOURCES                     ,90145,PARK LIBRARY/COMM ROOF RENEWAL,1194,OTHER FEES                    ,01/07/2015,1487,"3,370.00",ACCESS ECOLOGY LTD                      ,,ENVIRONMENTAL CONSULTANTS     ,
SHEFFIELD CITY COUNCIL        ,CYPF                          ,36023,CATERING CONTRACT             ,8440,FEE EXPENSES                  ,01/07/2015,144813,516.55,PARENTPAY LIMITED                       ,,SCHOOLS - LOCAL AUTHORITY     ,
SHEFFIELD CITY COUNCIL        ,CYPF                          ,36023,CATERING CONTRACT             ,8440,FEE EXPENSES                  ,01/07/2015,143630,503.05,PARENTPAY LIMITED                       ,,SCHOOLS - LOCAL AUTHORITY     ,
SHEFFIELD CITY COUNCIL        ,COMMUNITIES                   ,49150,RESPONSIVE REPAIRS            ,6030,REPAIRS AND MTCE - RESPONSIVE ,01/07/2015,IN107522                 ,"1,219.36",EGBERT H TAYLOR & CO LTD                ,,ENGINEERS - GENERAL           ,
SHEFFIELD CITY COUNCIL        ,PLACE                         ,94402,NEW MARKET DEVELOPMENT        ,1161,NC&A MAIN CONTRACT            ,01/07/2015,C640209                  ,"386,555.04",BOWMER & KIRKLAND LTD                   ,,BUILDERS                      ,
SHEFFIELD CITY COUNCIL        ,PLACE                         ,90126,MOOR MARKET SERVICE YARD      ,1161,NC&A MAIN CONTRACT            ,01/07/2015,C640211                  ,"19,929.89",BOWMER & KIRKLAND LTD                   ,,BUILDERS                      ,
SHEFFIELD CITY COUNCIL        ,CYPF                          ,39358,DISAB CHILD ACCESS CHILDCARE  ,9120,OTHER AGENCIES                ,01/07/2015,18-Jun-15,"1,712.55",KIDZ @ WORK                             ,,NURSERIES & CRECHES           ,
SHEFFIELD CITY COUNCIL        ,PLACE                         ,24205,KEEP SHEFFIELD WORKING        ,8440,FEE EXPENSES                  ,01/07/2015,29693,500.00,NUMILL LTD                              ,,ENGINEERING SERVICES          ,
SHEFFIELD CITY COUNCIL        ,PLACE                         ,25001,GRAVES PARK - ANIMAL FARM INC ,8060,MATERIALS AND SUPPLIES GENERAL,01/07/2015,350514,306.70,ARGO FEEDS LTD                          ,,PET FOODS & ANIMAL FEEDS      ,
SHEFFIELD CITY COUNCIL        ,CYPF                          ,39357,SHORT BREAKS FUNDING FOR DISAB,9120,OTHER AGENCIES                ,01/07/2015,1815,269.10,REACHOUT CHILDCARE SERVICES LIMITED     ,,AFTER SCHOOL CARE             ,
SHEFFIELD CITY COUNCIL        ,RESOURCES                     ,18042,STATUTORY ADVERTISING         ,8420,ADVERTISING AND PUBL-INVOICED ,01/07/2015,2947351,682.17,SHEFFIELD NEWSPAPERS LTD                ,,NEWSPAPER & MAGAZINE PUBLISHER,
SHEFFIELD CITY COUNCIL        ,RESOURCES                     ,18042,STATUTORY ADVERTISING         ,8420,ADVERTISING AND PUBL-INVOICED ,01/07/2015,2947261,"1,023.26",SHEFFIELD NEWSPAPERS LTD                ,,NEWSPAPER & MAGAZINE PUBLISHER,
SHEFFIELD CITY COUNCIL        ,RESOURCES                     ,18042,STATUTORY ADVERTISING         ,8420,ADVERTISING AND PUBL-INVOICED ,01/07/2015,2942220,320.61,SHEFFIELD NEWSPAPERS LTD                ,,NEWSPAPER & MAGAZINE PUBLISHER,
SHEFFIELD CITY COUNCIL        ,RESOURCES                     ,18042,STATUTORY ADVERTISING         ,8420,ADVERTISING AND PUBL-INVOICED ,01/07/2015,2942349,466.34,SHEFFIELD NEWSPAPERS LTD                ,,NEWSPAPER & MAGAZINE PUBLISHER,
SHEFFIELD CITY COUNCIL        ,RESOURCES                     ,18042,STATUTORY ADVERTISING         ,8420,ADVERTISING AND PUBL-INVOICED ,01/07/2015,2942291,553.77,SHEFFIELD NEWSPAPERS LTD                ,,NEWSPAPER & MAGAZINE PUBLISHER,
SHEFFIELD CITY COUNCIL        ,RESOURCES                     ,18042,STATUTORY ADVERTISING         ,8420,ADVERTISING AND PUBL-INVOICED ,01/07/2015,2942414,320.61,SHEFFIELD NEWSPAPERS LTD                ,,NEWSPAPER & MAGAZINE PUBLISHER,
SHEFFIELD CITY COUNCIL        ,RESOURCES                     ,18042,STATUTORY ADVERTISING         ,8420,ADVERTISING AND PUBL-INVOICED ,01/07/2015,2942254,349.75,SHEFFIELD NEWSPAPERS LTD                ,,NEWSPAPER & MAGAZINE PUBLISHER,
SHEFFIELD CITY COUNCIL        ,RESOURCES                     ,18042,STATUTORY ADVERTISING         ,8420,ADVERTISING AND PUBL-INVOICED ,01/07/2015,2947413,682.17,SHEFFIELD NEWSPAPERS LTD                ,,NEWSPAPER & MAGAZINE PUBLISHER,
SHEFFIELD CITY COUNCIL        ,RESOURCES                     ,18041,RECRUITMENT ADVERTISING       ,5720,RECRUIT. ADV. - INVOICE       ,01/07/2015,R9616                    ,500.00,WELLINGTONE LIMITED                     ,,EMPLOYMENT & RECRUITMENT AGENC,
SHEFFIELD CITY COUNCIL        ,POLICY PERFORMANCE AND COMMS  ,17002,NATIONAL ELECTIONS            ,8350,MISCELLANEOUS EXPENSES        ,01/07/2015,1800000376,500.00,DEPT COMMUNITIES AND LOCAL GOVERNMENT   ,,CENTRAL GOVERNMENT            ,
SHEFFIELD CITY COUNCIL        ,POLICY PERFORMANCE AND COMMS  ,17002,NATIONAL ELECTIONS            ,8350,MISCELLANEOUS EXPENSES        ,01/07/2015,1800000437,"1,000.00",DEPT COMMUNITIES AND LOCAL GOVERNMENT   ,,CENTRAL GOVERNMENT            ,
SHEFFIELD CITY COUNCIL        ,POLICY PERFORMANCE AND COMMS  ,17002,NATIONAL ELECTIONS            ,8350,MISCELLANEOUS EXPENSES        ,01/07/2015,1800000438,"2,000.00",DEPT COMMUNITIES AND LOCAL GOVERNMENT   ,,CENTRAL GOVERNMENT            ,
SHEFFIELD CITY COUNCIL        ,POLICY PERFORMANCE AND COMMS  ,17002,NATIONAL ELECTIONS            ,8350,MISCELLANEOUS EXPENSES        ,01/07/2015,1800000439,"2,000.00",DEPT COMMUNITIES AND LOCAL GOVERNMENT   ,,CENTRAL GOVERNMENT            ,
SHEFFIELD CITY COUNCIL        ,POLICY PERFORMANCE AND COMMS  ,17002,NATIONAL ELECTIONS            ,8350,MISCELLANEOUS EXPENSES        ,01/07/2015,1800000420,"2,500.00",DEPT COMMUNITIES AND LOCAL GOVERNMENT   ,,CENTRAL GOVERNMENT            ,
SHEFFIELD CITY COUNCIL        ,POLICY PERFORMANCE AND COMMS  ,17002,NATIONAL ELECTIONS            ,8350,MISCELLANEOUS EXPENSES        ,01/07/2015,1800000419,"2,000.00",DEPT COMMUNITIES AND LOCAL GOVERNMENT   ,,CENTRAL GOVERNMENT            ,
SHEFFIELD CITY COUNCIL        ,RESOURCES                     ,15133,STANIFORTH ROAD WORKSHOPS     ,7010,ROUTINE VEHICLE REPAIR & MTCE ,01/07/2015,15392,352.06,RODDISONS RECOVERY                      ,,COMMERCIAL VEHICLE BREAKDOWN &,
SHEFFIELD CITY COUNCIL        ,RESOURCES                     ,15133,STANIFORTH ROAD WORKSHOPS     ,8070,STOCKS AND STORES             ,01/07/2015,14407692,757.89,LOOKERS FORD                            ,,CAR DEALERS                   ,
SHEFFIELD CITY COUNCIL        ,RESOURCES                     ,15133,STANIFORTH ROAD WORKSHOPS     ,7010,ROUTINE VEHICLE REPAIR & MTCE ,01/07/2015,14408427,"1,261.03",LOOKERS FORD                            ,,CAR DEALERS                   ,
SHEFFIELD CITY COUNCIL        ,RESOURCES                     ,15133,STANIFORTH ROAD WORKSHOPS     ,8070,STOCKS AND STORES             ,01/07/2015,14408612,277.25,LOOKERS FORD                            ,,CAR DEALERS                   ,
SHEFFIELD CITY COUNCIL        ,RESOURCES                     ,15133,STANIFORTH ROAD WORKSHOPS     ,7010,ROUTINE VEHICLE REPAIR & MTCE ,01/07/2015,8355,771.00,GPG 2000 LTD                            ,,CAR BODY REPAIRS              ,
SHEFFIELD CITY COUNCIL        ,RESOURCES                     ,15133,STANIFORTH ROAD WORKSHOPS     ,8070,STOCKS AND STORES             ,01/07/2015,113764,"1,197.19",F R SHARROCK LTD                        ,,AGRICULTURAL ENGINEERS        ,
SHEFFIELD CITY COUNCIL        ,RESOURCES                     ,15133,STANIFORTH ROAD WORKSHOPS     ,8070,STOCKS AND STORES             ,01/07/2015,113768,921.96,F R SHARROCK LTD                        ,,AGRICULTURAL ENGINEERS        ,
SHEFFIELD CITY COUNCIL        ,RESOURCES                     ,15133,STANIFORTH ROAD WORKSHOPS     ,8070,STOCKS AND STORES             ,01/07/2015,113765,256.92,F R SHARROCK LTD                        ,,AGRICULTURAL ENGINEERS        ,
SHEFFIELD CITY COUNCIL        ,RESOURCES                     ,15133,STANIFORTH ROAD WORKSHOPS     ,7010,ROUTINE VEHICLE REPAIR & MTCE ,01/07/2015,20687,"1,578.40",EASTWICK ENGINEERING SERVICES           ,,GARAGE EQUIPMENT              ,
SHEFFIELD CITY COUNCIL        ,RESOURCES                     ,15133,STANIFORTH ROAD WORKSHOPS     ,8070,STOCKS AND STORES             ,01/07/2015,113766,927.23,F R SHARROCK LTD                        ,,AGRICULTURAL ENGINEERS        ,
SHEFFIELD CITY COUNCIL        ,RESOURCES                     ,15133,STANIFORTH ROAD WORKSHOPS     ,8070,STOCKS AND STORES             ,01/07/2015,113769,611.87,F R SHARROCK LTD                        ,,AGRICULTURAL ENGINEERS        ,
SHEFFIELD CITY COUNCIL        ,RESOURCES                     ,15133,STANIFORTH ROAD WORKSHOPS     ,7010,ROUTINE VEHICLE REPAIR & MTCE ,01/07/2015,15377,352.06,RODDISONS RECOVERY                      ,,COMMERCIAL VEHICLE BREAKDOWN &,
SHEFFIELD CITY COUNCIL        ,RESOURCES                     ,15213,CORPORATE MAIL                ,8570,POSTAGE & DELIVERY            ,01/07/2015,9050078972,"12,942.60",ROYAL MAIL GROUP LTD                    ,,DELIVERY SERVICES             ,
SHEFFIELD CITY COUNCIL        ,RESOURCES                     ,16002,BIS TELECOMMS                 ,8600,MOBILE TELEPHONES - INVOICE   ,01/07/2015,II30505                  ,"1,650.00",VODAFONE LIMITED (CORPORATE)            ,,MOBILE PHONES                 ,
SHEFFIELD CITY COUNCIL        ,RESOURCES                     ,15133,STANIFORTH ROAD WORKSHOPS     ,8070,STOCKS AND STORES             ,01/07/2015,14408505,"1,154.05",LOOKERS FORD                            ,,CAR DEALERS                   ,
SHEFFIELD CITY COUNCIL        ,COMMUNITIES                   ,41020,IT DEVELOPMENT                ,9630,DATA NETWORK SUPPORT          ,01/07/2015,4000416478,"1,270.00",SHEFFIELD HEALTH & SOCIAL CARE NHS      ,,HOSPITALS                     ,
SHEFFIELD CITY COUNCIL        ,COMMUNITIES                   ,42034,PURCHASING LEARNING DISABILITI,4260,DIRECT PAYMENTS               ,01/07/2015,J1197857                 ,983.55,REDACTED PERSONAL DATA,Social Community Care,CAREFIRST DIRECT PAYMENTS     ,
SHEFFIELD CITY COUNCIL        ,CYPF                          ,39405,LEAVING CARE                  ,9270,CARELEAVERS ACCOMMODATION     ,01/07/2015,3065,320.95,EARL MARSHALL GUEST HOUSE LTD           ,,GUEST HOUSES                  ,
SHEFFIELD CITY COUNCIL        ,CYPF                          ,39238,WEST SA - CIN S17             ,9280,CONTACT                       ,01/07/2015,20125,259.43,SSA SOCIAL CARE & COMMUNITY SERVICES LTD,,EMPLOYMENT & RECRUITMENT AGENC,
SHEFFIELD CITY COUNCIL        ,COMMUNITIES                   ,49661, LUNCH CLUB GRANT             ,8180,GRANTS                        ,01/07/2015,MPA20150701210 1         ,666.00,BANNER CROSS LUNCHEON & FRIENDSHIP CLUB ,,PLACES OF WORSHIP             ,
SHEFFIELD CITY COUNCIL        ,COMMUNITIES                   ,49661, LUNCH CLUB GRANT             ,8180,GRANTS                        ,01/07/2015,MPA20150701210 10        ,691.00,GREYSTONES LUNCH CLUB                   ,,CHARITIES & VOLUNTARY ORGANISA,
SHEFFIELD CITY COUNCIL        ,COMMUNITIES                   ,49661, LUNCH CLUB GRANT             ,8180,GRANTS                        ,01/07/2015,MPA20150701210 12        ,606.00,ADLINGTON LUNCHEON CLUB                 ,,CHARITIES & VOLUNTARY ORGANISA,
SHEFFIELD CITY COUNCIL        ,COMMUNITIES                   ,49661, LUNCH CLUB GRANT             ,8180,GRANTS                        ,01/07/2015,MPA20150701210 13        ,924.00,DARNALL LUNCH CLUB                      ,,CHARITIES & VOLUNTARY ORGANISA,
SHEFFIELD CITY COUNCIL        ,COMMUNITIES                   ,49661, LUNCH CLUB GRANT             ,8180,GRANTS                        ,01/07/2015,MPA20150701210 14        ,280.00,DORE OPEN DOOR LUNCH CLUB               ,,CHARITIES & VOLUNTARY ORGANISA,
SHEFFIELD CITY COUNCIL        ,COMMUNITIES                   ,49661, LUNCH CLUB GRANT             ,8180,GRANTS                        ,01/07/2015,MPA20150701210 15        ,640.00,THE LIMES LUNCHEON CLUB                 ,,CHARITIES & VOLUNTARY ORGANISA,
SHEFFIELD CITY COUNCIL        ,COMMUNITIES                   ,49661, LUNCH CLUB GRANT             ,8180,GRANTS                        ,01/07/2015,MPA20150701210 16        ,594.00,DUKE STREET COMMUNITY CENTRE            ,,COMMUNITY CENTRES             ,
SHEFFIELD CITY COUNCIL        ,COMMUNITIES                   ,49661, LUNCH CLUB GRANT             ,8180,GRANTS                        ,01/07/2015,MPA20150701210 17        ,"1,070.00",ST OSWALDS LUNCHEON CLUB                ,,CHARITIES & VOLUNTARY ORGANISA,
SHEFFIELD CITY COUNCIL        ,COMMUNITIES                   ,49661, LUNCH CLUB GRANT             ,8180,GRANTS                        ,01/07/2015,MPA20150701210 19        ,"2,131.00",BIRLEY SPA LUNCH CLUB                   ,,CHARITIES & VOLUNTARY ORGANISA,
SHEFFIELD CITY COUNCIL        ,COMMUNITIES                   ,49661, LUNCH CLUB GRANT             ,8180,GRANTS                        ,01/07/2015,MPA20150701210 2         ,553.00,CHRIST CHURCH PITSMOOR LUNCH CLUB       ,,CHARITIES & VOLUNTARY ORGANISA,
SHEFFIELD CITY COUNCIL        ,COMMUNITIES                   ,49661, LUNCH CLUB GRANT             ,8180,GRANTS                        ,01/07/2015,MPA20150701210 21        ,335.00,MICHAEL CHURCH LOWEDGES THURS LUNCH CLUB,,CHARITIES & VOLUNTARY ORGANISA,
SHEFFIELD CITY COUNCIL        ,COMMUNITIES                   ,49661, LUNCH CLUB GRANT             ,8180,GRANTS                        ,01/07/2015,MPA20150701210 22        ,739.00,ST JOHN'S ABBEYDALE LUNCH CLUB          ,,CHARITIES & VOLUNTARY ORGANISA,
SHEFFIELD CITY COUNCIL        ,COMMUNITIES                   ,49661, LUNCH CLUB GRANT             ,8180,GRANTS                        ,01/07/2015,MPA20150701210 23        ,566.00,GRAPEVINE CENTRE LUNCHEON CLUB          ,,CHARITIES & VOLUNTARY ORGANISA,
SHEFFIELD CITY COUNCIL        ,COMMUNITIES                   ,49661, LUNCH CLUB GRANT             ,8180,GRANTS                        ,01/07/2015,MPA20150701210 24        ,"1,139.00",THE SALVATION ARMY SHEFFIELD CASTLE     ,,"HOUSING ASSOCIATIONS, SOCIETIE",
SHEFFIELD CITY COUNCIL        ,COMMUNITIES                   ,49661, LUNCH CLUB GRANT             ,8180,GRANTS                        ,01/07/2015,MPA20150701210 25        ,321.00,DORE METHODIST LUNCH CLUB               ,,CHARITIES & VOLUNTARY ORGANISA,
SHEFFIELD CITY COUNCIL        ,COMMUNITIES                   ,49661, LUNCH CLUB GRANT             ,8180,GRANTS                        ,01/07/2015,MPA20150701210 26        ,547.00,WADSLEY CHURCH LUNCH CLUB               ,,CHARITIES & VOLUNTARY ORGANISA,
SHEFFIELD CITY COUNCIL        ,COMMUNITIES                   ,49661, LUNCH CLUB GRANT             ,8180,GRANTS                        ,01/07/2015,MPA20150701210 27        ,"1,153.00",SHIREGREEN UNITED REFORMED CHURCH       ,,PLACES OF WORSHIP             ,
SHEFFIELD CITY COUNCIL        ,COMMUNITIES                   ,49661, LUNCH CLUB GRANT             ,8180,GRANTS                        ,01/07/2015,MPA20150701210 28        ,647.00,ST TIMOTHY'S LUNCH CLUB                 ,,CHARITIES & VOLUNTARY ORGANISA,
SHEFFIELD CITY COUNCIL        ,COMMUNITIES                   ,49661, LUNCH CLUB GRANT             ,8180,GRANTS                        ,01/07/2015,MPA20150701210 29        ,939.00,MEERSBROOK PARK LUNCH CLUB              ,,CHARITIES & VOLUNTARY ORGANISA,
SHEFFIELD CITY COUNCIL        ,COMMUNITIES                   ,49661, LUNCH CLUB GRANT             ,8180,GRANTS                        ,01/07/2015,MPA20150701210 3         ,908.00,CROSSPOOL LUNCH CLUB                    ,,CHARITIES & VOLUNTARY ORGANISA,
SHEFFIELD CITY COUNCIL        ,COMMUNITIES                   ,49661, LUNCH CLUB GRANT             ,8180,GRANTS                        ,01/07/2015,MPA20150701210 30        ,999.00,ST BARTHOLOMEWS LUNCH CLUB              ,,CHARITIES & VOLUNTARY ORGANISA,
SHEFFIELD CITY COUNCIL        ,COMMUNITIES                   ,49661, LUNCH CLUB GRANT             ,8180,GRANTS                        ,01/07/2015,MPA20150701210 31        ,797.00,ST LEONARD'S LUNCH CLUB                 ,,CHARITIES & VOLUNTARY ORGANISA,
SHEFFIELD CITY COUNCIL        ,COMMUNITIES                   ,49661, LUNCH CLUB GRANT             ,8180,GRANTS                        ,01/07/2015,MPA20150701210 32        ,980.00,ST MARY'S LUNCH CLUB                    ,,CHARITIES & VOLUNTARY ORGANISA,
SHEFFIELD CITY COUNCIL        ,COMMUNITIES                   ,49661, LUNCH CLUB GRANT             ,8180,GRANTS                        ,01/07/2015,MPA20150701210 33        ,516.00,TINSLEY COMMUNITY CENTRE LUNCH CLUB     ,,CHARITIES & VOLUNTARY ORGANISA,
SHEFFIELD CITY COUNCIL        ,COMMUNITIES                   ,49661, LUNCH CLUB GRANT             ,8180,GRANTS                        ,01/07/2015,MPA20150701210 35        ,"1,224.00",ST MARY'S HANDSWORTH LUNCH CLUB         ,,CHARITIES & VOLUNTARY ORGANISA,
SHEFFIELD CITY COUNCIL        ,COMMUNITIES                   ,49661, LUNCH CLUB GRANT             ,8180,GRANTS                        ,01/07/2015,MPA20150701210 36        ,877.00,WILLIAM TEMPLE LUNCH CLUB               ,,CHARITIES & VOLUNTARY ORGANISA,
SHEFFIELD CITY COUNCIL        ,COMMUNITIES                   ,49661, LUNCH CLUB GRANT             ,8180,GRANTS                        ,01/07/2015,MPA20150701210 38        ,547.00,LOWER SHIREGREEN LUNCH CLUB             ,,CHARITIES & VOLUNTARY ORGANISA,
SHEFFIELD CITY COUNCIL        ,COMMUNITIES                   ,49661, LUNCH CLUB GRANT             ,8180,GRANTS                        ,01/07/2015,MPA20150701210 39        ,359.00,ST MARKS LUNCH & FRIENDSHIP CLUB        ,,PLACES OF WORSHIP             ,
SHEFFIELD CITY COUNCIL        ,COMMUNITIES                   ,49661, LUNCH CLUB GRANT             ,8180,GRANTS                        ,01/07/2015,MPA20150701210 41        ,"1,089.00",FRECHEVILLE PARISH DAY CENTRE           ,,LOCAL GOVERNMENT              ,
SHEFFIELD CITY COUNCIL        ,COMMUNITIES                   ,49661, LUNCH CLUB GRANT             ,8180,GRANTS                        ,01/07/2015,MPA20150701210 42        ,628.00,WESLEY HALL LUNCH CLUB                  ,,CHARITIES & VOLUNTARY ORGANISA,
SHEFFIELD CITY COUNCIL        ,COMMUNITIES                   ,49661, LUNCH CLUB GRANT             ,8180,GRANTS                        ,01/07/2015,MPA20150701210 43        ,887.00,MOSBOROUGH LUNCH & SOCIAL CLUB          ,,"CLUBS & ASSOCIATIONS - SOCIAL,",
SHEFFIELD CITY COUNCIL        ,COMMUNITIES                   ,49661, LUNCH CLUB GRANT             ,8180,GRANTS                        ,01/07/2015,MPA20150701210 44        ,859.00,THE THURSDAY CLUB                       ,,CHARITIES & VOLUNTARY ORGANISA,
SHEFFIELD CITY COUNCIL        ,COMMUNITIES                   ,49661, LUNCH CLUB GRANT             ,8180,GRANTS                        ,01/07/2015,MPA20150701210 45        ,314.00,CHURCH ON THE CORNER                    ,,PLACES OF WORSHIP             ,
SHEFFIELD CITY COUNCIL        ,COMMUNITIES                   ,49661, LUNCH CLUB GRANT             ,8180,GRANTS                        ,01/07/2015,MPA20150701210 46        ,520.00,MANOR LODGE LUNCHEON CLUB               ,,CHARITIES & VOLUNTARY ORGANISA,
SHEFFIELD CITY COUNCIL        ,COMMUNITIES                   ,49661, LUNCH CLUB GRANT             ,8180,GRANTS                        ,01/07/2015,MPA20150701210 48        ,288.00,PARSON CROSS COMMUNITY DEVELOPMENT FORUM,,CHARITIES & VOLUNTARY ORGANISA,
SHEFFIELD CITY COUNCIL        ,COMMUNITIES                   ,49661, LUNCH CLUB GRANT             ,8180,GRANTS                        ,01/07/2015,MPA20150701210 49        ,550.00,THE MIRACLE TRUST (SPIRES LUNCHEON CLUB),Unclassified Non Trade,OUT OF SCOPE FOR SIC MONITORIN,
SHEFFIELD CITY COUNCIL        ,COMMUNITIES                   ,49661, LUNCH CLUB GRANT             ,8180,GRANTS                        ,01/07/2015,MPA20150701210 5         ,576.00,HALLAM METHODIST LUNCH CLUB             ,,CHARITIES & VOLUNTARY ORGANISA,
SHEFFIELD CITY COUNCIL        ,COMMUNITIES                   ,49661, LUNCH CLUB GRANT             ,8180,GRANTS                        ,01/07/2015,MPA20150701210 50        ,750.00,HILLSBOROUGH TRINITY METHODIST CHURCH   ,,"CLUBS & ASSOCIATIONS - SOCIAL,",
SHEFFIELD CITY COUNCIL        ,COMMUNITIES                   ,49661, LUNCH CLUB GRANT             ,8180,GRANTS                        ,01/07/2015,MPA20150701210 6         ,482.00,HANDY HANDS GROUP                       ,,CHARITIES & VOLUNTARY ORGANISA,
SHEFFIELD CITY COUNCIL        ,COMMUNITIES                   ,49661, LUNCH CLUB GRANT             ,8180,GRANTS                        ,01/07/2015,MPA20150701210 8         ,265.00,TOTLEY RISE METHODIST CHURCH LUNCH CLUB ,,CHARITIES & VOLUNTARY ORGANISA,
SHEFFIELD CITY COUNCIL        ,COMMUNITIES                   ,49661, LUNCH CLUB GRANT             ,8180,GRANTS                        ,01/07/2015,MPA20150701210 9         ,855.00,WOODSEATS METHODIST LUNCH CLUB          ,,CHARITIES & VOLUNTARY ORGANISA,
SHEFFIELD CITY COUNCIL        ,COMMUNITIES                   ,46039,ADULT SOCIAL CARE PURCHASING  ,9210,CONTINUING NURSING CARE       ,01/07/2015,J1186020 190715          ,"1,598.64",ASH PADDOCK HOMES LTD                   ,,RESIDENTIAL CARE HOMES        ,
SHEFFIELD CITY COUNCIL        ,COMMUNITIES                   ,46039,ADULT SOCIAL CARE PURCHASING  ,9200,CONTINUING RESIDENTIAL CARE   ,01/07/2015,J1186115 190715          ,"14,627.42",HARTWELL HOUSE                          ,,NURSING HOMES                 ,
SHEFFIELD CITY COUNCIL        ,COMMUNITIES                   ,47028,PDSI PURCHASING               ,9200,CONTINUING RESIDENTIAL CARE   ,01/07/2015,J1186154 190715          ,"2,586.68",HENLEIGH HALL                           ,,NURSING HOMES                 ,
SHEFFIELD CITY COUNCIL        ,COMMUNITIES                   ,46039,ADULT SOCIAL CARE PURCHASING  ,9200,CONTINUING RESIDENTIAL CARE   ,01/07/2015,J1186154 190715          ,"2,236.00",HENLEIGH HALL                           ,,NURSING HOMES                 ,
SHEFFIELD CITY COUNCIL        ,COMMUNITIES                   ,47028,PDSI PURCHASING               ,9210,CONTINUING NURSING CARE       ,01/07/2015,J1186154 190715          ,"4,093.48",HENLEIGH HALL                           ,,NURSING HOMES                 ,
SHEFFIELD CITY COUNCIL        ,COMMUNITIES                   ,46039,ADULT SOCIAL CARE PURCHASING  ,9210,CONTINUING NURSING CARE       ,01/07/2015,J1186154 190715          ,"6,891.57",HENLEIGH HALL                           ,,NURSING HOMES                 ,
SHEFFIELD CITY COUNCIL        ,COMMUNITIES                   ,42034,PURCHASING LEARNING DISABILITI,9200,CONTINUING RESIDENTIAL CARE   ,01/07/2015,J1186229 190715          ,"41,656.28",LONGLEY HALL LTD                        ,,DISABILITY & SPECIAL NEEDS - S,
SHEFFIELD CITY COUNCIL        ,COMMUNITIES                   ,46039,ADULT SOCIAL CARE PURCHASING  ,9210,CONTINUING NURSING CARE       ,01/07/2015,J1196460 190715          ,"2,992.86",ROSEBERRY CARE CENTRES GB LTD           ,,RESIDENTIAL CARE HOMES        ,
SHEFFIELD CITY COUNCIL        ,COMMUNITIES                   ,46039,ADULT SOCIAL CARE PURCHASING  ,9200,SHORT TERM RESIDENTIAL CARE   ,01/07/2015,J1109765 010315          ,"5,031.00",BALMORAL NURSING HOME                   ,,NURSING HOMES                 ,
SHEFFIELD CITY COUNCIL        ,CYPF                          ,39517,IN CITY SEN PROVISION         ,8440,FEE EXPENSES                  ,02/07/2015,6247,"1,898.00",MYLNHURST SCHOOL AND NURSERY            ,,NURSERIES & CRECHES           ,
SHEFFIELD CITY COUNCIL        ,PLACE                         ,28108,RGF 3                         ,8440,FEE EXPENSES                  ,02/07/2015,ERS INVOICE121977        ,"547,905.67",NAYLOR DRAINAGE                         ,,DEFAULT DO NOT DELETE         ,
SHEFFIELD CITY COUNCIL        ,COMMUNITIES                   ,49005,NATIONAL ASSISTANCE CONTRACT  ,6210,RENTS                         ,02/07/2015,ERS INVOICE121978        ,375.00,TAPTON ESTATES PROPERTIES LTD           ,,PROPERTY & ESTATE MANAGEMENT  ,
SHEFFIELD CITY COUNCIL        ,PLACE                         ,28100,BUSINESS GROWTH TEAM          ,8460,CONSULTANTS FEES              ,02/07/2015,ERS INVOICE121979        ,500.00,J DAVISON T/A JO DAVISON COMMUNICATIONS ,,PROFESSIONAL SPEAKERS         ,
SHEFFIELD CITY COUNCIL        ,COMMUNITIES                   ,49005,NATIONAL ASSISTANCE CONTRACT  ,6210,RENTS                         ,02/07/2015,ERS INVOICE121980        ,390.00,MU PROPERTIES                           ,,LETTING AGENTS                ,
SHEFFIELD CITY COUNCIL        ,COMMUNITIES                   ,49005,NATIONAL ASSISTANCE CONTRACT  ,6210,RENTS                         ,02/07/2015,ERS INVOICE121981        ,410.00,MR R L WILLEY                           ,,ACCOMMODATION AGENCIES - RESID,
SHEFFIELD CITY COUNCIL        ,RESOURCES                     ,18032,MOORFOOT LEARNING CENTRE      ,8490,OTHER PROFESSIONAL FEES       ,02/07/2015,ERS INVOICE122120        ,250.00,REDACTED PERSONAL DATA,,FIRST AID TRAINING            ,
SHEFFIELD CITY COUNCIL        ,RESOURCES                     ,18032,MOORFOOT LEARNING CENTRE      ,8490,OTHER PROFESSIONAL FEES       ,02/07/2015,ERS INVOICE122129        ,250.00,REDACTED PERSONAL DATA,,FIRST AID TRAINING            ,
SHEFFIELD CITY COUNCIL        ,COMMUNITIES                   ,49706,NORTH EAST                    ,8180,GRANTS                        ,02/07/2015,ERS INVOICE122147        ,500.00,GALSWORTHY TARA                         ,,COMMUNITY PROJECTS            ,
SHEFFIELD CITY COUNCIL        ,CYPF                          ,39302,IN HOUSE FOSTER PLACEMENT     ,9270,IN-HOUSE FOSTERING            ,02/07/2015,ERS INVOICE122167        ,860.00,REDACTED PERSONAL DATA,,ADOPTION & FOSTERING          ,
SHEFFIELD CITY COUNCIL        ,CYPF                          ,39301,FOSTERING DEVELOPMENT         ,8010,EQUIPMENT PURCHASE AND REPAIR ,02/07/2015,ERS INVOICE122169        ,830.00,REDACTED PERSONAL DATA,,ADOPTION & FOSTERING          ,
SHEFFIELD CITY COUNCIL        ,PLACE                         ,97394,HULL - HUMBER SUB REGION HAL  ,1194,OTHER FEES                    ,02/07/2015,ERS INVOICE122193        ,"8,980.00",EASTELLA DEVELOPMENTS LTD               ,,BUILDERS                      ,
SHEFFIELD CITY COUNCIL        ,CYPF                          ,33142,CITY DEAL - FRAMEWORKS        ,9120,OTHER AGENCIES                ,02/07/2015,ERS INVOICE122215        ,"22,119.64",THE LEARNING COMMUNITY LTD              ,,TRAINING SERVICES             ,
SHEFFIELD CITY COUNCIL        ,RESOURCES                     ,19347,CLAIMS                        ,8740,HIGHWAYS                      ,02/07/2015,ERS INVOICE122216        ,"17,500.00",ACCOUNTANT GENERAL OF THE SENIOR COURTS ,,CENTRAL GOVERNMENT            ,
SHEFFIELD CITY COUNCIL        ,COMMUNITIES                   ,49024,LOCAL ASSISTANCE SCHEME       ,8010,EQUIPMENT PURCHASE AND REPAIR ,02/07/2015,GR669                    ,312.00,SHEFFIELD CREDIT UNION                  ,,CREDIT UNIONS                 ,
SHEFFIELD CITY COUNCIL        ,CYPF                          ,33115,PROSPECTS - YOUTH NEETS       ,9120,OTHER AGENCIES                ,02/07/2015,7729,"11,070.00",SHEFFIELD FUTURES                       ,,COUNSELLING & ADVICE SERVICES ,
SHEFFIELD CITY COUNCIL        ,COMMUNITIES                   ,49024,LOCAL ASSISTANCE SCHEME       ,8010,EQUIPMENT PURCHASE AND REPAIR ,02/07/2015,GR656                    ,278.50,SHEFFIELD CREDIT UNION                  ,,CREDIT UNIONS                 ,
SHEFFIELD CITY COUNCIL        ,COMMUNITIES                   ,49024,LOCAL ASSISTANCE SCHEME       ,8010,EQUIPMENT PURCHASE AND REPAIR ,02/07/2015,GR691                    ,333.50,SHEFFIELD CREDIT UNION                  ,,CREDIT UNIONS                 ,
SHEFFIELD CITY COUNCIL        ,COMMUNITIES                   ,49024,LOCAL ASSISTANCE SCHEME       ,8010,EQUIPMENT PURCHASE AND REPAIR ,02/07/2015,GR694                    ,956.25,SHEFFIELD CREDIT UNION                  ,,CREDIT UNIONS                 ,
SCR COMBINED AUTHORITY        ,ECONOMIC REGENERATION         ,30100,LEP CORE                      ,8270,SUBSCRIPTIONS                 ,02/07/2015,306786,"3,200.00",PRECISE MEDIA MONITORING LTD            ,,BUSINESS INFORMATION SERVICES ,
SHEFFIELD CITY COUNCIL        ,RESOURCES                     ,18032,MOORFOOT LEARNING CENTRE      ,8440,FEE EXPENSES                  ,02/07/2015,803704749/850025189/190  ,862.00,CITY & GUILDS                           ,,EXAMINATION BOARDS            ,
SHEFFIELD CITY COUNCIL        ,CYPF                          ,90753,LONGLEY - TWO CLASSROOM EXTN  ,1161,NC&A MAIN CONTRACT            ,02/07/2015,CY04315/8                ,"53,372.64",WILLIAM BIRCH & SONS LTD                ,,CONSTRUCTION CONTRACTORS - GEN,
SHEFFIELD CITY COUNCIL        ,PLACE                         ,25071,WOOD LANE                     ,8440,FEE EXPENSES                  ,02/07/2015,510,"46,671.00",NORTH SHEFFIELD CONSERVATION GROUP      ,,CHARITIES & VOLUNTARY ORGANISA,
SHEFFIELD CITY COUNCIL        ,PLACE                         ,21080,"BUSINESS DEVELOPMENT		        ",8250,MARKETING EXPENSES            ,02/07/2015,150403,"4,700.00",FALCONER ASSOCIATES LIMITED             ,,PUBLIC RELATIONS CONSULTANTS  ,
SHEFFIELD CITY COUNCIL        ,PLACE                         ,21080,"BUSINESS DEVELOPMENT		        ",8250,MARKETING EXPENSES            ,02/07/2015,150404,"2,975.00",FALCONER ASSOCIATES LIMITED             ,,PUBLIC RELATIONS CONSULTANTS  ,
SHEFFIELD CITY COUNCIL        ,PLACE                         ,91662,PUBLIC RIGHTS OF WAY          ,1173,INFR MAIN CONTRACT            ,02/07/2015,131650,"1,283.60",WILLIAM EYRE & SONS                     ,,AGRICULTURAL MERCHANTS        ,
SHEFFIELD CITY COUNCIL        ,PLACE                         ,22147,PUBLIC RIGHTS OF WAY          ,8010,EQUIPMENT PURCHASE AND REPAIR ,02/07/2015,10831,375.00,GO OUTDOORS LIMITED                     ,,WATERPROOF CLOTHING & RAINWEAR,
SHEFFIELD CITY COUNCIL        ,PLACE                         ,91662,PUBLIC RIGHTS OF WAY          ,1173,INFR MAIN CONTRACT            ,02/07/2015,2771,"4,117.00",GARY FLETCHER (SURFACING) LTD           ,,ROAD SURFACING CONTRACTORS    ,
SHEFFIELD CITY COUNCIL        ,PLACE                         ,91662,PUBLIC RIGHTS OF WAY          ,1173,INFR MAIN CONTRACT            ,02/07/2015,2770,"4,681.00",GARY FLETCHER (SURFACING) LTD           ,,ROAD SURFACING CONTRACTORS    ,
SHEFFIELD CITY COUNCIL        ,CYPF                          ,32043,LA MUSIC SERVICES             ,6280,HIRE OF PREMISES              ,02/07/2015,1800124794,"1,112.48",UNIVERSITY OF SHEFFIELD                 ,,UNIVERSITIES & MEDICAL SCHOOLS,
SHEFFIELD CITY COUNCIL        ,COMMUNITIES                   ,49024,LOCAL ASSISTANCE SCHEME       ,8010,EQUIPMENT PURCHASE AND REPAIR ,02/07/2015,GR703                    ,471.35,SHEFFIELD CREDIT UNION                  ,,CREDIT UNIONS                 ,
SHEFFIELD CITY COUNCIL        ,COMMUNITIES                   ,49024,LOCAL ASSISTANCE SCHEME       ,8010,EQUIPMENT PURCHASE AND REPAIR ,02/07/2015,GR704                    ,708.50,SHEFFIELD CREDIT UNION                  ,,CREDIT UNIONS                 ,
SHEFFIELD CITY COUNCIL        ,COMMUNITIES                   ,49024,LOCAL ASSISTANCE SCHEME       ,8010,EQUIPMENT PURCHASE AND REPAIR ,02/07/2015,GR702                    ,796.65,SHEFFIELD CREDIT UNION                  ,,CREDIT UNIONS                 ,
SHEFFIELD CITY COUNCIL        ,COMMUNITIES                   ,49024,LOCAL ASSISTANCE SCHEME       ,8010,EQUIPMENT PURCHASE AND REPAIR ,02/07/2015,GR705                    ,"1,417.60",SHEFFIELD CREDIT UNION                  ,,CREDIT UNIONS                 ,
SHEFFIELD CITY COUNCIL        ,POLICY PERFORMANCE AND COMMS  ,18003,COMMUNICATIONS                ,8550,OTHER SERVICES                ,02/07/2015,5029,610.00,NEW LEAF SIGN & DESIGN LTD              ,,SIGN & POSTER WRITERS         ,
SHEFFIELD CITY COUNCIL        ,CYPF                          ,33115,PROSPECTS - YOUTH NEETS       ,9120,OTHER AGENCIES                ,02/07/2015,7786,"215,975.70",SHEFFIELD FUTURES                       ,,COUNSELLING & ADVICE SERVICES ,
SHEFFIELD CITY COUNCIL        ,RESOURCES                     ,18032,MOORFOOT LEARNING CENTRE      ,8240,CONFERENCE EXPENSES           ,02/07/2015,803757218,327.00,ILM                                     ,,INSTITUTES - PROFESSIONAL     ,
SHEFFIELD CITY COUNCIL        ,COMMUNITIES                   ,49024,LOCAL ASSISTANCE SCHEME       ,8010,EQUIPMENT PURCHASE AND REPAIR ,02/07/2015,GR698                    ,383.50,SHEFFIELD CREDIT UNION                  ,,CREDIT UNIONS                 ,
SHEFFIELD CITY COUNCIL        ,RESOURCES                     ,18032,MOORFOOT LEARNING CENTRE      ,8470,LEGAL FEES                    ,02/07/2015,57385406,445.00,EPILEPSY AWARENESS LTD                  ,,TRAINING SERVICES             ,
SHEFFIELD CITY COUNCIL        ,CYPF                          ,39323,DRUG & SUBSTANCE              ,9120,OTHER AGENCIES                ,02/07/2015,19390,"2,000.00",CRI                                     ,,PUBLIC HEALTH SUPPLIERS       ,
SHEFFIELD CITY COUNCIL        ,CYPF                          ,33066,PROVIDER CONTRACT AUG14-JUL15 ,9120,OTHER AGENCIES                ,02/07/2015,28041501,"1,067.50",LEARN FOR LIFE ENTERPRISE LIMITED       ,,CHARITIES & VOLUNTARY ORGANISA,
SHEFFIELD CITY COUNCIL        ,CYPF                          ,33066,PROVIDER CONTRACT AUG14-JUL15 ,9120,OTHER AGENCIES                ,02/07/2015,30031507,335.50,LEARN FOR LIFE ENTERPRISE LIMITED       ,,CHARITIES & VOLUNTARY ORGANISA,
SHEFFIELD CITY COUNCIL        ,CYPF                          ,32042,MUSIC EDUCATION HUBS 2012-15  ,8010,EQUIPMENT PURCHASE AND REPAIR ,02/07/2015,SIN717864                ,"1,117.50",CHAMBERLAIN MUSIC                       ,,MUSICAL INSTRUMENTS & SHEET MU,
SHEFFIELD CITY COUNCIL        ,RESOURCES                     ,15204,PFI 1                         ,6150,ELECTRICITY                   ,02/07/2015,907,"54,362.40",PYRAMID SCHOOLS (SHEFFIELD) LTD         ,,LEASING SERVICES              ,
SHEFFIELD CITY COUNCIL        ,POLICY PERFORMANCE AND COMMS  ,18003,COMMUNICATIONS                ,8550,OTHER SERVICES                ,02/07/2015,4793/0119                ,817.00,NEW LEAF SIGN & DESIGN LTD              ,,SIGN & POSTER WRITERS         ,
SHEFFIELD CITY COUNCIL        ,POLICY PERFORMANCE AND COMMS  ,18003,COMMUNICATIONS                ,8550,OTHER SERVICES                ,02/07/2015,217550,435.00,B AND B PRESS (PARKGATE) LTD            ,,PRINTERS                      ,
SHEFFIELD CITY COUNCIL        ,RESOURCES                     ,18032,MOORFOOT LEARNING CENTRE      ,8440,FEE EXPENSES                  ,02/07/2015,146233,855.00,QUALSAFE LIMITED                        ,,FIRST AID TRAINING            ,
SHEFFIELD CITY COUNCIL        ,COMMUNITIES                   ,49024,LOCAL ASSISTANCE SCHEME       ,8010,EQUIPMENT PURCHASE AND REPAIR ,02/07/2015,GR706                    ,534.50,SHEFFIELD CREDIT UNION                  ,,CREDIT UNIONS                 ,
SHEFFIELD CITY COUNCIL        ,COMMUNITIES                   ,49028,SUPPORTED & TEMP ACCOM TEAM   ,6210,BED & BREAKFAST PAYMENTS      ,02/07/2015,3078,836.60,EARL MARSHALL GUEST HOUSE LTD           ,,GUEST HOUSES                  ,
SHEFFIELD CITY COUNCIL        ,PLACE                         ,24062,MGMT OF NRQ PROPERTIES        ,6210,RENTS                         ,02/07/2015,440765/1980              ,"7,493.75",HAMMERSON (SHEFFIELD NRQ) LTD           ,,PROPERTY DEVELOPERS           ,
SHEFFIELD CITY COUNCIL        ,COMMUNITIES                   ,49028,SUPPORTED & TEMP ACCOM TEAM   ,6210,BED & BREAKFAST PAYMENTS      ,02/07/2015,3071,859.14,EARL MARSHALL GUEST HOUSE LTD           ,,GUEST HOUSES                  ,
SHEFFIELD CITY COUNCIL        ,PLACE                         ,24062,MGMT OF NRQ PROPERTIES        ,6210,RENTS                         ,02/07/2015,440765/1968              ,"18,000.00",HAMMERSON (SHEFFIELD NRQ) LTD           ,,PROPERTY DEVELOPERS           ,
SHEFFIELD CITY COUNCIL        ,CYPF                          ,39047,ALDINE HOUSE                  ,5750,TRAINING EXPENDITURE          ,02/07/2015,CUKI0005765              ,"1,100.00",CRISIS PREVENTION INSTITUTE             ,,TRAINING CONSULTANTS          ,
SHEFFIELD CITY COUNCIL        ,PLACE                         ,97414,ARBOURTHORNE 5M'S REFURB      ,1147,DEMOLITION                    ,02/07/2015,YD20216046               ,"2,550.00",YEDL CASHIER                            ,,ELECTRICITY COMPANIES         ,
SHEFFIELD CITY COUNCIL        ,PLACE                         ,24062,MGMT OF NRQ PROPERTIES        ,6210,RENTS                         ,02/07/2015,440765/1977              ,"2,625.00",HAMMERSON (SHEFFIELD NRQ) LTD           ,,PROPERTY DEVELOPERS           ,
SHEFFIELD CITY COUNCIL        ,CYPF                          ,39517,IN CITY SEN PROVISION         ,8440,FEE EXPENSES                  ,02/07/2015,2,"1,423.00",ELMORE KINDERGARTEN (BROOMHILL)         ,,NURSERIES & CRECHES           ,
SHEFFIELD CITY COUNCIL        ,PLACE                         ,97414,ARBOURTHORNE 5M'S REFURB      ,1147,DEMOLITION                    ,02/07/2015,YD20216045               ,"1,088.00",YEDL CASHIER                            ,,ELECTRICITY COMPANIES         ,
SHEFFIELD CITY COUNCIL        ,CYPF                          ,39047,ALDINE HOUSE                  ,5750,TRAINING EXPENDITURE          ,02/07/2015,CUKI0005766              ,"1,100.00",CRISIS PREVENTION INSTITUTE             ,,TRAINING CONSULTANTS          ,
SHEFFIELD CITY COUNCIL        ,PLACE                         ,25043,MILLHOUSES PARK (CITY)        ,8550,OTHER SERVICES                ,02/07/2015,SI38226/JW               ,"3,307.50",WORKSOP TARMACADAM CO LTD               ,,ROAD CONSTRUCTION EQUIPMENT MN,
SHEFFIELD CITY COUNCIL        ,CYPF                          ,39047,ALDINE HOUSE                  ,6030,REPAIRS AND MTCE - RESPONSIVE ,02/07/2015,5749,299.49,MOORWOOD ELECTRICAL DES & INSTALL LTD   ,,ELECTRICIANS & ELECTRICAL CONT,
SHEFFIELD CITY COUNCIL        ,COMMUNITIES                   ,49190,CITY WIDE ALARM - GENERAL     ,6030,REPAIRS TO TENANTED PROPERTIES,02/07/2015,INV/50282334             ,774.24,TUNSTALL HEALTHCARE (UK) LIMITED        ,,TELECOMMUNICATIONS EQUIPMENT &,
SHEFFIELD CITY COUNCIL        ,RESOURCES                     ,15204,PFI 1                         ,6220,RATES                         ,02/07/2015,907,"22,062.85",PYRAMID SCHOOLS (SHEFFIELD) LTD         ,,LEASING SERVICES              ,
SHEFFIELD CITY COUNCIL        ,RESOURCES                     ,15204,PFI 1                         ,6270,SERVICE / PFI UNITARY CHARGE  ,02/07/2015,907,"925,562.33",PYRAMID SCHOOLS (SHEFFIELD) LTD         ,,LEASING SERVICES              ,
SHEFFIELD CITY COUNCIL        ,RESOURCES                     ,15204,PFI 1                         ,8440,FEE EXPENSES                  ,02/07/2015,907,"39,155.79",PYRAMID SCHOOLS (SHEFFIELD) LTD         ,,LEASING SERVICES              ,
SHEFFIELD CITY COUNCIL        ,COMMUNITIES                   ,49364,SUPPORTED HOUSING             ,8060,MATERIALS AND SUPPLIES GENERAL,02/07/2015,143532,276.12,H HARROLD & SONS LTD                    ,,LOCK SMITHS                   ,
SHEFFIELD CITY COUNCIL        ,COMMUNITIES                   ,49153,OTHER REPAIRS & FEES          ,6030,OTHER RESPONSIVE REPAIRS      ,02/07/2015,MAL-IN15384              ,350.00,MICRO ALARMS LTD                        ,,SECURITY EQUIPMENT INSTALLERS ,
SHEFFIELD CITY COUNCIL        ,COMMUNITIES                   ,49353,AREA NORTH WEST               ,6060,DECANTING/REMOVAL COSTS       ,02/07/2015,BT023980                 ,"1,512.86",BURNT TREE CROFT (SHEFFCARE LTD)        ,,RESIDENTIAL CARE HOMES        ,
SHEFFIELD CITY COUNCIL        ,PLACE                         ,22072,ADMIN SUPPORT                 ,7150,CAR ALLOWANCES                ,02/07/2015,736170A                  ,571.27,CITY CAR CLUB (UK) LTD                  ,,CAR RENTAL                    ,
SHEFFIELD CITY COUNCIL        ,COMMUNITIES                   ,49356,ESTATE & ENVIORMENTAL SERVICES,6090,TIPPING COSTS                 ,02/07/2015,FOR7638                  ,270.00,FORWARD ENVIRONMENTAL LIMITED           ,,PEST & VERMIN CONTROL         ,
SHEFFIELD CITY COUNCIL        ,PLACE                         ,22140,CAR PARKING MANAGEMENT        ,8540,SECURITY SERVICES             ,02/07/2015,R150531-41               ,"3,414.48",COBALT TELEPHONE TECHNOLOGIES LTD       ,,COMPUTER SYSTEMS & SOFTWARE (D,
SHEFFIELD CITY COUNCIL        ,COMMUNITIES                   ,49356,ESTATE & ENVIORMENTAL SERVICES,6090,TIPPING COSTS                 ,02/07/2015,FOR7699                  ,319.50,FORWARD ENVIRONMENTAL LIMITED           ,,PEST & VERMIN CONTROL         ,
SHEFFIELD CITY COUNCIL        ,POLICY PERFORMANCE AND COMMS  ,14020,PERFORMANCE & RESEARCH        ,8550,OTHER SERVICES                ,02/07/2015,HEX54000535976           ,"12,927.00",EXPERIAN LTD                            ,,CREDIT REFERENCE AGENCIES     ,
SHEFFIELD CITY COUNCIL        ,COMMUNITIES                   ,49364,SUPPORTED HOUSING             ,8050,FURNITURE PURCHASES           ,02/07/2015,SI0204334/SC0026673      ,"7,425.00",ANNAGHMORE AGENCIES                     ,,FURNITURE - WHOLESALE         ,
SHEFFIELD CITY COUNCIL        ,PLACE                         ,25094,PARKS OPS SOUTH & SOUTH EAST  ,8550,OTHER SERVICES                ,02/07/2015,24256,"2,147.60",STREETMASTER (SOUTH WALES) LTD          ,,GARDEN & PATIO FURNITURE MNFRS,
SHEFFIELD CITY COUNCIL        ,PLACE                         ,25002,GRAVES PARK(CITY)             ,8550,OTHER SERVICES                ,02/07/2015,24256,"3,221.40",STREETMASTER (SOUTH WALES) LTD          ,,GARDEN & PATIO FURNITURE MNFRS,
SHEFFIELD CITY COUNCIL        ,COMMUNITIES                   ,49387,PERFORMANCE PLANNING          ,8270,SUBSCRIPTIONS                 ,02/07/2015,2962,"18,566.80",HOUSEMARK LTD                           ,,EDUCATIONAL TRAINING PROVIDERS,
SHEFFIELD CITY COUNCIL        ,RESOURCES                     ,18029,CYCLE SCHEME                  ,8010,EQUIPMENT PURCHASE AND REPAIR ,02/07/2015,W281794                  ,583.30,CYCLESCHEME LTD                         ,,CYCLE ACCESSORIES             ,
SHEFFIELD CITY COUNCIL        ,RESOURCES                     ,18029,CYCLE SCHEME                  ,8010,EQUIPMENT PURCHASE AND REPAIR ,02/07/2015,W281796                  ,"2,246.06",CYCLESCHEME LTD                         ,,CYCLE ACCESSORIES             ,
SHEFFIELD CITY COUNCIL        ,CYPF                          ,33013,MADE IN SHEFFIELD             ,8440,FEE EXPENSES                  ,02/07/2015,113893570,"3,000.00",ROTHERHAM MBC                           ,,LOCAL GOVERNMENT              ,
SHEFFIELD CITY COUNCIL        ,PLACE                         ,25092,PARKS OPS EAST & NORTH EAST   ,7020,VEHICLE FUEL COSTS            ,02/07/2015,4652798,705.47,CERTAS ENERGY UK LTD                    ,,OIL FUEL DISTRIBUTORS         ,
SHEFFIELD CITY COUNCIL        ,CYPF                          ,33017,AMBITIONS SCR                 ,9120,OTHER AGENCIES                ,02/07/2015,113885600,"28,180.12",ROTHERHAM MBC                           ,,LOCAL GOVERNMENT              ,
SHEFFIELD CITY COUNCIL        ,CYPF                          ,33048,LSE SUB-CONTRACTORS           ,9120,OTHER AGENCIES                ,02/07/2015,114,"8,800.00",THE REALLY NEET PROJECT LTD             ,,EDUCATIONAL SERVICES          ,
SHEFFIELD CITY COUNCIL        ,CYPF                          ,33112,LDD PLACEMENTS AUG14-JUL15    ,9120,OTHER AGENCIES                ,02/07/2015,SCC/AB/09                ,658.00,SMELTINGS FARM EQUESTRIAN TRAINING LIMIT,,"RIDING SCHOOLS, LIVERY STABLES",
SHEFFIELD CITY COUNCIL        ,COMMUNITIES                   ,49465,DISABLED FACILITIES TEAM      ,5750,TRAINING EXPENDITURE          ,02/07/2015,36033,320.00,FERRET INFORMATION SYSTEMS LTD          ,,COMPUTER SYSTEMS & SOFTWARE (D,
SHEFFIELD CITY COUNCIL        ,CYPF                          ,33048,LSE SUB-CONTRACTORS           ,9120,OTHER AGENCIES                ,02/07/2015,113,"1,200.00",THE REALLY NEET PROJECT LTD             ,,EDUCATIONAL SERVICES          ,
SHEFFIELD CITY COUNCIL        ,CYPF                          ,39517,IN CITY SEN PROVISION         ,8440,FEE EXPENSES                  ,02/07/2015,02-Jul-15,"2,847.00",LODGE MOOR NURSERY LTD                  ,,NURSERIES & CRECHES           ,
SHEFFIELD CITY COUNCIL        ,PLACE                         ,90136,CHAUCER SQUARE MAINTENANCE    ,1194,OTHER FEES                    ,02/07/2015,SC323                    ,551.39,SALVINS CLEANING MANAGEMENT SERVICES    ,,CLEANING SERVICES - COMMERCIAL,
SHEFFIELD CITY COUNCIL        ,PLACE                         ,97837,EP DOOR ENTRY WORKS           ,1161,NC&A MAIN CONTRACT            ,02/07/2015,SH04054/10               ,"50,200.00",KIER SERVICES MAINTENANCE EAST          ,,CONSTRUCTION CONTRACTORS - GEN,
SHEFFIELD CITY COUNCIL        ,CYPF                          ,90757,FRA WORKS PROGRAMME - 14/15   ,1161,NC&A MAIN CONTRACT            ,02/07/2015,CY04359B/2               ,"69,300.00",RF JOINERY AND SHOPFITTING LTD          ,,JOINERS & CARPENTERS          ,
SHEFFIELD CITY COUNCIL        ,CYPF                          ,33048,LSE SUB-CONTRACTORS           ,9120,OTHER AGENCIES                ,02/07/2015,108,"1,200.00",THE REALLY NEET PROJECT LTD             ,,EDUCATIONAL SERVICES          ,
SHEFFIELD CITY COUNCIL        ,COMMUNITIES                   ,49852,SCHOOLS LIBRARY SERVICE       ,8080,LIBRARY MATERIALS             ,02/07/2015,310622,341.62,PETERS LTD                              ,,BOOKSELLERS                   ,
SHEFFIELD CITY COUNCIL        ,CYPF                          ,90548,SCHOOLS ACCESS INITIATIVE     ,1161,NC&A MAIN CONTRACT            ,02/07/2015,185000,"10,800.00",STANNAH LIFT SERVICES LTD.              ,,STAIRLIFTS - MNFRS & INSTALLER,
SHEFFIELD CITY COUNCIL        ,RESOURCES                     ,15133,STANIFORTH ROAD WORKSHOPS     ,7010,ROUTINE VEHICLE REPAIR & MTCE ,02/07/2015,8673,539.83,GPG 2000 LTD                            ,,CAR BODY REPAIRS              ,
SHEFFIELD CITY COUNCIL        ,RESOURCES                     ,15133,STANIFORTH ROAD WORKSHOPS     ,7010,ROUTINE VEHICLE REPAIR & MTCE ,02/07/2015,383,440.00,GEORGE CHILES T/A TRANSAXLE SERVICES    ,,GARAGE SERVICES               ,
SHEFFIELD CITY COUNCIL        ,RESOURCES                     ,15133,STANIFORTH ROAD WORKSHOPS     ,7010,ROUTINE VEHICLE REPAIR & MTCE ,02/07/2015,10218,465.00,ROBERTS MOTOR BODIES LIMITED            ,,CAR BODY REPAIRS              ,
SHEFFIELD CITY COUNCIL        ,RESOURCES                     ,15133,STANIFORTH ROAD WORKSHOPS     ,7010,ROUTINE VEHICLE REPAIR & MTCE ,02/07/2015,10221,814.00,ROBERTS MOTOR BODIES LIMITED            ,,CAR BODY REPAIRS              ,
SHEFFIELD CITY COUNCIL        ,RESOURCES                     ,15133,STANIFORTH ROAD WORKSHOPS     ,7010,ROUTINE VEHICLE REPAIR & MTCE ,02/07/2015,10223,755.00,ROBERTS MOTOR BODIES LIMITED            ,,CAR BODY REPAIRS              ,
SHEFFIELD CITY COUNCIL        ,RESOURCES                     ,15133,STANIFORTH ROAD WORKSHOPS     ,7010,ROUTINE VEHICLE REPAIR & MTCE ,02/07/2015,10224,352.70,ROBERTS MOTOR BODIES LIMITED            ,,CAR BODY REPAIRS              ,
SHEFFIELD CITY COUNCIL        ,RESOURCES                     ,15133,STANIFORTH ROAD WORKSHOPS     ,7010,ROUTINE VEHICLE REPAIR & MTCE ,02/07/2015,10220,598.00,ROBERTS MOTOR BODIES LIMITED            ,,CAR BODY REPAIRS              ,
SHEFFIELD CITY COUNCIL        ,RESOURCES                     ,15133,STANIFORTH ROAD WORKSHOPS     ,7010,ROUTINE VEHICLE REPAIR & MTCE ,02/07/2015,10222,935.83,ROBERTS MOTOR BODIES LIMITED            ,,CAR BODY REPAIRS              ,
SHEFFIELD CITY COUNCIL        ,RESOURCES                     ,15133,STANIFORTH ROAD WORKSHOPS     ,7010,ROUTINE VEHICLE REPAIR & MTCE ,02/07/2015,10219,"1,692.82",ROBERTS MOTOR BODIES LIMITED            ,,CAR BODY REPAIRS              ,
SHEFFIELD CITY COUNCIL        ,RESOURCES                     ,15133,STANIFORTH ROAD WORKSHOPS     ,7010,ROUTINE VEHICLE REPAIR & MTCE ,02/07/2015,513710,255.00,PLATTS HARRIS AGRIC. GROUP LTD.         ,,MACHINERY - INDUSTRIAL & COMME,
SHEFFIELD CITY COUNCIL        ,CYPF                          ,39148,DIRECT PAYMENTS               ,9190,DIRECT PAYMENTS               ,02/07/2015,J1197970                 ,"1,555.20",A4E                                     ,,TRAINING SERVICES             ,
SHEFFIELD CITY COUNCIL        ,COMMUNITIES                   ,44001,PURCHASING                    ,9190,DIRECT PAYMENTS               ,02/07/2015,J1197970                 ,679.68,REDACTED PERSONAL DATA,Social Community Care,CAREFIRST DIRECT PAYMENTS     ,
SHEFFIELD CITY COUNCIL        ,COMMUNITIES                   ,44001,PURCHASING                    ,9190,SUPPORT PLANNING COSTS        ,02/07/2015,J1197971                 ,"1,163.00",REDACTED PERSONAL DATA,Social Community Care,CAREFIRST DIRECT PAYMENTS     ,
SHEFFIELD CITY COUNCIL        ,COMMUNITIES                   ,42034,PURCHASING LEARNING DISABILITI,9250,INDEPENDENT DAY CARE          ,02/07/2015,2073,630.00,SPECTRUM ACTIVE (NOT FOR PROFIT)        ,,TRAINING CENTRES              ,
SHEFFIELD CITY COUNCIL        ,COMMUNITIES                   ,42034,PURCHASING LEARNING DISABILITI,9250,INDEPENDENT DAY CARE          ,02/07/2015,2086,304.00,SPECTRUM ACTIVE (NOT FOR PROFIT)        ,,TRAINING CENTRES              ,
SHEFFIELD CITY COUNCIL        ,COMMUNITIES                   ,42034,PURCHASING LEARNING DISABILITI,9250,INDEPENDENT DAY CARE          ,02/07/2015,2088,570.00,SPECTRUM ACTIVE (NOT FOR PROFIT)        ,,TRAINING CENTRES              ,
SHEFFIELD CITY COUNCIL        ,COMMUNITIES                   ,42034,PURCHASING LEARNING DISABILITI,9250,INDEPENDENT DAY CARE          ,02/07/2015,2090,722.00,SPECTRUM ACTIVE (NOT FOR PROFIT)        ,,TRAINING CENTRES              ,
SHEFFIELD CITY COUNCIL        ,COMMUNITIES                   ,46039,ADULT SOCIAL CARE PURCHASING  ,9250,INDEPENDENT DAY CARE          ,02/07/2015,2103,456.00,SPECTRUM ACTIVE (NOT FOR PROFIT)        ,,TRAINING CENTRES              ,
SHEFFIELD CITY COUNCIL        ,COMMUNITIES                   ,46039,ADULT SOCIAL CARE PURCHASING  ,9190,CITYWIDE SPOT                 ,02/07/2015,7813,360.00,SPRINGWOOD HOUSE (SHEFFCARE LTD)        ,,RESIDENTIAL CARE HOMES        ,
SHEFFIELD CITY COUNCIL        ,COMMUNITIES                   ,46039,ADULT SOCIAL CARE PURCHASING  ,9190,CITYWIDE SPOT                 ,02/07/2015,7818,360.00,SPRINGWOOD HOUSE (SHEFFCARE LTD)        ,,RESIDENTIAL CARE HOMES        ,
SHEFFIELD CITY COUNCIL        ,COMMUNITIES                   ,46039,ADULT SOCIAL CARE PURCHASING  ,9190,CITYWIDE SPOT                 ,02/07/2015,7850,360.00,SPRINGWOOD HOUSE (SHEFFCARE LTD)        ,,RESIDENTIAL CARE HOMES        ,
SHEFFIELD CITY COUNCIL        ,COMMUNITIES                   ,46039,ADULT SOCIAL CARE PURCHASING  ,9190,CITYWIDE SPOT                 ,02/07/2015,7852,360.00,SPRINGWOOD HOUSE (SHEFFCARE LTD)        ,,RESIDENTIAL CARE HOMES        ,
SHEFFIELD CITY COUNCIL        ,COMMUNITIES                   ,46039,ADULT SOCIAL CARE PURCHASING  ,9190,CITYWIDE SPOT                 ,02/07/2015,7857,360.00,SPRINGWOOD HOUSE (SHEFFCARE LTD)        ,,RESIDENTIAL CARE HOMES        ,
SHEFFIELD CITY COUNCIL        ,COMMUNITIES                   ,46039,ADULT SOCIAL CARE PURCHASING  ,9190,CITYWIDE SPOT                 ,02/07/2015,7864,360.00,SPRINGWOOD HOUSE (SHEFFCARE LTD)        ,,RESIDENTIAL CARE HOMES        ,
SHEFFIELD CITY COUNCIL        ,COMMUNITIES                   ,42034,PURCHASING LEARNING DISABILITI,9190,CITYWIDE SPOT                 ,02/07/2015,1274,739.02,REDACTED PERSONAL DATA,,HOME CARE SERVICES            ,
SHEFFIELD CITY COUNCIL        ,COMMUNITIES                   ,42034,PURCHASING LEARNING DISABILITI,9190,CITYWIDE SPOT                 ,02/07/2015,1419,688.80,REDACTED PERSONAL DATA,,HOME CARE SERVICES            ,
SHEFFIELD CITY COUNCIL        ,COMMUNITIES                   ,42034,PURCHASING LEARNING DISABILITI,9190,CITYWIDE SPOT                 ,02/07/2015,1426,803.60,REDACTED PERSONAL DATA,,HOME CARE SERVICES            ,
SHEFFIELD CITY COUNCIL        ,COMMUNITIES                   ,42034,PURCHASING LEARNING DISABILITI,9190,CITYWIDE SPOT                 ,02/07/2015,1428,344.40,REDACTED PERSONAL DATA,,HOME CARE SERVICES            ,
SHEFFIELD CITY COUNCIL        ,COMMUNITIES                   ,42034,PURCHASING LEARNING DISABILITI,9190,CITYWIDE SPOT                 ,02/07/2015,1165,688.80,REDACTED PERSONAL DATA,,HOME CARE SERVICES            ,
SHEFFIELD CITY COUNCIL        ,COMMUNITIES                   ,42034,PURCHASING LEARNING DISABILITI,9190,CITYWIDE SPOT                 ,02/07/2015,1451,459.20,REDACTED PERSONAL DATA,,HOME CARE SERVICES            ,
SHEFFIELD CITY COUNCIL        ,COMMUNITIES                   ,46039,ADULT SOCIAL CARE PURCHASING  ,9190,CITYWIDE SPOT                 ,02/07/2015,7787,360.00,SPRINGWOOD HOUSE (SHEFFCARE LTD)        ,,RESIDENTIAL CARE HOMES        ,
SHEFFIELD CITY COUNCIL        ,COMMUNITIES                   ,42034,PURCHASING LEARNING DISABILITI,9190,CITYWIDE SPOT                 ,02/07/2015,1479,266.22,REDACTED PERSONAL DATA,,HOME CARE SERVICES            ,
SHEFFIELD CITY COUNCIL        ,COMMUNITIES                   ,42034,PURCHASING LEARNING DISABILITI,9190,CITYWIDE SPOT                 ,02/07/2015,1482/1483                ,692.80,REDACTED PERSONAL DATA,,HOME CARE SERVICES            ,
SHEFFIELD CITY COUNCIL        ,COMMUNITIES                   ,42034,PURCHASING LEARNING DISABILITI,9190,CITYWIDE SPOT                 ,02/07/2015,2071,570.00,SPECTRUM ACTIVE (NOT FOR PROFIT)        ,,TRAINING CENTRES              ,
SHEFFIELD CITY COUNCIL        ,COMMUNITIES                   ,46039,ADULT SOCIAL CARE PURCHASING  ,9190,CITYWIDE SPOT                 ,02/07/2015,7788,360.00,SPRINGWOOD HOUSE (SHEFFCARE LTD)        ,,RESIDENTIAL CARE HOMES        ,
SHEFFIELD CITY COUNCIL        ,COMMUNITIES                   ,42034,PURCHASING LEARNING DISABILITI,9190,CITYWIDE SPOT                 ,02/07/2015,27684,"3,160.68",SPECTRUM SOCIAL CARE LTD                ,,EMPLOYMENT & RECRUITMENT AGENC,
SHEFFIELD CITY COUNCIL        ,COMMUNITIES                   ,46039,ADULT SOCIAL CARE PURCHASING  ,9190,CITYWIDE SPOT                 ,02/07/2015,27684,427.44,SPECTRUM SOCIAL CARE LTD                ,,EMPLOYMENT & RECRUITMENT AGENC,
SHEFFIELD CITY COUNCIL        ,COMMUNITIES                   ,42034,PURCHASING LEARNING DISABILITI,9190,CITYWIDE SPOT                 ,02/07/2015,2805,"3,902.92",ABBEYCARE & NURSING HOME LTD            ,,RESIDENTIAL CARE HOMES        ,
SHEFFIELD CITY COUNCIL        ,COMMUNITIES                   ,42034,PURCHASING LEARNING DISABILITI,9190,FUNDED HOME SUPPORT           ,02/07/2015,2806,644.00,ABBEYCARE & NURSING HOME LTD            ,,RESIDENTIAL CARE HOMES        ,
SHEFFIELD CITY COUNCIL        ,COMMUNITIES                   ,42034,PURCHASING LEARNING DISABILITI,9190,FUNDED HOME SUPPORT           ,02/07/2015,2807,"1,652.88",ABBEYCARE & NURSING HOME LTD            ,,RESIDENTIAL CARE HOMES        ,
SHEFFIELD CITY COUNCIL        ,COMMUNITIES                   ,42034,PURCHASING LEARNING DISABILITI,9190,CITYWIDE SPOT                 ,02/07/2015,2807,"2,924.12",ABBEYCARE & NURSING HOME LTD            ,,RESIDENTIAL CARE HOMES        ,
SHEFFIELD CITY COUNCIL        ,COMMUNITIES                   ,42034,PURCHASING LEARNING DISABILITI,9190,FUNDED HOME SUPPORT           ,02/07/2015,2808,"8,931.68",ABBEYCARE & NURSING HOME LTD            ,,RESIDENTIAL CARE HOMES        ,
SHEFFIELD CITY COUNCIL        ,COMMUNITIES                   ,42034,PURCHASING LEARNING DISABILITI,9190,CITYWIDE SPOT                 ,02/07/2015,2809,"3,781.72",ABBEYCARE & NURSING HOME LTD            ,,RESIDENTIAL CARE HOMES        ,
SHEFFIELD CITY COUNCIL        ,COMMUNITIES                   ,42034,PURCHASING LEARNING DISABILITI,9190,FUNDED HOME SUPPORT           ,02/07/2015,2809,"1,478.44",ABBEYCARE & NURSING HOME LTD            ,,RESIDENTIAL CARE HOMES        ,
SHEFFIELD CITY COUNCIL        ,COMMUNITIES                   ,42034,PURCHASING LEARNING DISABILITI,9190,CITYWIDE SPOT                 ,02/07/2015,2810,"7,315.04",ABBEYCARE & NURSING HOME LTD            ,,RESIDENTIAL CARE HOMES        ,
SHEFFIELD CITY COUNCIL        ,COMMUNITIES                   ,42034,PURCHASING LEARNING DISABILITI,9190,CITYWIDE SPOT                 ,02/07/2015,2811,344.34,ABBEYCARE & NURSING HOME LTD            ,,RESIDENTIAL CARE HOMES        ,
SHEFFIELD CITY COUNCIL        ,COMMUNITIES                   ,46039,ADULT SOCIAL CARE PURCHASING  ,9190,CITYWIDE SPOT                 ,02/07/2015,2812,"3,618.80",ABBEYCARE & NURSING HOME LTD            ,,RESIDENTIAL CARE HOMES        ,
SHEFFIELD CITY COUNCIL        ,COMMUNITIES                   ,42034,PURCHASING LEARNING DISABILITI,9190,FUNDED HOME SUPPORT           ,02/07/2015,2813,"2,803.50",ABBEYCARE & NURSING HOME LTD            ,,RESIDENTIAL CARE HOMES        ,
SHEFFIELD CITY COUNCIL        ,COMMUNITIES                   ,42034,PURCHASING LEARNING DISABILITI,9190,CITYWIDE SPOT                 ,02/07/2015,2815,689.00,ABBEYCARE & NURSING HOME LTD            ,,RESIDENTIAL CARE HOMES        ,
SHEFFIELD CITY COUNCIL        ,COMMUNITIES                   ,46039,ADULT SOCIAL CARE PURCHASING  ,9190,CITYWIDE SPOT                 ,02/07/2015,2816,"3,634.16",ABBEYCARE & NURSING HOME LTD            ,,RESIDENTIAL CARE HOMES        ,
SHEFFIELD CITY COUNCIL        ,COMMUNITIES                   ,42034,PURCHASING LEARNING DISABILITI,9240,SUPPORTED LIVING CARE         ,02/07/2015,2817,343.00,ABBEYCARE & NURSING HOME LTD            ,,RESIDENTIAL CARE HOMES        ,
SHEFFIELD CITY COUNCIL        ,COMMUNITIES                   ,46039,ADULT SOCIAL CARE PURCHASING  ,9190,CITYWIDE SPOT                 ,02/07/2015,2818,371.00,ABBEYCARE & NURSING HOME LTD            ,,RESIDENTIAL CARE HOMES        ,
SHEFFIELD CITY COUNCIL        ,COMMUNITIES                   ,46039,ADULT SOCIAL CARE PURCHASING  ,9190,CITYWIDE SPOT                 ,02/07/2015,7795,400.00,SPRINGWOOD HOUSE (SHEFFCARE LTD)        ,,RESIDENTIAL CARE HOMES        ,
SHEFFIELD CITY COUNCIL        ,CYPF                          ,39284,INDEPENDENT FOSTERING PLACEMEN,9270,INDEPENDENT FOSTERING         ,02/07/2015,147155A                  ,442.84,REDACTED PERSONAL DATA,,ADOPTION & FOSTERING          ,
SHEFFIELD CITY COUNCIL        ,CYPF                          ,39405,LEAVING CARE                  ,9270,CARELEAVERS ACCOMMODATION     ,02/07/2015,CHI001033                ,"2,428.60",ADVANCED CHILDCARE                      ,,CHILDCARE SERVICES            ,
SHEFFIELD CITY COUNCIL        ,COMMUNITIES                   ,46039,ADULT SOCIAL CARE PURCHASING  ,9210,CONTINUING NURSING CARE       ,02/07/2015,J1093453 290315          ,"2,100.00",RED HOMES HEALTHCARE                    ,,NURSING HOMES                 ,
SHEFFIELD CITY COUNCIL        ,COMMUNITIES                   ,46039,ADULT SOCIAL CARE PURCHASING  ,9210,CONTINUING NURSING CARE       ,02/07/2015,J1121099 260415          ,"2,100.00",RED HOMES HEALTHCARE                    ,,NURSING HOMES                 ,
SHEFFIELD CITY COUNCIL        ,COMMUNITIES                   ,46039,ADULT SOCIAL CARE PURCHASING  ,9210,CONTINUING NURSING CARE       ,02/07/2015,J1143154 240515          ,"2,100.00",RED HOMES HEALTHCARE                    ,,NURSING HOMES                 ,
SHEFFIELD CITY COUNCIL        ,COMMUNITIES                   ,46039,ADULT SOCIAL CARE PURCHASING  ,9210,CONTINUING NURSING CARE       ,02/07/2015,J1169941 210615          ,"2,100.00",RED HOMES HEALTHCARE                    ,,NURSING HOMES                 ,
SHEFFIELD CITY COUNCIL        ,COMMUNITIES                   ,46039,ADULT SOCIAL CARE PURCHASING  ,9210,CONTINUING NURSING CARE       ,02/07/2015,J1186026 190715          ,"2,100.00",RED HOMES HEALTHCARE                    ,,NURSING HOMES                 ,
SHEFFIELD CITY COUNCIL        ,COMMUNITIES                   ,46039,ADULT SOCIAL CARE PURCHASING  ,9200,CONTINUING RESIDENTIAL CARE   ,02/07/2015,J1186234 190715          ,"1,616.80",TRUST CARE LTD                          ,,RESIDENTIAL CARE HOMES        ,
SHEFFIELD CITY COUNCIL        ,COMMUNITIES                   ,46039,ADULT SOCIAL CARE PURCHASING  ,9210,CONTINUING NURSING CARE       ,02/07/2015,J1197965 190715          ,"13,261.20",FULWOOD LODGE NURSING HOME              ,,NURSING HOMES                 ,
SHEFFIELD CITY COUNCIL        ,COMMUNITIES                   ,46039,ADULT SOCIAL CARE PURCHASING  ,9200,CONTINUING RESIDENTIAL CARE   ,02/07/2015,J1197967 190715          ,"3,933.00",DARNALL VIEW RESIDENTIAL HOME           ,,RESIDENTIAL CARE HOMES        ,
SHEFFIELD CITY COUNCIL        ,PLACE                         ,97334,DISABLED GRANTS               ,1165,NC&A OTHER                    ,03/07/2015,ERS INVOICE122219        ,"3,681.00",WESTWOOD JOINERY & CONSTRUCTION LTD     ,,CONSTRUCTION CONTRACTORS - GEN,
SHEFFIELD CITY COUNCIL        ,PLACE                         ,97334,DISABLED GRANTS               ,1165,NC&A OTHER                    ,03/07/2015,ERS INVOICE122220        ,"4,446.00",STANNAH LIFT SERVICES LTD.              ,,STAIRLIFTS - MNFRS & INSTALLER,
SHEFFIELD CITY COUNCIL        ,PLACE                         ,97334,DISABLED GRANTS               ,1165,NC&A OTHER                    ,03/07/2015,ERS INVOICE122221        ,"4,236.00",STANNAH LIFT SERVICES LTD.              ,,STAIRLIFTS - MNFRS & INSTALLER,
SHEFFIELD CITY COUNCIL        ,PLACE                         ,97334,DISABLED GRANTS               ,1165,NC&A OTHER                    ,03/07/2015,ERS INVOICE122222        ,"4,740.00",ABBEYDALE SHOWERS                       ,,ELECTRICIANS & ELECTRICAL CONT,
SHEFFIELD CITY COUNCIL        ,PLACE                         ,97334,DISABLED GRANTS               ,1165,NC&A OTHER                    ,03/07/2015,ERS INVOICE122223        ,"3,895.00",BANCROFT PLUMBING & HEATING LTD         ,,PLUMBERS                      ,
SHEFFIELD CITY COUNCIL        ,PLACE                         ,97334,DISABLED GRANTS               ,1165,NC&A OTHER                    ,03/07/2015,ERS INVOICE122224        ,"10,469.15",YORKSHIRE CONSTRUCTION LTD              ,,BUILDERS                      ,
SHEFFIELD CITY COUNCIL        ,CYPF                          ,39532,EARLY YEARS SEN TEAM          ,8440,FEE EXPENSES                  ,03/07/2015,ERS INVOICE122225        ,"1,104.00",DARNALL COMMUNITY NURSERY               ,,"PLAYGROUPS, NURSERIES & CRECHE",
SHEFFIELD CITY COUNCIL        ,CYPF                          ,33007,VSP DELIVER                   ,9120,OTHER AGENCIES                ,03/07/2015,ERS INVOICE122230        ,301.50,DIMENSIONS TRAINING SOLUTIONS           ,,HAIRDRESSING SCHOOLS          ,
SHEFFIELD CITY COUNCIL        ,COMMUNITIES                   ,46039,ADULT SOCIAL CARE PURCHASING  ,8470,LEGAL FEES                    ,03/07/2015,ERS INVOICE122232        ,400.00,HM COURTS & TRIBUNALS SERVICE           ,,COURTS                        ,
SHEFFIELD CITY COUNCIL        ,CYPF                          ,33007,VSP DELIVER                   ,9120,OTHER AGENCIES                ,03/07/2015,ERS INVOICE122262        ,594.00,AGE UK TRADING LTD (TRAINING DIVISION)  ,,TRAINING SERVICES             ,
SHEFFIELD CITY COUNCIL        ,CYPF                          ,33007,VSP DELIVER                   ,9120,OTHER AGENCIES                ,03/07/2015,ERS INVOICE122265        ,"2,110.50",HEELEY CITY FARM                        ,,CHARITIES & VOLUNTARY ORGANISA,
SHEFFIELD CITY COUNCIL        ,CYPF                          ,33007,VSP DELIVER                   ,9120,OTHER AGENCIES                ,03/07/2015,ERS INVOICE122267        ,924.00,THE MUSICAL WORKS                       ,,COMMUNITY PROJECTS            ,
SHEFFIELD CITY COUNCIL        ,CYPF                          ,33007,VSP DELIVER                   ,9120,OTHER AGENCIES                ,03/07/2015,ERS INVOICE122269        ,536.00,NACRO                                   ,,CHARITIES & VOLUNTARY ORGANISA,
SHEFFIELD CITY COUNCIL        ,CYPF                          ,33007,VSP DELIVER                   ,9120,OTHER AGENCIES                ,03/07/2015,ERS INVOICE122271        ,"1,959.75",WHITE ROSE SCHOOLS LTD                  ,,BEAUTY SCHOOLS                ,
SHEFFIELD CITY COUNCIL        ,CYPF                          ,33007,VSP DELIVER                   ,9120,OTHER AGENCIES                ,03/07/2015,ERS INVOICE122272        ,"2,112.00",THE SHARKS                              ,,SPORTS CLUBS & ASSOCIATIONS   ,
SHEFFIELD CITY COUNCIL        ,CYPF                          ,38049,PARENTING STRATEGY            ,8040,LEARNING RESOURCES            ,03/07/2015,INUK6853                 ,761.17,TRIPLE P UK LIMITED                     ,,EDUCATIONAL TRAINING PROVIDERS,
SHEFFIELD CITY COUNCIL        ,PLACE                         ,22176,CYCLING ENGLAND               ,8440,FEE EXPENSES                  ,03/07/2015,#3722                    ,"5,120.00",CYCLE EXPERIENCE LIMITED (PART OF TTC GR,,CYCLES - RENTING & LEASING    ,
SHEFFIELD CITY COUNCIL        ,PLACE                         ,22176,CYCLING ENGLAND               ,8440,FEE EXPENSES                  ,03/07/2015,3805,"1,280.00",CYCLE EXPERIENCE LIMITED (PART OF TTC GR,,CYCLES - RENTING & LEASING    ,
SHEFFIELD CITY COUNCIL        ,PLACE                         ,28100,BUSINESS GROWTH TEAM          ,8550,OTHER SERVICES                ,03/07/2015,SCC-1120-0515-NL         ,"25,984.14",NEPRO LIMITED                           ,,BUSINESS & MANAGEMENT CONSULTA,
SHEFFIELD CITY COUNCIL        ,PLACE                         ,25072,WOODLANDS                     ,8060,MATERIALS AND SUPPLIES GENERAL,03/07/2015,185627,256.60,FOSTERS GARDEN MACHINERY                ,,GARDEN CENTRES & NURSERIES    ,
SHEFFIELD CITY COUNCIL        ,PLACE                         ,25078,ECCLESALL WOODS SAWMILL SITE  ,8260,WOODLAND DEVELOPMENT EXPENSES ,03/07/2015,12,635.00,GROWTHEATRE CIC                         ,,THEATRE COMPANIES             ,
SHEFFIELD CITY COUNCIL        ,CYPF                          ,32046,OUTDOOR EDUCATION             ,8130,CATERING SUPPLIES             ,03/07/2015,870429,254.58,MAKRO WHOLESALERS LTD                   ,,CASH & CARRY WHOLESALERS      ,
SHEFFIELD CITY COUNCIL        ,COMMUNITIES                   ,49755,COMMUNITY WELL BEING PROGRAMME,9030,HEALTH                        ,03/07/2015,SOARCO/1900              ,"1,060.00",SOAR COMMUNITY                          ,,PUBLIC HEALTH SUPPLIERS       ,
SHEFFIELD CITY COUNCIL        ,CYPF                          ,33018,100 APPRENTICES               ,9120,OTHER AGENCIES                ,03/07/2015,02-Jun-15,"1,479.60",195 HAIRLINES MRS J A SHIRT T/A         ,,HAIRDRESSERS - UNISEX         ,
SHEFFIELD CITY COUNCIL        ,COMMUNITIES                   ,49725,DOMESTIC ABUSE                ,8620,COMPUTER & HARDWARE PURCHASES ,03/07/2015,12052015/13365           ,"3,826.73",ESP PROJECTS LTD.                       ,,COMPUTER SYSTEMS & SOFTWARE (D,
SHEFFIELD CITY COUNCIL        ,COMMUNITIES                   ,49725,DOMESTIC ABUSE                ,9030,HEALTH                        ,03/07/2015,3197,"85,158.75",ACTION HOUSING ASSOCIATION LIMITED (SP) ,,HOME SUPPORT SERVICES         ,
SHEFFIELD CITY COUNCIL        ,POLICY PERFORMANCE AND COMMS  ,18003,COMMUNICATIONS                ,8550,OTHER SERVICES                ,03/07/2015,267109,697.50,OTW IMAGING LTD.                        ,,PRINTERS                      ,
SHEFFIELD CITY COUNCIL        ,CYPF                          ,90764,PRINCE EDWARD PRIMARY         ,1192,DESIGN FEES                   ,03/07/2015,SI-01567                 ,"52,793.00",EDUCATION FUNDING AGENCY                ,,CONSTRUCTION CONTRACTORS - GEN,
SHEFFIELD CITY COUNCIL        ,COMMUNITIES                   ,49725,DOMESTIC ABUSE                ,9030,HEALTH                        ,03/07/2015,3198,"21,562.50",ACTION HOUSING ASSOCIATION LIMITED (SP) ,,HOME SUPPORT SERVICES         ,
SHEFFIELD CITY COUNCIL        ,POLICY PERFORMANCE AND COMMS  ,18003,COMMUNICATIONS                ,8550,OTHER SERVICES                ,03/07/2015,152323,"1,920.00",J W NORTHEND LIMITED                    ,,PRINTERS                      ,
SHEFFIELD CITY COUNCIL        ,PLACE                         ,25092,PARKS OPS EAST & NORTH EAST   ,7010,ROUTINE VEHICLE REPAIR & MTCE ,03/07/2015,407817,"1,325.50",PLATTS HARRIS AGRICULTURAL GROUP        ,,MACHINERY - INDUSTRIAL & COMME,
SHEFFIELD CITY COUNCIL        ,COMMUNITIES                   ,49364,SUPPORTED HOUSING             ,6020,REPAIRS AND MTCE - PROGRAMMED ,03/07/2015,TCA/SCC007               ,450.00,TIN CAN ALLEY - ALISTAIR HIGGINS TA     ,,PAINTERS & DECORATORS         ,
SHEFFIELD CITY COUNCIL        ,CYPF                          ,33018,100 APPRENTICES               ,9120,OTHER AGENCIES                ,03/07/2015,29-Sep-14,428.80,MISS L A READMAN T/A LOCXX HAIRDRESSING ,,HAIRDRESSERS - UNISEX         ,
SHEFFIELD CITY COUNCIL        ,CYPF                          ,33018,100 APPRENTICES               ,9120,OTHER AGENCIES                ,03/07/2015,02-Jun-15,"1,552.21",MISS L A READMAN T/A LOCXX HAIRDRESSING ,,HAIRDRESSERS - UNISEX         ,
SHEFFIELD CITY COUNCIL        ,PLACE                         ,23038,PEST CONTROL                  ,8010,EQUIPMENT PURCHASE AND REPAIR ,03/07/2015,SI02-0068605             ,"1,836.31",KILLGERM CHEMICALS LTD                  ,,PEST & VERMIN CONTROL PRODUCTS,
SHEFFIELD CITY COUNCIL        ,PLACE                         ,97414,ARBOURTHORNE 5M'S REFURB      ,1143,COMPENSATION                  ,03/07/2015,807595,379.06,PICKFORDS                               ,,REMOVALS - OVERSEAS           ,
SHEFFIELD CITY COUNCIL        ,PLACE                         ,23038,PEST CONTROL                  ,8010,EQUIPMENT PURCHASE AND REPAIR ,03/07/2015,SI02-0063572             ,797.80,KILLGERM CHEMICALS LTD                  ,,PEST & VERMIN CONTROL PRODUCTS,
SHEFFIELD CITY COUNCIL        ,PLACE                         ,23038,PEST CONTROL                  ,8010,EQUIPMENT PURCHASE AND REPAIR ,03/07/2015,SI02-0066572             ,559.44,KILLGERM CHEMICALS LTD                  ,,PEST & VERMIN CONTROL PRODUCTS,
SHEFFIELD CITY COUNCIL        ,CYPF                          ,32046,OUTDOOR EDUCATION             ,8440,FEE EXPENSES                  ,03/07/2015,1533,300.00,SILVER FOX TRAINING LTD                 ,,EDUCATIONAL TRAINING PROVIDERS,
SHEFFIELD CITY COUNCIL        ,CYPF                          ,32046,OUTDOOR EDUCATION             ,6110,CLEANING/DOMESTIC MAT./SUPPLY ,03/07/2015,11317125,"1,440.11",NISBETS                                 ,,CATERING EQUIPMENT            ,
SHEFFIELD CITY COUNCIL        ,RESOURCES                     ,19347,CLAIMS                        ,8470,LEGAL FEES                    ,03/07/2015,01-15-0028277/1/SHEF03   ,"8,233.00",KENNEDYS LAW LLP                        ,,SOLICITORS                    ,
SHEFFIELD CITY COUNCIL        ,RESOURCES                     ,19347,CLAIMS                        ,8470,LEGAL FEES                    ,03/07/2015,01-15-0023870/1/SHEF03   ,740.50,KENNEDYS LAW LLP                        ,,SOLICITORS                    ,
SHEFFIELD CITY COUNCIL        ,RESOURCES                     ,19347,CLAIMS                        ,8470,LEGAL FEES                    ,03/07/2015,01-15-0028279/1/SHEF02   ,350.00,KENNEDYS LAW LLP                        ,,SOLICITORS                    ,
SHEFFIELD CITY COUNCIL        ,RESOURCES                     ,19347,CLAIMS                        ,8470,LEGAL FEES                    ,03/07/2015,01-15-0023528/1/SHEF03   ,351.00,KENNEDYS LAW LLP                        ,,SOLICITORS                    ,
SHEFFIELD CITY COUNCIL        ,RESOURCES                     ,19347,CLAIMS                        ,8470,LEGAL FEES                    ,03/07/2015,01-15-0023392/1/SHE114   ,"1,116.00",KENNEDYS LAW LLP                        ,,SOLICITORS                    ,
SHEFFIELD CITY COUNCIL        ,RESOURCES                     ,19347,CLAIMS                        ,8470,LEGAL FEES                    ,03/07/2015,01-15-0023409/1/SHEF03   ,"1,625.00",KENNEDYS LAW LLP                        ,,SOLICITORS                    ,
SHEFFIELD CITY COUNCIL        ,RESOURCES                     ,19347,CLAIMS                        ,8470,LEGAL FEES                    ,03/07/2015,01-15-0023408/1/SHEF03   ,758.00,KENNEDYS LAW LLP                        ,,SOLICITORS                    ,
SHEFFIELD CITY COUNCIL        ,RESOURCES                     ,19347,CLAIMS                        ,8470,LEGAL FEES                    ,03/07/2015,01-15-0023525/1/SHE113   ,575.00,KENNEDYS LAW LLP                        ,,SOLICITORS                    ,
SHEFFIELD CITY COUNCIL        ,RESOURCES                     ,19347,CLAIMS                        ,8470,LEGAL FEES                    ,03/07/2015,01-15-0023695/1/SHEF03   ,"1,100.00",KENNEDYS LAW LLP                        ,,SOLICITORS                    ,
SHEFFIELD CITY COUNCIL        ,PLACE                         ,23038,PEST CONTROL                  ,8530,TIPPING CHARGES               ,03/07/2015,49285,697.20,MHH CONTRACTING LTD                     ,,EXCAVATION & GROUNDWORK CONTRA,
SHEFFIELD CITY COUNCIL        ,RESOURCES                     ,15201,CARBROOK                      ,6020,REPAIRS AND MTCE - PROGRAMMED ,03/07/2015,38070,370.29,MOTIVATION (TRAFFIC CONTROL) LTD        ,,"FENCE, GATE & BARRIER SUPPLIER",
SHEFFIELD CITY COUNCIL        ,CYPF                          ,32046,OUTDOOR EDUCATION             ,8130,CATERING SUPPLIES             ,03/07/2015,3042,"1,509.60",HAZEL'S QUALITY CATERING LTD            ,,CATERERS                      ,
SHEFFIELD CITY COUNCIL        ,CYPF                          ,32046,OUTDOOR EDUCATION             ,8130,CATERING SUPPLIES             ,03/07/2015,3039,"1,496.60",HAZEL'S QUALITY CATERING LTD            ,,CATERERS                      ,
SHEFFIELD CITY COUNCIL        ,CYPF                          ,32046,OUTDOOR EDUCATION             ,8350,MISCELLANEOUS EXPENSES        ,03/07/2015,62588633,418.24,PHS GROUP PLC                           ,,TOWEL SUPPLY & WASHROOM SERVIC,
SHEFFIELD CITY COUNCIL        ,CYPF                          ,32046,OUTDOOR EDUCATION             ,8130,CATERING SUPPLIES             ,03/07/2015,14,460.00, O'REILLYS DELI                         ,,CATERING FOOD & DRINK SUPPLIER,
SHEFFIELD CITY COUNCIL        ,CYPF                          ,32046,OUTDOOR EDUCATION             ,8440,FEE EXPENSES                  ,03/07/2015,11579-I1                 ,300.00,GRAFIKA LIMITED                         ,,WEB SITE DESIGN               ,
SHEFFIELD CITY COUNCIL        ,CYPF                          ,39567,YOUTH JUSTICE SERVICE         ,5750,TRAINING EXPENDITURE          ,03/07/2015,114,672.00,WRIGHTLINK                              ,,TRAINING CONSULTANTS          ,
SHEFFIELD CITY COUNCIL        ,PLACE                         ,23004,KENNELLING                    ,8010,EQUIPMENT PURCHASE AND REPAIR ,03/07/2015,924945897,319.90,ARCO LTD                                ,,SAFETY EQUIPMENT & CLOTHING   ,
SHEFFIELD CITY COUNCIL        ,PLACE                         ,25151,NORTON NURSERY                ,8060,MATERIALS AND SUPPLIES GENERAL,03/07/2015,FY371/1                  ,492.00,J PUGH LEWIS LIMITED                    ,,FENCING CONTRACTORS           ,
SHEFFIELD CITY COUNCIL        ,CYPF                          ,39282,CARE PROCEEDINGS (LEGAL FEES) ,8470,LEGAL FEES                    ,03/07/2015,6400,325.44,FORENSIC TESTING SERVICE LTD            ,,MEDICAL & DENTAL LABORATORIES ,
SHEFFIELD CITY COUNCIL        ,CYPF                          ,32046,OUTDOOR EDUCATION             ,8130,CATERING SUPPLIES             ,03/07/2015,3050,861.30,HAZEL'S QUALITY CATERING LTD            ,,CATERERS                      ,
SHEFFIELD CITY COUNCIL        ,PLACE                         ,22176,CYCLING ENGLAND               ,8440,FEE EXPENSES                  ,03/07/2015,#3908                    ,"8,920.00",CYCLE EXPERIENCE LIMITED (PART OF TTC GR,,CYCLES - RENTING & LEASING    ,
SHEFFIELD CITY COUNCIL        ,CYPF                          ,38221,C & YP 5-19                   ,5750,TRAINING EXPENDITURE          ,03/07/2015,SO1083433                ,299.00,THE KNOWLEDGE ACADEMY                   ,,EDUCATIONAL TRAINING PROVIDERS,
SHEFFIELD CITY COUNCIL        ,CYPF                          ,33108,AMBITIONS - SHEFFIELD         ,8440,FEE EXPENSES                  ,03/07/2015,505409,"13,460.00",LEARNDIRECT LIMITED                     ,,ADULT EDUCATION CENTRES       ,
SHEFFIELD CITY COUNCIL        ,COMMUNITIES                   ,44012,PARTNERSHIP & GRANT AID MH    ,9160,PARTNERSHIP CONTRACTS         ,03/07/2015,693,"7,332.77",SHEFFIELD CITIZENS ADVICE AND LAW CENTRE,,COUNSELLING & ADVICE SERVICES ,
SHEFFIELD CITY COUNCIL        ,COMMUNITIES                   ,49356,ESTATE & ENVIORMENTAL SERVICES,8440,FEE EXPENSES                  ,03/07/2015,2074,710.00,RECYCLING REVOLUTION                    ,,RECYCLING SERVICES            ,
SHEFFIELD CITY COUNCIL        ,CYPF                          ,36023,CATERING CONTRACT             ,8440,FEE EXPENSES                  ,03/07/2015,1822442,480.76,G4S CASH SOLUTIONS (UK) LIMITED         ,,SECURITY SERVICES             ,
SHEFFIELD CITY COUNCIL        ,CYPF                          ,36023,CATERING CONTRACT             ,8440,FEE EXPENSES                  ,03/07/2015,01819079/338328/339300   ,"1,623.31",G4S CASH SOLUTIONS (UK) LIMITED         ,,SECURITY SERVICES             ,
SHEFFIELD CITY COUNCIL        ,COMMUNITIES                   ,49725,DOMESTIC ABUSE                ,9030,HEALTH                        ,03/07/2015,3210,"7,187.50",ACTION HOUSING ASSOCIATION LIMITED (SP) ,,HOME SUPPORT SERVICES         ,
SHEFFIELD CITY COUNCIL        ,COMMUNITIES                   ,49725,DOMESTIC ABUSE                ,9030,HEALTH                        ,03/07/2015,3209,"28,386.25",ACTION HOUSING ASSOCIATION LIMITED (SP) ,,HOME SUPPORT SERVICES         ,
SHEFFIELD CITY COUNCIL        ,CYPF                          ,32079,GATEWAY 4 (A-E)               ,5610,AGENCY STAFF                  ,03/07/2015,50926786,822.00,PROTOCOL EDUCATION LTD                  ,,EMPLOYMENT & RECRUITMENT AGENC,
SHEFFIELD CITY COUNCIL        ,CYPF                          ,39567,YOUTH JUSTICE SERVICE         ,6210,RENTS                         ,03/07/2015,22339,"1,133.75",THE BURTON STREET FOUNDATION            ,,DISABILITY & SPECIAL NEEDS - S,
SHEFFIELD CITY COUNCIL        ,PLACE                         ,21270,EVENTS IN PARKS               ,8200,EVENTS EXPENDITURE            ,03/07/2015,32,"1,000.00",MOBILE ZIPWIRE HIRE LIMITED             ,,EQUIPMENT HIRE - OUTDOOR PURSU,
SHEFFIELD CITY COUNCIL        ,COMMUNITIES                   ,49364,SUPPORTED HOUSING             ,8420,ADVERTISING AND PUBLICITY     ,03/07/2015,3134,550.00,IMAGE FACTORY                           ,,PHOTOGRAPHERS - ADVERTISING & ,
SHEFFIELD CITY COUNCIL        ,COMMUNITIES                   ,42065,LOCALITY 2 MANAGEMENT+O/HEADS ,7060,EXTERNAL VEHICLE HIRE         ,03/07/2015,10449,360.00,PHILS TRAVEL                            ,,TAXIS & PRIVATE HIRE          ,
SHEFFIELD CITY COUNCIL        ,CYPF                          ,39282,CARE PROCEEDINGS (LEGAL FEES) ,8470,LEGAL FEES                    ,03/07/2015,933095,600.00,MS S B NIJABAT                          ,,BARRISTERS                    ,
SHEFFIELD CITY COUNCIL        ,COMMUNITIES                   ,49390,ACCOMMODATION                 ,6030,REPAIRS AND MTCE - RESPONSIVE ,03/07/2015,5069286,398.55,CHUBB ELECTRONIC SECURITY               ,,SECURITY SERVICES             ,
SHEFFIELD CITY COUNCIL        ,CYPF                          ,33018,100 APPRENTICES               ,9120,OTHER AGENCIES                ,03/07/2015,3,"1,107.04",CREATOR 1991 LTD                        ,,HAIRDRESSING SCHOOLS          ,
SHEFFIELD CITY COUNCIL        ,CYPF                          ,33018,100 APPRENTICES               ,9120,OTHER AGENCIES                ,03/07/2015,FVSI000063               ,"2,487.92",FIRVALE BUSINESS AND ENTERPRISE CENTRE  ,,BUSINESS CENTRES              ,
SHEFFIELD CITY COUNCIL        ,RESOURCES                     ,15133,STANIFORTH ROAD WORKSHOPS     ,8110,"CLOTHING, UNIFORM AND LAUNDRY ",03/07/2015,SN002139904              ,327.41,BERENDSEN UK LTD                        ,,LINEN HIRE SERVICES           ,
SHEFFIELD CITY COUNCIL        ,PLACE                         ,23012,FOOD HYGIENE                  ,8060,MATERIALS AND SUPPLIES GENERAL,03/07/2015,INV517046                ,282.70,CIEH                                    ,,INSTITUTES - PROFESSIONAL     ,
SHEFFIELD CITY COUNCIL        ,RESOURCES                     ,15217,STADIA TECHNOLOGY PARK        ,6160,GAS                           ,03/07/2015,6001550077,423.53,NPOWER                                  ,,ELECTRICITY COMPANIES         ,
SHEFFIELD CITY COUNCIL        ,RESOURCES                     ,15133,STANIFORTH ROAD WORKSHOPS     ,7010,ROUTINE VEHICLE REPAIR & MTCE ,03/07/2015,4158,440.00,HOGG DIESEL INJECTION LIMITED           ,,DIESEL FUEL INJECTION SERVICES,
SHEFFIELD CITY COUNCIL        ,COMMUNITIES                   ,42034,PURCHASING LEARNING DISABILITI,9180,OTHER CLIENT EXPENDITURE      ,03/07/2015,J1196432 050715          ,811.00,REDACTED PERSONAL DATA,,HOME CARE SERVICES            ,
SHEFFIELD CITY COUNCIL        ,COMMUNITIES                   ,42034,PURCHASING LEARNING DISABILITI,9180,OTHER CLIENT EXPENDITURE      ,03/07/2015,J1196433 050715          ,261.00,REDACTED PERSONAL DATA,,HOME CARE SERVICES            ,
SHEFFIELD CITY COUNCIL        ,COMMUNITIES                   ,42034,PURCHASING LEARNING DISABILITI,9180,OTHER CLIENT EXPENDITURE      ,03/07/2015,J1196434 050715          ,261.00,REDACTED PERSONAL DATA,,HOME CARE SERVICES            ,
SHEFFIELD CITY COUNCIL        ,COMMUNITIES                   ,42034,PURCHASING LEARNING DISABILITI,9180,OTHER CLIENT EXPENDITURE      ,03/07/2015,J1196435 050715          ,550.00,REDACTED PERSONAL DATA,,HOME CARE SERVICES            ,
SHEFFIELD CITY COUNCIL        ,COMMUNITIES                   ,42034,PURCHASING LEARNING DISABILITI,9180,OTHER CLIENT EXPENDITURE      ,03/07/2015,J1196436 050715          ,261.00,REDACTED PERSONAL DATA,,HOME CARE SERVICES            ,
SHEFFIELD CITY COUNCIL        ,COMMUNITIES                   ,42034,PURCHASING LEARNING DISABILITI,9180,OTHER CLIENT EXPENDITURE      ,03/07/2015,J1196437 050715          ,261.00,REDACTED PERSONAL DATA,,HOME CARE SERVICES            ,
SHEFFIELD CITY COUNCIL        ,COMMUNITIES                   ,42034,PURCHASING LEARNING DISABILITI,9180,OTHER CLIENT EXPENDITURE      ,03/07/2015,J1196438 050715          ,797.00,REDACTED PERSONAL DATA,,HOME CARE SERVICES            ,
SHEFFIELD CITY COUNCIL        ,COMMUNITIES                   ,44001,PURCHASING                    ,9180,OTHER CLIENT EXPENDITURE      ,03/07/2015,J1196439 050715          ,261.00,REDACTED PERSONAL DATA,,HOME CARE SERVICES            ,
SHEFFIELD CITY COUNCIL        ,COMMUNITIES                   ,42034,PURCHASING LEARNING DISABILITI,9180,OTHER CLIENT EXPENDITURE      ,03/07/2015,J1196439 050715          ,261.00,REDACTED PERSONAL DATA,,HOME CARE SERVICES            ,
SHEFFIELD CITY COUNCIL        ,COMMUNITIES                   ,42034,PURCHASING LEARNING DISABILITI,9180,OTHER CLIENT EXPENDITURE      ,03/07/2015,J1196440 050715          ,261.00,REDACTED PERSONAL DATA,,HOME CARE SERVICES            ,
SHEFFIELD CITY COUNCIL        ,COMMUNITIES                   ,44001,PURCHASING                    ,9180,OTHER CLIENT EXPENDITURE      ,03/07/2015,J1196440 050715          ,265.00,REDACTED PERSONAL DATA,,HOME CARE SERVICES            ,
SHEFFIELD CITY COUNCIL        ,COMMUNITIES                   ,42034,PURCHASING LEARNING DISABILITI,9180,OTHER CLIENT EXPENDITURE      ,03/07/2015,J1196441 050715          ,261.00,REDACTED PERSONAL DATA,,HOME CARE SERVICES            ,
SHEFFIELD CITY COUNCIL        ,COMMUNITIES                   ,42034,PURCHASING LEARNING DISABILITI,9180,OTHER CLIENT EXPENDITURE      ,03/07/2015,J1196442 050715          ,261.00,REDACTED PERSONAL DATA,Unclassified Non Trade,OUT OF SCOPE FOR SIC MONITORIN,
SHEFFIELD CITY COUNCIL        ,COMMUNITIES                   ,42034,PURCHASING LEARNING DISABILITI,9180,OTHER CLIENT EXPENDITURE      ,03/07/2015,J1196443 050715          ,550.00,REDACTED PERSONAL DATA,,HOME CARE SERVICES            ,
SHEFFIELD CITY COUNCIL        ,COMMUNITIES                   ,42034,PURCHASING LEARNING DISABILITI,9180,OTHER CLIENT EXPENDITURE      ,03/07/2015,J1196444 050715          ,275.00,REDACTED PERSONAL DATA,,HOME CARE SERVICES            ,
SHEFFIELD CITY COUNCIL        ,COMMUNITIES                   ,42034,PURCHASING LEARNING DISABILITI,9180,OTHER CLIENT EXPENDITURE      ,03/07/2015,J1196445 050715          ,261.00,REDACTED PERSONAL DATA,,HOME CARE SERVICES            ,
SHEFFIELD CITY COUNCIL        ,COMMUNITIES                   ,42034,PURCHASING LEARNING DISABILITI,9180,OTHER CLIENT EXPENDITURE      ,03/07/2015,J1196446 050715          ,275.00,REDACTED PERSONAL DATA,,HOME CARE SERVICES            ,
SHEFFIELD CITY COUNCIL        ,COMMUNITIES                   ,42034,PURCHASING LEARNING DISABILITI,9180,OTHER CLIENT EXPENDITURE      ,03/07/2015,J1196447 050715          ,261.00,REDACTED PERSONAL DATA,,HOME CARE SERVICES            ,
SHEFFIELD CITY COUNCIL        ,COMMUNITIES                   ,42034,PURCHASING LEARNING DISABILITI,9180,OTHER CLIENT EXPENDITURE      ,03/07/2015,J1196448 050715          ,261.00,REDACTED PERSONAL DATA,,HOME CARE SERVICES            ,
SHEFFIELD CITY COUNCIL        ,COMMUNITIES                   ,42034,PURCHASING LEARNING DISABILITI,9180,OTHER CLIENT EXPENDITURE      ,03/07/2015,J1196449 050715          ,261.00,REDACTED PERSONAL DATA,Unclassified Non Trade,OUT OF SCOPE FOR SIC MONITORIN,
SHEFFIELD CITY COUNCIL        ,COMMUNITIES                   ,42034,PURCHASING LEARNING DISABILITI,9180,OTHER CLIENT EXPENDITURE      ,03/07/2015,J1196450 050715          ,261.00,REDACTED PERSONAL DATA,,HOME CARE SERVICES            ,
SHEFFIELD CITY COUNCIL        ,COMMUNITIES                   ,42034,PURCHASING LEARNING DISABILITI,9180,OTHER CLIENT EXPENDITURE      ,03/07/2015,J1196451 050715          ,261.00,REDACTED PERSONAL DATA,,HOME CARE SERVICES            ,
SHEFFIELD CITY COUNCIL        ,COMMUNITIES                   ,42034,PURCHASING LEARNING DISABILITI,9180,OTHER CLIENT EXPENDITURE      ,03/07/2015,J1196452 050715          ,261.00,REDACTED PERSONAL DATA,Unclassified Non Trade,OUT OF SCOPE FOR SIC MONITORIN,
SHEFFIELD CITY COUNCIL        ,COMMUNITIES                   ,42034,PURCHASING LEARNING DISABILITI,9190,DIRECT PAYMENTS               ,03/07/2015,J1199772                 ,"1,713.93",A4E                                     ,,TRAINING SERVICES             ,
SHEFFIELD CITY COUNCIL        ,COMMUNITIES                   ,46039,ADULT SOCIAL CARE PURCHASING  ,9190,DIRECT PAYMENTS               ,03/07/2015,J1199772                 ,354.24,REDACTED PERSONAL DATA,Social Community Care,CAREFIRST DIRECT PAYMENTS     ,
SHEFFIELD CITY COUNCIL        ,COMMUNITIES                   ,46039,ADULT SOCIAL CARE PURCHASING  ,9190,DIRECT PAYMENTS               ,03/07/2015,J1199772                 ,"4,117.64",REDACTED PERSONAL DATA,Social Community Care,CAREFIRST DIRECT PAYMENTS     ,
SHEFFIELD CITY COUNCIL        ,COMMUNITIES                   ,42034,PURCHASING LEARNING DISABILITI,9190,DIRECT PAYMENTS               ,03/07/2015,J1199772                 ,660.30,REDACTED PERSONAL DATA,Social Community Care,CAREFIRST DIRECT PAYMENTS     ,
SHEFFIELD CITY COUNCIL        ,CYPF                          ,39284,INDEPENDENT FOSTERING PLACEMEN,9270,INDEPENDENT FOSTERING         ,03/07/2015,630157301,"3,679.48",REDACTED PERSONAL DATA,,ADOPTION & FOSTERING          ,
SHEFFIELD CITY COUNCIL        ,CYPF                          ,39147,PREVENTION & SUPPORT - CDT    ,9270,CARELEAVERS INDEPENDENT LIVING,03/07/2015,4000424312,296.31,SUNSHINE DAY NURSERY                    ,,NURSERIES & CRECHES           ,
SHEFFIELD CITY COUNCIL        ,CYPF                          ,39084,NORTH SA - CIN S17            ,9270,CARELEAVERS INDEPENDENT LIVING,03/07/2015,8 002                    ,414.99,EARLY STEPS NSRY & CHILDRENS CENTRE     ,,NURSERY SCHOOLS               ,
SHEFFIELD CITY COUNCIL        ,CYPF                          ,39285,CONTACT CONTRACTS             ,9280,CONTACT                       ,03/07/2015,9193,275.80,PROGRESSIVE CARE LTD                    ,,CHILDREN'S HOMES              ,
SHEFFIELD CITY COUNCIL        ,CYPF                          ,39213,EAST SA - CIN S17             ,9280,CONTACT                       ,03/07/2015,9212,259.13,PROGRESSIVE CARE LTD                    ,,CHILDREN'S HOMES              ,
SHEFFIELD CITY COUNCIL        ,COMMUNITIES                   ,46039,ADULT SOCIAL CARE PURCHASING  ,9210,CONTINUING NURSING CARE       ,03/07/2015,J1196461 190715          ,"2,267.57",ROSEBERRY CARE CENTRES GB LTD           ,,NURSING HOMES                 ,
SHEFFIELD CITY COUNCIL        ,COMMUNITIES                   ,46039,ADULT SOCIAL CARE PURCHASING  ,9200,CONTINUING RESIDENTIAL CARE   ,03/07/2015,J1197853 190715          ,"8,732.21",BALMORAL NURSING HOME                   ,,NURSING HOMES                 ,
SHEFFIELD CITY COUNCIL        ,COMMUNITIES                   ,46039,ADULT SOCIAL CARE PURCHASING  ,9210,CONTINUING NURSING CARE       ,03/07/2015,J1197853 190715          ,"4,865.00",BALMORAL NURSING HOME                   ,,NURSING HOMES                 ,
SHEFFIELD CITY COUNCIL        ,COMMUNITIES                   ,46039,ADULT SOCIAL CARE PURCHASING  ,9210,CONTINUING NURSING CARE       ,03/07/2015,J1197854 190715          ,"1,031.15",COUNTRY COURT CARE HOMES LTD            ,,RESIDENTIAL CARE HOMES        ,
SHEFFIELD CITY COUNCIL        ,COMMUNITIES                   ,46039,ADULT SOCIAL CARE PURCHASING  ,9210,CONTINUING NURSING CARE       ,03/07/2015,J1197966 190715          ,"6,464.57",CHATSWORTH GRANGE EMI N HOME            ,,NURSING HOMES                 ,
SHEFFIELD CITY COUNCIL        ,COMMUNITIES                   ,46039,ADULT SOCIAL CARE PURCHASING  ,9200,CONTINUING RESIDENTIAL CARE   ,03/07/2015,J1199769 190715          ,"2,204.00",DEVAGLADE LIMITED T/A AARON VIEW        ,,NURSING HOMES                 ,
SHEFFIELD CITY COUNCIL        ,COMMUNITIES                   ,46039,ADULT SOCIAL CARE PURCHASING  ,9210,CONTINUING NURSING CARE       ,03/07/2015,J1199770 190715          ,"1,928.28",ALPINE HEALTHCARE LTD                   ,,NURSING HOMES                 ,
SHEFFIELD CITY COUNCIL        ,COMMUNITIES                   ,44001,PURCHASING                    ,9200,CONTINUING RESIDENTIAL CARE   ,03/07/2015,J1199771 190715          ,"17,769.28",WESTFIELD MEWS -                        ,,RESIDENTIAL CARE HOMES        ,
SHEFFIELD CITY COUNCIL        ,COMMUNITIES                   ,46039,ADULT SOCIAL CARE PURCHASING  ,9210,SHORT TERM NURSING CARE       ,03/07/2015,J1187262 210615          ,744.72,COUNTRY COURT CARE HOMES LTD            ,,RESIDENTIAL CARE HOMES        ,
SHEFFIELD CITY COUNCIL        ,COMMUNITIES                   ,46039,ADULT SOCIAL CARE PURCHASING  ,9200,SHORT TERM RESIDENTIAL CARE   ,03/07/2015,J1199745 210615          ,"1,442.86",BURNT TREE CROFT (SHEFFCARE LTD)        ,,RESIDENTIAL CARE HOMES        ,
SHEFFIELD CITY COUNCIL        ,COMMUNITIES                   ,46039,ADULT SOCIAL CARE PURCHASING  ,9200,SHORT TERM RESIDENTIAL CARE   ,03/07/2015,J1199746 210615          ,346.29,COUNTRY COURT CARE HOMES LTD            ,,RESIDENTIAL CARE HOMES        ,
SHEFFIELD CITY COUNCIL        ,COMMUNITIES                   ,46039,ADULT SOCIAL CARE PURCHASING  ,9200,SHORT TERM RESIDENTIAL CARE   ,03/07/2015,J1199747 210615          ,726.00,DEVAGLADE LIMITED T/A AARON VIEW        ,,NURSING HOMES                 ,
SHEFFIELD CITY COUNCIL        ,PLACE                         ,22074,DEVELOPMENT CONTROL           ,4180,PLANNING APPLICATION FEES     ,06/07/2015,ERS INVOICE122276        ,"2,695.00",REDACTED PERSONAL DATA,Unclassified Non Trade,OUT OF SCOPE FOR SIC MONITORIN,
SHEFFIELD CITY COUNCIL        ,COMMUNITIES                   ,47023,MCA SUPPORT TEAM              ,8440,FEE EXPENSES                  ,06/07/2015,ERS INVOICE122278        ,506.25,REDACTED PERSONAL DATA,Unclassified Non Trade,OUT OF SCOPE FOR SIC MONITORIN,
SHEFFIELD CITY COUNCIL        ,COMMUNITIES                   ,47046,LOC REFORM & COM VOICES: DOLS ,8440,FEE EXPENSES                  ,06/07/2015,ERS INVOICE122284        ,"1,167.00",SHIVA HEALTH LTD                        ,,HOSPITALS                     ,
SHEFFIELD CITY COUNCIL        ,COMMUNITIES                   ,47046,LOC REFORM & COM VOICES: DOLS ,8440,FEE EXPENSES                  ,06/07/2015,ERS INVOICE122287        ,510.00,SHIVA HEALTH LTD                        ,,HOSPITALS                     ,
SHEFFIELD CITY COUNCIL        ,COMMUNITIES                   ,47046,LOC REFORM & COM VOICES: DOLS ,8440,FEE EXPENSES                  ,06/07/2015,ERS INVOICE122289        ,"2,000.00",VLC INDEPENDENT ASSESSMENTS LTD         ,Unclassified Non Trade,OUT OF SCOPE FOR SIC MONITORIN,
SHEFFIELD CITY COUNCIL        ,PLACE                         ,97551,COUNCIL HSG ACQUISITIONS PROG ,1194,OTHER FEES                    ,06/07/2015,ERS INVOICE122290        ,"67,000.00",TAYLOR & EMMET SOLICITORS               ,,SOLICITORS                    ,
SHEFFIELD CITY COUNCIL        ,RESOURCES                     ,17113,LEGAL PROPERTY                ,4080,FEES & CHARGES                ,06/07/2015,ERS INVOICE122291        ,350.00,REDACTED PERSONAL DATA,Unclassified Non Trade,OUT OF SCOPE FOR SIC MONITORIN,
SHEFFIELD CITY COUNCIL        ,RESOURCES                     ,17113,LEGAL PROPERTY                ,4080,FEES & CHARGES                ,06/07/2015,ERS INVOICE122292        ,480.00,BRADFORD & SONS SOLICITORS              ,,SOLICITORS                    ,
SHEFFIELD CITY COUNCIL        ,CYPF                          ,32046,OUTDOOR EDUCATION             ,8440,FEE EXPENSES                  ,06/07/2015,ERS INVOICE122294        ,525.00,PEAK DISCOVERERS                        ,,TRAINING SERVICES             ,
SHEFFIELD CITY COUNCIL        ,CYPF                          ,32046,OUTDOOR EDUCATION             ,8440,FEE EXPENSES                  ,06/07/2015,ERS INVOICE122295        ,805.00,IAN MICHAEL RENSHAW                     ,,OUTDOOR PURSUIT ORGANISERS & E,
SHEFFIELD CITY COUNCIL        ,CYPF                          ,32046,OUTDOOR EDUCATION             ,8440,FEE EXPENSES                  ,06/07/2015,ERS INVOICE122297        ,"1,435.00",IAN WEEKS                               ,,TRAINING SERVICES             ,
SHEFFIELD CITY COUNCIL        ,CYPF                          ,32046,OUTDOOR EDUCATION             ,8440,FEE EXPENSES                  ,06/07/2015,ERS INVOICE122298        ,490.00,REDACTED PERSONAL DATA,Unclassified Non Trade,OUT OF SCOPE FOR SIC MONITORIN,
SHEFFIELD CITY COUNCIL        ,RESOURCES                     ,19347,CLAIMS                        ,8740,HIGHWAYS                      ,06/07/2015,ERS INVOICE122299        ,"9,327.92",PLEXUS LAW                              ,,SOLICITORS                    ,
SHEFFIELD CITY COUNCIL        ,PLACE                         ,97395,NE LINCS - SUB REGION HAL     ,1194,OTHER FEES                    ,06/07/2015,ERS INVOICE122300        ,"51,779.00",REDACTED PERSONAL DATA,Unclassified Non Trade,OUT OF SCOPE FOR SIC MONITORIN,
SHEFFIELD CITY COUNCIL        ,CYPF                          ,33007,VSP DELIVER                   ,9120,OTHER AGENCIES                ,06/07/2015,ERS INVOICE122301        ,"3,517.50",SHEFFIELD INDUSTRIAL MUSEUMS TRUST LTD  ,,MUSEUMS                       ,
SHEFFIELD CITY COUNCIL        ,CYPF                          ,33007,VSP DELIVER                   ,9120,OTHER AGENCIES                ,06/07/2015,ERS INVOICE122302        ,"2,814.00",DONCASTER ROTH & DIST (MOTOR TRADES)GTA ,,TRAINING CENTRES              ,
SHEFFIELD CITY COUNCIL        ,CYPF                          ,33007,VSP DELIVER                   ,9120,OTHER AGENCIES                ,06/07/2015,ERS INVOICE122303        ,"6,405.50",HEELEY DEVELOPMENT TRUST                ,,CHARITIES & VOLUNTARY ORGANISA,
SHEFFIELD CITY COUNCIL        ,CYPF                          ,33007,VSP DELIVER                   ,9120,OTHER AGENCIES                ,06/07/2015,ERS INVOICE122304        ,"5,478.00",IN2CHANGE SOUTH YORKS LTD               ,,CHARITIES & VOLUNTARY ORGANISA,
SHEFFIELD CITY COUNCIL        ,CYPF                          ,33007,VSP DELIVER                   ,9120,OTHER AGENCIES                ,06/07/2015,ERS INVOICE122305        ,"3,132.00",THE SHEFFIELD COLLEGE                   ,,SCHOOLS & COLLEGES - FURTHER E,
SHEFFIELD CITY COUNCIL        ,CYPF                          ,33007,VSP DELIVER                   ,9120,OTHER AGENCIES                ,06/07/2015,ERS INVOICE122306        ,"3,432.00",SHEFFIELD WEDNESDAY ACADEMY             ,,SPORTS CLUBS & ASSOCIATIONS   ,
SHEFFIELD CITY COUNCIL        ,CYPF                          ,33007,VSP DELIVER                   ,9120,OTHER AGENCIES                ,06/07/2015,ERS INVOICE122307        ,"4,917.00",SOUTH YORKSHIRE & HALLAMSHIRE CYP       ,,YOUTH ORGANISATIONS & CENTRES ,
SHEFFIELD CITY COUNCIL        ,CYPF                          ,33007,VSP DELIVER                   ,9120,OTHER AGENCIES                ,06/07/2015,ERS INVOICE122308        ,"3,524.00",SYTG LTD                                ,,TRAINING CENTRES              ,
SHEFFIELD CITY COUNCIL        ,CYPF                          ,33007,VSP DELIVER                   ,9120,OTHER AGENCIES                ,06/07/2015,ERS INVOICE122309        ,"3,149.00",WHIRLOW HALL FARM TRUST LTD             ,,CHARITIES & VOLUNTARY ORGANISA,
SHEFFIELD CITY COUNCIL        ,CYPF                          ,33007,VSP DELIVER                   ,9120,OTHER AGENCIES                ,06/07/2015,ERS INVOICE122310        ,"7,128.00",Y A S Y                                 ,,YOUTH ORGANISATIONS & CENTRES ,
SHEFFIELD CITY COUNCIL        ,PLACE                         ,97502,EP NORTH EAST LINC            ,1194,OTHER FEES                    ,06/07/2015,ERS INVOICE122311        ,"28,856.20",ER PROPERTY SERVICES                    ,Unclassified Non Trade,OUT OF SCOPE FOR SIC MONITORIN,
SHEFFIELD CITY COUNCIL        ,CYPF                          ,33007,VSP DELIVER                   ,9120,OTHER AGENCIES                ,06/07/2015,ERS INVOICE122312        ,"22,853.00",ENDEAVOUR TRAINING                      ,,TRAINING SERVICES             ,
SHEFFIELD CITY COUNCIL        ,RESOURCES                     ,1,SCC BALANCE SHEET             ,2070,TRUST FUNDS -CAMP             ,06/07/2015,ERS INVOICE122398        ,"2,500.00",REDACTED PERSONAL DATA,Unclassified Non Trade,OUT OF SCOPE FOR SIC MONITORIN,
SHEFFIELD CITY COUNCIL        ,PLACE                         ,22142,ON STREET CAR PARKING         ,8010,EQUIPMENT PURCHASE AND REPAIR ,06/07/2015,126017,674.90,METRIC GROUP LIMITED                    ,,ACCESS EQUIPMENT              ,
SHEFFIELD CITY COUNCIL        ,COMMUNITIES                   ,49142,RESPONSIVE HM&E               ,6020,ASBESTOS REMOVAL              ,06/07/2015,BM5109I                  ,832.00,ASPECT CONTRACTS LTD                    ,,ASBESTOS SURVEYS & REMOVALS   ,
SHEFFIELD CITY COUNCIL        ,PLACE                         ,21022,WISEWOOD SPORTS CENTRE        ,8060,MATERIALS AND SUPPLIES GENERAL,06/07/2015,4518593,938.95,PRS FOR MUSIC                           ,,MUSIC PUBLISHERS              ,
SHEFFIELD CITY COUNCIL        ,COMMUNITIES                   ,47009,MINOR WORKS & ADAPTATIONS     ,6020,REPAIRS AND MTCE - PROGRAMMED ,06/07/2015,V88                      ,"2,797.00",REDACTED PERSONAL DATA,,BUILDING SERVICES             ,
SHEFFIELD CITY COUNCIL        ,POLICY PERFORMANCE AND COMMS  ,18003,COMMUNICATIONS                ,8550,OTHER SERVICES                ,06/07/2015,INV173434                ,360.00,A PINDER LTD                            ,,COPYING & DUPLICATING SERVICES,
SHEFFIELD CITY COUNCIL        ,CYPF                          ,33018,100 APPRENTICES               ,9120,OTHER AGENCIES                ,06/07/2015,1061,256.88,JENX LTD                                ,,DISABILITY EQUIPMENT - MNFRS &,
SHEFFIELD CITY COUNCIL        ,COMMUNITIES                   ,49755,COMMUNITY WELL BEING PROGRAMME,9040,VOLUNTARY BODIES              ,06/07/2015,238,"2,647.00",MANOR & CASTLE - HEALTHY LIVING/PHS     ,,DEVELOPMENT AGENCIES          ,
SHEFFIELD CITY COUNCIL        ,PLACE                         ,22141,OFF STREET CAR PARKS          ,6030,REPAIRS AND MTCE - RESPONSIVE ,06/07/2015,1891,"4,480.00",3 SHIRES BUILDING LTD                   ,,CAR PARKING & GARAGING        ,
SHEFFIELD CITY COUNCIL        ,CYPF                          ,38155,WEST MAST                     ,6210,RENTS                         ,06/07/2015,2904,"3,620.00",NUCA TRADING AS ZEST                    ,,CHARITIES & VOLUNTARY ORGANISA,
SHEFFIELD CITY COUNCIL        ,RESOURCES                     ,15199,MANAGED SITES                 ,8350,MISCELLANEOUS EXPENSES        ,06/07/2015,1118770449,297.81,KONICA MINOLTA BUSINESS SOLUTIONS       ,,PHOTOCOPIERS                  ,
SHEFFIELD CITY COUNCIL        ,CYPF                          ,90627,ADD'L PUPIL PLACES(SECONDARY) ,1161,NC&A MAIN CONTRACT            ,06/07/2015,SCC900                   ,"36,049.00",PYRAMID SCHOOLS (SHEFFIELD) LTD         ,,LEASING SERVICES              ,
SHEFFIELD CITY COUNCIL        ,CYPF                          ,90761,DON VALLEY SCHOOL             ,1194,OTHER FEES                    ,06/07/2015,388805,"6,241.00",OVE ARUP & PARTNERS LTD                 ,,ENGINEERS - CONSULTING        ,
SHEFFIELD CITY COUNCIL        ,CYPF                          ,35001,PORTFOLIO LEADERSHIP TEAM     ,8270,SUBSCRIPTIONS                 ,06/07/2015,4136,"3,135.00",ADCS LTD                                ,,LEGAL SERVICES                ,
SHEFFIELD CITY COUNCIL        ,RESOURCES                     ,12009,STRATEGIC FINANCE             ,5610,AGENCY STAFF                  ,06/07/2015,3626,"11,100.00",INSIGHT MSC LIMITED                     ,,BUSINESS & MANAGEMENT CONSULTA,
SHEFFIELD CITY COUNCIL        ,PLACE                         ,24069,BUSINESS IMPROVEMENT DIST-LDV ,8440,FEE EXPENSES                  ,06/07/2015,43269,916.67,SHEFFIELD CHAMBER OF COMMERCE & INDUSTRY,,CHAMBERS OF COMMERCE          ,
SHEFFIELD CITY COUNCIL        ,PLACE                         ,23037,MEDICO LEGAL CENTRE           ,5610,AGENCY STAFF                  ,06/07/2015,2944017,779.29,PULSE HEALTHCARE LIMITED                ,,EMPLOYMENT & RECRUITMENT AGENC,
SHEFFIELD CITY COUNCIL        ,PLACE                         ,23037,MEDICO LEGAL CENTRE           ,5610,AGENCY STAFF                  ,06/07/2015,2944018,"1,388.13",PULSE HEALTHCARE LIMITED                ,,EMPLOYMENT & RECRUITMENT AGENC,
SHEFFIELD CITY COUNCIL        ,COMMUNITIES                   ,49364,SUPPORTED HOUSING             ,8050,FURNITURE PURCHASES           ,06/07/2015,TK110812                 ,"1,228.00",THOMAS KNEALE & CO. LTD.                ,,"BEDS, BEDDING & BLANKETS      ",
SHEFFIELD CITY COUNCIL        ,COMMUNITIES                   ,42068,LOCALITY 1 MANAGEMENT+O/HEADS ,8060,MATERIALS AND SUPPLIES GENERAL,06/07/2015,257928344,334.35,YORKSHIRE PURCHASING ORGANISATION       ,,PURCHASING SERVICES           ,
SHEFFIELD CITY COUNCIL        ,PLACE                         ,97147,ADAPTATIONS                   ,1157,DWELLINGS MAIN CONTRACT       ,06/07/2015,S085013957               ,"5,071.00",STANNAH LIFT SERVICES LTD.              ,,STAIRLIFTS - MNFRS & INSTALLER,
SHEFFIELD CITY COUNCIL        ,COMMUNITIES                   ,42017,TRANSPORT CONTRACT            ,7060,EXTERNAL VEHICLE HIRE         ,06/07/2015,10437,252.40,PHILS TRAVEL                            ,,TAXIS & PRIVATE HIRE          ,
SHEFFIELD CITY COUNCIL        ,COMMUNITIES                   ,42017,TRANSPORT CONTRACT            ,7060,EXTERNAL VEHICLE HIRE         ,06/07/2015,10431,467.60,PHILS TRAVEL                            ,,TAXIS & PRIVATE HIRE          ,
SHEFFIELD CITY COUNCIL        ,COMMUNITIES                   ,42017,TRANSPORT CONTRACT            ,7060,EXTERNAL VEHICLE HIRE         ,06/07/2015,10429,323.00,PHILS TRAVEL                            ,,TAXIS & PRIVATE HIRE          ,
SHEFFIELD CITY COUNCIL        ,PLACE                         ,24062,MGMT OF NRQ PROPERTIES        ,6210,RENTS                         ,06/07/2015,440765/1969              ,"32,500.00",HAMMERSON (SHEFFIELD NRQ) LTD           ,,PROPERTY DEVELOPERS           ,
SHEFFIELD CITY COUNCIL        ,PLACE                         ,24062,MGMT OF NRQ PROPERTIES        ,6270,SERVICE / PFI UNITARY CHARGE  ,06/07/2015,440765/1969              ,731.83,HAMMERSON (SHEFFIELD NRQ) LTD           ,,PROPERTY DEVELOPERS           ,
SHEFFIELD CITY COUNCIL        ,CYPF                          ,33107,POST16 HIGH NEEDS AUG14-JUL15 ,9120,OTHER AGENCIES                ,06/07/2015,SI05608                  ,"7,291.00",BARNSLEY COLLEGE                        ,,COLLEGES - HIGHER EDUCATION   ,
SHEFFIELD CITY COUNCIL        ,PLACE                         ,94013,GREY TO GREEN                 ,1161,NC&A MAIN CONTRACT            ,06/07/2015,PM24502/3                ,"156,856.70",NORTH MIDLAND CONSTRUCTION PLC          ,,BUILDERS                      ,
SHEFFIELD CITY COUNCIL        ,RESOURCES                     ,19097,COMMERCIAL DIRECTOR           ,7140,PUBLIC TRANSPORT COSTS        ,06/07/2015,01/5568803               ,390.00,CLARITY TRAVEL MANAGEMENT               ,,TRAVEL AGENTS & HOLIDAY COMPAN,
SHEFFIELD CITY COUNCIL        ,POLICY PERFORMANCE AND COMMS  ,18003,COMMUNICATIONS                ,7140,PUBLIC TRANSPORT COSTS        ,06/07/2015,01/5557009               ,257.40,CLARITY TRAVEL MANAGEMENT               ,,TRAVEL AGENTS & HOLIDAY COMPAN,
SHEFFIELD CITY COUNCIL        ,COMMUNITIES                   ,49364,SUPPORTED HOUSING             ,8050,FLOOR COVERINGS               ,06/07/2015,2401,"25,849.00",PYRAMID CARPETS                         ,,CARPETS & RUGS - RETAIL       ,
SHEFFIELD CITY COUNCIL        ,COMMUNITIES                   ,49364,SUPPORTED HOUSING             ,6020,REPAIRS AND MTCE - PROGRAMMED ,06/07/2015,TCA/SCC009               ,765.00,TIN CAN ALLEY - ALISTAIR HIGGINS TA     ,,PAINTERS & DECORATORS         ,
SHEFFIELD CITY COUNCIL        ,COMMUNITIES                   ,49364,SUPPORTED HOUSING             ,6020,REPAIRS AND MTCE - PROGRAMMED ,06/07/2015,TCA/SCC008               ,450.00,TIN CAN ALLEY - ALISTAIR HIGGINS TA     ,,PAINTERS & DECORATORS         ,
SHEFFIELD CITY COUNCIL        ,RESOURCES                     ,15194,GROUNDS MAINTENANCE           ,6370,GROUNDS MTCE AND ARBORICULTURE,06/07/2015,5/1119/25LM/40826        ,375.00,WILDSCAPES LTD                          ,,LANDSCAPE ARCHITECTS & DESIGNE,
SHEFFIELD CITY COUNCIL        ,RESOURCES                     ,17107,MANAGEMENT & SUPPORT SERVICES ,8440,FEE EXPENSES                  ,06/07/2015,BRS-0134                 ,"2,250.00",BRIGHT RED SALES TA PEAK DISTRICT VENTUR,,TRAINING CONSULTANTS          ,
SHEFFIELD CITY COUNCIL        ,POLICY PERFORMANCE AND COMMS  ,17052,LOCAL ELECTIONS               ,5750,TRAINING EXPENDITURE          ,06/07/2015,16406,"5,671.04",ASSOCIATION OF ELECTORAL ADMINSTATORS   ,,LOCAL GOVERNMENT              ,
SHEFFIELD CITY COUNCIL        ,PLACE                         ,22243,ATTRACTIVE PUBLIC AREAS       ,8240,CONFERENCE EXPENSES           ,06/07/2015,162,"2,243.67",THE COMPANY OF CUTLERS IN HALLAMSHIRE   ,,BUSINESS INFORMATION SERVICES ,
SHEFFIELD CITY COUNCIL        ,RESOURCES                     ,15133,STANIFORTH ROAD WORKSHOPS     ,7010,ROUTINE VEHICLE REPAIR & MTCE ,06/07/2015,186724,421.41,HUNTSON HOLDINGS PLC T/A AUTOWORLD      ,,CAR DEALERS                   ,
SHEFFIELD CITY COUNCIL        ,RESOURCES                     ,15133,STANIFORTH ROAD WORKSHOPS     ,7010,ROUTINE VEHICLE REPAIR & MTCE ,06/07/2015,14408908,"1,128.14",LOOKERS FORD                            ,,CAR DEALERS                   ,
SHEFFIELD CITY COUNCIL        ,RESOURCES                     ,15133,STANIFORTH ROAD WORKSHOPS     ,7010,ROUTINE VEHICLE REPAIR & MTCE ,06/07/2015,112958,250.00,F R SHARROCK LTD                        ,,AGRICULTURAL ENGINEERS        ,
SHEFFIELD CITY COUNCIL        ,COMMUNITIES                   ,42034,PURCHASING LEARNING DISABILITI,9180,RESPITE                       ,06/07/2015,J1201221 280615          ,600.04,REDACTED PERSONAL DATA,,ADOPTION & FOSTERING          ,
SHEFFIELD CITY COUNCIL        ,COMMUNITIES                   ,44001,PURCHASING                    ,9180,RESPITE                       ,06/07/2015,J1196402 280615          ,514.32,REDACTED PERSONAL DATA,,HOME CARE SERVICES            ,
SHEFFIELD CITY COUNCIL        ,CYPF                          ,39147,PREVENTION & SUPPORT - CDT    ,9190,DIRECT PAYMENTS               ,06/07/2015,J1201238                 ,"1,580.52",REDACTED PERSONAL DATA,Social Community Care,CAREFIRST DIRECT PAYMENTS     ,
SHEFFIELD CITY COUNCIL        ,COMMUNITIES                   ,42034,PURCHASING LEARNING DISABILITI,9190,DIRECT PAYMENTS               ,06/07/2015,J1201238                 ,548.00,A4E                                     ,,TRAINING SERVICES             ,
SHEFFIELD CITY COUNCIL        ,COMMUNITIES                   ,42034,PURCHASING LEARNING DISABILITI,4260,DIRECT PAYMENTS               ,06/07/2015,J1201238                 ,276.18,REDACTED PERSONAL DATA,Social Community Care,CAREFIRST DIRECT PAYMENTS     ,
SHEFFIELD CITY COUNCIL        ,CYPF                          ,39148,DIRECT PAYMENTS               ,9190,DIRECT PAYMENTS               ,06/07/2015,J1201238                 ,449.72,REDACTED PERSONAL DATA,Social Community Care,CAREFIRST DIRECT PAYMENTS     ,
SHEFFIELD CITY COUNCIL        ,COMMUNITIES                   ,46039,ADULT SOCIAL CARE PURCHASING  ,9190,DIRECT PAYMENTS               ,06/07/2015,J1201238                 ,468.10,REDACTED PERSONAL DATA,Social Community Care,CAREFIRST DIRECT PAYMENTS     ,
SHEFFIELD CITY COUNCIL        ,COMMUNITIES                   ,46039,ADULT SOCIAL CARE PURCHASING  ,9190,DIRECT PAYMENTS               ,06/07/2015,J1201238                 ,477.00,REDACTED PERSONAL DATA,Social Community Care,CAREFIRST DIRECT PAYMENTS     ,
SHEFFIELD CITY COUNCIL        ,COMMUNITIES                   ,42034,PURCHASING LEARNING DISABILITI,9190,DIRECT PAYMENTS               ,06/07/2015,J1201238                 ,"1,575.00",REDACTED PERSONAL DATA,Social Community Care,CAREFIRST DIRECT PAYMENTS     ,
SHEFFIELD CITY COUNCIL        ,COMMUNITIES                   ,48007,PUBLIC HEALTH DIRECT PAYMENTS ,9190,DIRECT PAYMENTS               ,06/07/2015,J1201238                 ,"7,107.20",REDACTED PERSONAL DATA,Social Community Care,CAREFIRST DIRECT PAYMENTS     ,
SHEFFIELD CITY COUNCIL        ,COMMUNITIES                   ,46039,ADULT SOCIAL CARE PURCHASING  ,9190,DIRECT PAYMENTS               ,06/07/2015,J1201238                 ,"3,805.45",REDACTED PERSONAL DATA,Social Community Care,CAREFIRST DIRECT PAYMENTS     ,
SHEFFIELD CITY COUNCIL        ,COMMUNITIES                   ,46039,ADULT SOCIAL CARE PURCHASING  ,9250,INDEPENDENT DAY CARE          ,06/07/2015,JB1876                   ,360.00,ST WILFRID'S CENTRE                     ,,CHARITIES & VOLUNTARY ORGANISA,
SHEFFIELD CITY COUNCIL        ,COMMUNITIES                   ,42034,PURCHASING LEARNING DISABILITI,9250,INDEPENDENT DAY CARE          ,06/07/2015,JBR1835                  ,330.00,ST WILFRID'S CENTRE                     ,,CHARITIES & VOLUNTARY ORGANISA,
SHEFFIELD CITY COUNCIL        ,COMMUNITIES                   ,42034,PURCHASING LEARNING DISABILITI,9250,INDEPENDENT DAY CARE          ,06/07/2015,JBR1878                  ,390.00,ST WILFRID'S CENTRE                     ,,CHARITIES & VOLUNTARY ORGANISA,
SHEFFIELD CITY COUNCIL        ,COMMUNITIES                   ,44001,PURCHASING                    ,9250,INDEPENDENT DAY CARE          ,06/07/2015,JH1877                   ,360.00,ST WILFRID'S CENTRE                     ,,CHARITIES & VOLUNTARY ORGANISA,
SHEFFIELD CITY COUNCIL        ,COMMUNITIES                   ,44001,PURCHASING                    ,9250,INDEPENDENT DAY CARE          ,06/07/2015,JM1829                   ,405.00,ST WILFRID'S CENTRE                     ,,CHARITIES & VOLUNTARY ORGANISA,
SHEFFIELD CITY COUNCIL        ,COMMUNITIES                   ,44001,PURCHASING                    ,9250,INDEPENDENT DAY CARE          ,06/07/2015,JM1872                   ,360.00,ST WILFRID'S CENTRE                     ,,CHARITIES & VOLUNTARY ORGANISA,
SHEFFIELD CITY COUNCIL        ,COMMUNITIES                   ,44001,PURCHASING                    ,9250,INDEPENDENT DAY CARE          ,06/07/2015,LR1841                   ,280.00,ST WILFRID'S CENTRE                     ,,CHARITIES & VOLUNTARY ORGANISA,
SHEFFIELD CITY COUNCIL        ,COMMUNITIES                   ,44001,PURCHASING                    ,9250,INDEPENDENT DAY CARE          ,06/07/2015,TB1897                   ,270.00,ST WILFRID'S CENTRE                     ,,CHARITIES & VOLUNTARY ORGANISA,
SHEFFIELD CITY COUNCIL        ,COMMUNITIES                   ,42034,PURCHASING LEARNING DISABILITI,9250,INDEPENDENT DAY CARE          ,06/07/2015,VR1857                   ,300.00,ST WILFRID'S CENTRE                     ,,CHARITIES & VOLUNTARY ORGANISA,
SHEFFIELD CITY COUNCIL        ,COMMUNITIES                   ,42034,PURCHASING LEARNING DISABILITI,9250,INDEPENDENT DAY CARE          ,06/07/2015,VR1900                   ,360.00,ST WILFRID'S CENTRE                     ,,CHARITIES & VOLUNTARY ORGANISA,
SHEFFIELD CITY COUNCIL        ,COMMUNITIES                   ,42034,PURCHASING LEARNING DISABILITI,9250,INDEPENDENT DAY CARE          ,06/07/2015,AS1859                   ,765.00,ST WILFRID'S CENTRE                     ,,CHARITIES & VOLUNTARY ORGANISA,
SHEFFIELD CITY COUNCIL        ,COMMUNITIES                   ,44001,PURCHASING                    ,9250,INDEPENDENT DAY CARE          ,06/07/2015,AT1860                   ,300.00,ST WILFRID'S CENTRE                     ,,CHARITIES & VOLUNTARY ORGANISA,
SHEFFIELD CITY COUNCIL        ,COMMUNITIES                   ,42034,PURCHASING LEARNING DISABILITI,9250,INDEPENDENT DAY CARE          ,06/07/2015,GP1824                   ,540.00,ST WILFRID'S CENTRE                     ,,CHARITIES & VOLUNTARY ORGANISA,
SHEFFIELD CITY COUNCIL        ,COMMUNITIES                   ,42034,PURCHASING LEARNING DISABILITI,9250,INDEPENDENT DAY CARE          ,06/07/2015,GP1867                   ,660.00,ST WILFRID'S CENTRE                     ,,CHARITIES & VOLUNTARY ORGANISA,
SHEFFIELD CITY COUNCIL        ,COMMUNITIES                   ,44001,PURCHASING                    ,9250,INDEPENDENT DAY CARE          ,06/07/2015,HH1871                   ,270.00,ST WILFRID'S CENTRE                     ,,CHARITIES & VOLUNTARY ORGANISA,
SHEFFIELD CITY COUNCIL        ,COMMUNITIES                   ,46039,ADULT SOCIAL CARE PURCHASING  ,9190,CITYWIDE SPOT                 ,06/07/2015,265/007660               ,"1,056.25",LEONARD CHESHIRE SERVICES               ,,CHARITIES & VOLUNTARY ORGANISA,
SHEFFIELD CITY COUNCIL        ,COMMUNITIES                   ,46039,ADULT SOCIAL CARE PURCHASING  ,9190,CITYWIDE SPOT                 ,06/07/2015,265-007551               ,"1,095.25",LEONARD CHESHIRE SERVICES               ,,CHARITIES & VOLUNTARY ORGANISA,
SHEFFIELD CITY COUNCIL        ,COMMUNITIES                   ,46039,ADULT SOCIAL CARE PURCHASING  ,9190,CITYWIDE SPOT                 ,06/07/2015,265-007718DH             ,"1,108.25",LEONARD CHESHIRE SERVICES               ,,CHARITIES & VOLUNTARY ORGANISA,
SHEFFIELD CITY COUNCIL        ,COMMUNITIES                   ,44001,PURCHASING                    ,9190,CITYWIDE SPOT                 ,06/07/2015,0415-2                   ,"1,212.85",REDACTED PERSONAL DATA,,HOME CARE SERVICES            ,
SHEFFIELD CITY COUNCIL        ,COMMUNITIES                   ,42034,PURCHASING LEARNING DISABILITI,9190,CITYWIDE SPOT                 ,06/07/2015,0415-2                   ,"2,418.92",REDACTED PERSONAL DATA,,HOME CARE SERVICES            ,
SHEFFIELD CITY COUNCIL        ,COMMUNITIES                   ,46039,ADULT SOCIAL CARE PURCHASING  ,9190,CITYWIDE SPOT                 ,06/07/2015,0415-2                   ,"1,219.24",REDACTED PERSONAL DATA,,HOME CARE SERVICES            ,
SHEFFIELD CITY COUNCIL        ,CYPF                          ,39147,PREVENTION & SUPPORT - CDT    ,9270,CARELEAVERS INDEPENDENT LIVING,06/07/2015,228213821,"3,763.37",R M S PAYROLL MANAGEMENT LTD            ,,PAYROLL SERVICES              ,
SHEFFIELD CITY COUNCIL        ,COMMUNITIES                   ,44001,PURCHASING                    ,9200,CONTINUING RESIDENTIAL CARE   ,06/07/2015,J1201224 190715          ,"1,650.00",SANDFORD HOUSE LTD                      ,,RESIDENTIAL CARE HOMES        ,
SHEFFIELD CITY COUNCIL        ,COMMUNITIES                   ,46039,ADULT SOCIAL CARE PURCHASING  ,9200,CONTINUING RESIDENTIAL CARE   ,06/07/2015,J1201225 190715          ,"4,090.75",BURLINGTON CARE LTD (PARKSIDE RES HOME) ,,RESIDENTIAL CARE HOMES        ,
SHEFFIELD CITY COUNCIL        ,COMMUNITIES                   ,46039,ADULT SOCIAL CARE PURCHASING  ,9210,CONTINUING NURSING CARE       ,06/07/2015,J1201226 190715          ,"2,891.00",WARREN PARK (CHAPELTOWN) LIMITED        ,,RESIDENTIAL CARE HOMES        ,
SHEFFIELD CITY COUNCIL        ,COMMUNITIES                   ,46039,ADULT SOCIAL CARE PURCHASING  ,9200,CONTINUING RESIDENTIAL CARE   ,06/07/2015,J1201228 190715          ,"2,135.43",ROSEBANK CARE HOME                      ,,RESIDENTIAL CARE HOMES        ,
SHEFFIELD CITY COUNCIL        ,COMMUNITIES                   ,46039,ADULT SOCIAL CARE PURCHASING  ,9210,CONTINUING NURSING CARE       ,06/07/2015,J1201229 190715          ,"1,604.00",TREETON GRANGE                          ,,NURSING HOMES                 ,
SHEFFIELD CITY COUNCIL        ,COMMUNITIES                   ,46039,ADULT SOCIAL CARE PURCHASING  ,9210,CONTINUING NURSING CARE       ,06/07/2015,J1201231 190715          ,"4,420.71",ALPINE HEALTHCARE LTD                   ,,NURSING HOMES                 ,
SHEFFIELD CITY COUNCIL        ,COMMUNITIES                   ,46039,ADULT SOCIAL CARE PURCHASING  ,9210,CONTINUING NURSING CARE       ,06/07/2015,J1201232 190715          ,697.71,NEWFIELD NURSING HOME                   ,,NURSING HOMES                 ,
SHEFFIELD CITY COUNCIL        ,COMMUNITIES                   ,46039,ADULT SOCIAL CARE PURCHASING  ,9210,CONTINUING NURSING CARE       ,06/07/2015,J1201233 190715          ,"20,961.43",NORTHFIELD NURSING HOME                 ,,NURSING HOMES                 ,
SHEFFIELD CITY COUNCIL        ,COMMUNITIES                   ,46039,ADULT SOCIAL CARE PURCHASING  ,9200,CONTINUING RESIDENTIAL CARE   ,06/07/2015,J1201234 190715          ,"2,712.57",BALMORAL NURSING HOME                   ,,NURSING HOMES                 ,
SHEFFIELD CITY COUNCIL        ,COMMUNITIES                   ,46039,ADULT SOCIAL CARE PURCHASING  ,9210,CONTINUING NURSING CARE       ,06/07/2015,J1201235 190715          ,"15,592.29",COUNTRY COURT CARE HOMES LTD            ,,RESIDENTIAL CARE HOMES        ,
SHEFFIELD CITY COUNCIL        ,COMMUNITIES                   ,46039,ADULT SOCIAL CARE PURCHASING  ,9210,CONTINUING NURSING CARE       ,06/07/2015,J1201236 190715          ,"15,122.57",ROSEBERRY CARE CENTRES GB LTD           ,,NURSING HOMES                 ,
SHEFFIELD CITY COUNCIL        ,COMMUNITIES                   ,46039,ADULT SOCIAL CARE PURCHASING  ,9200,CONTINUING RESIDENTIAL CARE   ,06/07/2015,J1201237 190715          ,"9,200.00",JANE HOUSE  LTD                         ,,RESIDENTIAL CARE HOMES        ,
SHEFFIELD CITY COUNCIL        ,COMMUNITIES                   ,42034,PURCHASING LEARNING DISABILITI,9210,CONTINUING NURSING CARE       ,06/07/2015,J1184425 210615          ,"1,674.00",OAKWOOD (DEVON COURT)                   ,,RESIDENTIAL CARE HOMES        ,
SHEFFIELD CITY COUNCIL        ,COMMUNITIES                   ,42034,PURCHASING LEARNING DISABILITI,9200,CONTINUING RESIDENTIAL CARE   ,06/07/2015,J1186141 190715          ,"7,982.04",11 FRASER DRIVE                         ,,RESIDENTIAL CARE HOMES        ,
SHEFFIELD CITY COUNCIL        ,COMMUNITIES                   ,42034,PURCHASING LEARNING DISABILITI,9200,CONTINUING RESIDENTIAL CARE   ,06/07/2015,J1186142 190715          ,"5,814.84",169 GLEADLESS COMMON                    ,,RESIDENTIAL CARE HOMES        ,
SHEFFIELD CITY COUNCIL        ,COMMUNITIES                   ,42034,PURCHASING LEARNING DISABILITI,9200,CONTINUING RESIDENTIAL CARE   ,06/07/2015,J1186143 190715          ,"10,496.08",209-211 BURNCROSS ROAD                  ,,RESIDENTIAL CARE HOMES        ,
SHEFFIELD CITY COUNCIL        ,COMMUNITIES                   ,42034,PURCHASING LEARNING DISABILITI,9200,CONTINUING RESIDENTIAL CARE   ,06/07/2015,J1186144 190715          ,"10,180.72",3 STATION ROAD                          ,,RESIDENTIAL CARE HOMES        ,
SHEFFIELD CITY COUNCIL        ,COMMUNITIES                   ,46039,ADULT SOCIAL CARE PURCHASING  ,9200,CONTINUING RESIDENTIAL CARE   ,06/07/2015,J1186145 190715          ,810.84,5 STATION ROAD                          ,,RESIDENTIAL CARE HOMES        ,
SHEFFIELD CITY COUNCIL        ,COMMUNITIES                   ,42034,PURCHASING LEARNING DISABILITI,9200,CONTINUING RESIDENTIAL CARE   ,06/07/2015,J1186145 190715          ,"1,331.88",5 STATION ROAD                          ,,RESIDENTIAL CARE HOMES        ,
SHEFFIELD CITY COUNCIL        ,COMMUNITIES                   ,46039,ADULT SOCIAL CARE PURCHASING  ,9200,CONTINUING RESIDENTIAL CARE   ,06/07/2015,J1186146 190715          ,"1,470.16",9 FRASER DRIVE                          ,,RESIDENTIAL CARE HOMES        ,
SHEFFIELD CITY COUNCIL        ,COMMUNITIES                   ,42034,PURCHASING LEARNING DISABILITI,9200,CONTINUING RESIDENTIAL CARE   ,06/07/2015,J1186146 190715          ,"2,684.44",9 FRASER DRIVE                          ,,RESIDENTIAL CARE HOMES        ,
SHEFFIELD CITY COUNCIL        ,COMMUNITIES                   ,42034,PURCHASING LEARNING DISABILITI,9240,SUPPORTED LIVING CARE         ,06/07/2015,J1186171 190715          ,"3,843.68",WIRRAL AUTISTIC SOCIETY                 ,,COMMUNITY PROJECTS            ,
SHEFFIELD CITY COUNCIL        ,COMMUNITIES                   ,46039,ADULT SOCIAL CARE PURCHASING  ,9210,CONTINUING NURSING CARE       ,06/07/2015,J1196454 190715          ,"3,176.00",HADDON COURT NURSING HOME               ,,NURSING HOMES                 ,
SHEFFIELD CITY COUNCIL        ,COMMUNITIES                   ,46039,ADULT SOCIAL CARE PURCHASING  ,4260,NURSING COSTS RECOVERED       ,06/07/2015,J1197856 190715          ,"1,700.51",SCARSDALE GRANGE N.H                    ,,NURSING HOMES                 ,
SHEFFIELD CITY COUNCIL        ,COMMUNITIES                   ,46039,ADULT SOCIAL CARE PURCHASING  ,9200,CONTINUING RESIDENTIAL CARE   ,06/07/2015,J1197856 190715          ,"7,061.29",SCARSDALE GRANGE N.H                    ,,NURSING HOMES                 ,
SHEFFIELD CITY COUNCIL        ,COMMUNITIES                   ,46039,ADULT SOCIAL CARE PURCHASING  ,9210,CONTINUING NURSING CARE       ,06/07/2015,J1197968 190715          ,"3,551.43",ROSEBERRY CARE CENTRES GB LTD           ,,NURSING HOMES                 ,
SHEFFIELD CITY COUNCIL        ,COMMUNITIES                   ,46039,ADULT SOCIAL CARE PURCHASING  ,9210,CONTINUING NURSING CARE       ,06/07/2015,J1197969 190715          ,"3,208.00",BLENHEIM COURT                          ,,NURSING HOMES                 ,
SHEFFIELD CITY COUNCIL        ,COMMUNITIES                   ,46039,ADULT SOCIAL CARE PURCHASING  ,9200,CONTINUING RESIDENTIAL CARE   ,06/07/2015,J1199768 190715          ,"2,772.00",CROFT ACRES                             ,,RESIDENTIAL CARE HOMES        ,
SHEFFIELD CITY COUNCIL        ,COMMUNITIES                   ,46039,ADULT SOCIAL CARE PURCHASING  ,9210,SHORT TERM NURSING CARE       ,06/07/2015,J1201211 210615          ,"3,256.00",NEWFIELD NURSING HOME                   ,,NURSING HOMES                 ,
SHEFFIELD CITY COUNCIL        ,COMMUNITIES                   ,46039,ADULT SOCIAL CARE PURCHASING  ,9200,SHORT TERM RESIDENTIAL CARE   ,06/07/2015,J1201212 210615          ,750.00,SANCTUARY CARE LIMITED                  ,,NURSING HOMES                 ,
SHEFFIELD CITY COUNCIL        ,COMMUNITIES                   ,46039,ADULT SOCIAL CARE PURCHASING  ,9200,SHORT TERM RESIDENTIAL CARE   ,06/07/2015,J1197844 210615          ,692.57,BALMORAL NURSING HOME                   ,,NURSING HOMES                 ,
SHEFFIELD CITY COUNCIL        ,COMMUNITIES                   ,46039,ADULT SOCIAL CARE PURCHASING  ,9200,SHORT TERM RESIDENTIAL CARE   ,06/07/2015,J1201204 210615          ,"2,252.00",BURNT TREE CROFT (SHEFFCARE LTD)        ,,RESIDENTIAL CARE HOMES        ,
SHEFFIELD CITY COUNCIL        ,COMMUNITIES                   ,46039,ADULT SOCIAL CARE PURCHASING  ,9200,SHORT TERM RESIDENTIAL CARE   ,06/07/2015,J1201206 210615          ,983.28,HOUSTEADS (SHEFFCARE LTD)               ,,RESIDENTIAL CARE HOMES        ,
SHEFFIELD CITY COUNCIL        ,COMMUNITIES                   ,46039,ADULT SOCIAL CARE PURCHASING  ,9200,SHORT TERM RESIDENTIAL CARE   ,06/07/2015,J1201207 210615          ,677.86,THE WHITE HOUSE CARE HOME               ,,RESIDENTIAL CARE HOMES        ,
SHEFFIELD CITY COUNCIL        ,COMMUNITIES                   ,46039,ADULT SOCIAL CARE PURCHASING  ,9200,SHORT TERM RESIDENTIAL CARE   ,06/07/2015,J1201209 210615          ,452.57,NIGHTINGALES RES.HOME                   ,,RESIDENTIAL CARE HOMES        ,
SHEFFIELD CITY COUNCIL        ,COMMUNITIES                   ,46039,ADULT SOCIAL CARE PURCHASING  ,9200,SHORT TERM RESIDENTIAL CARE   ,06/07/2015,J1201210 210615          ,865.72,AARON HOUSE                             ,,RESIDENTIAL CARE HOMES        ,
SHEFFIELD CITY COUNCIL        ,CYPF                          ,39405,LEAVING CARE                  ,9270,INDEPENDENT FOSTERING         ,07/07/2015,630160267,"3,290.00",REDACTED PERSONAL DATA,,ADOPTION & FOSTERING          ,
SHEFFIELD CITY COUNCIL        ,CYPF                          ,39284,INDEPENDENT FOSTERING PLACEMEN,9270,INDEPENDENT FOSTERING         ,07/07/2015,630160148,"3,001.18",REDACTED PERSONAL DATA,,ADOPTION & FOSTERING          ,
SHEFFIELD CITY COUNCIL        ,CYPF                          ,39284,INDEPENDENT FOSTERING PLACEMEN,9270,INDEPENDENT FOSTERING         ,07/07/2015,630160149,"3,001.18",REDACTED PERSONAL DATA,,ADOPTION & FOSTERING          ,
SHEFFIELD CITY COUNCIL        ,CYPF                          ,39284,INDEPENDENT FOSTERING PLACEMEN,9270,INDEPENDENT FOSTERING         ,07/07/2015,147242,"4,042.64",REDACTED PERSONAL DATA,,ADOPTION & FOSTERING          ,
SHEFFIELD CITY COUNCIL        ,CYPF                          ,39324,TEENAGE PREGNANCY             ,9020,3RD PARTY PAYMENTS RECHARGED  ,07/07/2015,SI-TPL-00011816          ,"10,000.00",TURNING POINT                           ,,PUBLIC HEALTH SUPPLIERS       ,
SHEFFIELD CITY COUNCIL        ,CYPF                          ,39324,TEENAGE PREGNANCY             ,9120,OTHER AGENCIES                ,07/07/2015,GCBC201505SCC            ,"2,000.00",GOLDDIGGER TRUST                        ,,MUSICIANS & COMPOSERS         ,
SHEFFIELD CITY COUNCIL        ,PLACE                         ,23080,PORTFOLIO LEADERSHIP          ,8460,CONSULTANTS FEES              ,07/07/2015,H203/7                   ,"10,830.00",HOBSON HAGUE CONSULTANCY                ,,COMMERCIAL PROPERTY AGENTS    ,
SHEFFIELD CITY COUNCIL        ,CYPF                          ,39357,SHORT BREAKS FUNDING FOR DISAB,9120,OTHER AGENCIES                ,07/07/2015,11-Jun-15,520.00,REDACTED PERSONAL DATA,,CHILDMINDERS                  ,
SHEFFIELD CITY COUNCIL        ,CYPF                          ,39324,TEENAGE PREGNANCY             ,8440,FEE EXPENSES                  ,07/07/2015,11-Jun-15,500.00,PARENT TO PARENT                        ,,CHARITIES & VOLUNTARY ORGANISA,
SHEFFIELD CITY COUNCIL        ,PLACE                         ,25070,TREE TEAM                     ,6370,GROUNDS MTCE AND ARBORICULTURE,07/07/2015,1939,370.00,SHEFFIELD TREE CARE                     ,,TREE WORK & FORESTRY SERVICES ,
SHEFFIELD CITY COUNCIL        ,PLACE                         ,25152,LANDSCAPE SERVICES            ,8530,TIPPING CHARGES               ,07/07/2015,49132,"5,991.64",MHH CONTRACTING LTD                     ,,EXCAVATION & GROUNDWORK CONTRA,
SHEFFIELD CITY COUNCIL        ,PLACE                         ,94470,URBAN NATURE PARKS            ,1164,NC&A LANDSCAPING              ,07/07/2015,49070,"2,710.00",MHH CONTRACTING LTD                     ,,EXCAVATION & GROUNDWORK CONTRA,
SHEFFIELD CITY COUNCIL        ,PLACE                         ,25070,TREE TEAM                     ,6370,GROUNDS MTCE AND ARBORICULTURE,07/07/2015,1685,837.00,DRONFIELD TREE SERVICES LTD             ,,TREE WORK & FORESTRY SERVICES ,
SHEFFIELD CITY COUNCIL        ,CYPF                          ,39357,SHORT BREAKS FUNDING FOR DISAB,9120,OTHER AGENCIES                ,07/07/2015,MAY2015-HPC              ,398.65,APPLETREE CHILDCARE (SHEFFIELD) LTD     ,,NURSERIES & CRECHES           ,
SHEFFIELD CITY COUNCIL        ,PLACE                         ,22049,ENERGY -SCHEME                ,6190,WATER SERVICES-REFUNDS        ,07/07/2015,W1516-1667               ,"1,146.86",RUDDLE MERZ WATER SERVICES LIMITED      ,,SURVEYORS & VALUERS           ,
SHEFFIELD CITY COUNCIL        ,PLACE                         ,22049,ENERGY -SCHEME                ,6190,WATER SERVICES-REFUNDS        ,07/07/2015,W1516-1664               ,"8,813.21",RUDDLE MERZ WATER SERVICES LIMITED      ,,SURVEYORS & VALUERS           ,
SHEFFIELD CITY COUNCIL        ,RESOURCES                     ,18034,HR LEADERSHIP                 ,5750,TRAINING EXPENDITURE          ,07/07/2015,SI/263110                ,"2,900.00",SHL GROUP LTD                           ,,PSYCHOLOGISTS                 ,
SHEFFIELD CITY COUNCIL        ,PLACE                         ,25070,TREE TEAM                     ,6370,GROUNDS MTCE AND ARBORICULTURE,07/07/2015,86,"1,050.00",J B HIBBERD LIMITED                     ,,TREE WORK & FORESTRY SERVICES ,
SHEFFIELD CITY COUNCIL        ,PLACE                         ,25070,TREE TEAM                     ,6370,GROUNDS MTCE AND ARBORICULTURE,07/07/2015,87,270.00,J B HIBBERD LIMITED                     ,,TREE WORK & FORESTRY SERVICES ,
SHEFFIELD CITY COUNCIL        ,COMMUNITIES                   ,49802,BUSINESS SUPPORT              ,8370,PRINTING                      ,07/07/2015,257909203,415.30,YORKSHIRE PURCHASING ORGANISATION       ,,PURCHASING SERVICES           ,
SHEFFIELD CITY COUNCIL        ,RESOURCES                     ,11017,BCPD - TRADED                 ,5750,TRAINING EXPENDITURE          ,07/07/2015,13852,475.00,SMARTSTYLE                              ,,TRAINING SERVICES             ,
SHEFFIELD CITY COUNCIL        ,COMMUNITIES                   ,49818,TINSLEY LIBRARY               ,6210,RENTS                         ,07/07/2015,874,"7,600.00",DEANGATE PROPERTIES LTD                 ,,PROPERTY & ESTATE MANAGEMENT  ,
SHEFFIELD CITY COUNCIL        ,CYPF                          ,39282,CARE PROCEEDINGS (LEGAL FEES) ,8470,LEGAL FEES                    ,07/07/2015,933093,600.00,MS S B NIJABAT                          ,,BARRISTERS                    ,
SHEFFIELD CITY COUNCIL        ,PLACE                         ,22151,LAND DRAINAGE & FLOOD MGMT    ,8460,CONSULTANTS FEES              ,07/07/2015,SCC-1173-0615-NL         ,"8,050.00",NEPRO LIMITED                           ,,BUSINESS & MANAGEMENT CONSULTA,
SHEFFIELD CITY COUNCIL        ,PLACE                         ,25070,TREE TEAM                     ,6370,GROUNDS MTCE AND ARBORICULTURE,07/07/2015,1699,950.00,DRONFIELD TREE SERVICES LTD             ,,TREE WORK & FORESTRY SERVICES ,
SHEFFIELD CITY COUNCIL        ,PLACE                         ,21312,CITY CENTRE PROMOTIONAL PLAN  ,8020,EQUIPMENT LEASE/ RENTAL/ HIRE ,07/07/2015,20-Jun-15,375.00,ASCOT MARQUEES                          ,,"MARQUEES, TENTS & PORTABLE FLO",
SHEFFIELD CITY COUNCIL        ,RESOURCES                     ,18041,RECRUITMENT ADVERTISING       ,5720,RECRUIT. ADV. - INVOICE       ,07/07/2015,SIN10016690              ,"2,400.00",THE LAW SOCIETY                         ,,INSTITUTES - PROFESSIONAL     ,
SHEFFIELD CITY COUNCIL        ,PLACE                         ,22141,OFF STREET CAR PARKS          ,6210,RENTS                         ,07/07/2015,S0011258                 ,"16,250.00",HOMES & COMMUNITIES AGENCY              ,,DEVELOPMENT AGENCIES          ,
SHEFFIELD CITY COUNCIL        ,PLACE                         ,21001,SERVICE DEVELOPMENT TEAM      ,8350,MISCELLANEOUS EXPENSES        ,07/07/2015,UKA_EVNT/60550           ,520.00,UKACTIVE                                ,,SPORTS MANAGEMENT & PROMOTION ,
SHEFFIELD CITY COUNCIL        ,CYPF                          ,39357,SHORT BREAKS FUNDING FOR DISAB,9120,OTHER AGENCIES                ,07/07/2015,1601,855.20,BATEMOOR & JORDANTHORPE ASSOCIATION     ,,SCHOOLS - LOCAL AUTHORITY     ,
SHEFFIELD CITY COUNCIL        ,COMMUNITIES                   ,49142,RESPONSIVE HM&E               ,6020,ASBESTOS REMOVAL              ,07/07/2015,BM5260I                  ,315.00,ASPECT CONTRACTS LTD                    ,,ASBESTOS SURVEYS & REMOVALS   ,
SHEFFIELD CITY COUNCIL        ,COMMUNITIES                   ,49142,RESPONSIVE HM&E               ,6020,ASBESTOS REMOVAL              ,07/07/2015,BM5235I                  ,737.50,ASPECT CONTRACTS LTD                    ,,ASBESTOS SURVEYS & REMOVALS   ,
SHEFFIELD CITY COUNCIL        ,COMMUNITIES                   ,49142,RESPONSIVE HM&E               ,6020,ASBESTOS REMOVAL              ,07/07/2015,BM5236I                  ,280.00,ASPECT CONTRACTS LTD                    ,,ASBESTOS SURVEYS & REMOVALS   ,
SHEFFIELD CITY COUNCIL        ,RESOURCES                     ,18030,SYSTEMS AND BUSINESS SERVICES ,8440,FEE EXPENSES                  ,07/07/2015,132898,"12,479.40",HEALTH MANAGEMENT LTD                   ,,BUSINESS & MANAGEMENT CONSULTA,
SHEFFIELD CITY COUNCIL        ,COMMUNITIES                   ,49142,RESPONSIVE HM&E               ,6020,ASBESTOS REMOVAL              ,07/07/2015,BM5259I                  ,417.00,ASPECT CONTRACTS LTD                    ,,ASBESTOS SURVEYS & REMOVALS   ,
SHEFFIELD CITY COUNCIL        ,COMMUNITIES                   ,49142,RESPONSIVE HM&E               ,6020,ASBESTOS REMOVAL              ,07/07/2015,BM5237I                  ,744.00,ASPECT CONTRACTS LTD                    ,,ASBESTOS SURVEYS & REMOVALS   ,
SHEFFIELD CITY COUNCIL        ,COMMUNITIES                   ,49142,RESPONSIVE HM&E               ,6020,ASBESTOS REMOVAL              ,07/07/2015,BM5258I                  ,280.00,ASPECT CONTRACTS LTD                    ,,ASBESTOS SURVEYS & REMOVALS   ,
SHEFFIELD CITY COUNCIL        ,COMMUNITIES                   ,49364,SUPPORTED HOUSING             ,8050,ELECTRICAL GOODS              ,07/07/2015,CMD2532930               ,"8,990.00",DOMESTIC APPLIANCE DISTRIBUTORS         ,,ELECTRICAL GOODS - SALES      ,
SHEFFIELD CITY COUNCIL        ,CYPF                          ,38188,YOUTH SERVICE                 ,9120,OTHER AGENCIES                ,07/07/2015,7787,"7,715.28",SHEFFIELD FUTURES                       ,,COUNSELLING & ADVICE SERVICES ,
SHEFFIELD CITY COUNCIL        ,CYPF                          ,38188,YOUTH SERVICE                 ,9120,OTHER AGENCIES                ,07/07/2015,7788,"4,764.83",SHEFFIELD FUTURES                       ,,COUNSELLING & ADVICE SERVICES ,
SHEFFIELD CITY COUNCIL        ,COMMUNITIES                   ,49856,MI-21/WORLD METAL INDEX       ,8440,FEE EXPENSES                  ,07/07/2015,9014,"1,250.00",GRANTA DESIGN LTD                       ,,COMPUTER SYSTEMS & SOFTWARE (D,
SHEFFIELD CITY COUNCIL        ,COMMUNITIES                   ,49856,MI-21/WORLD METAL INDEX       ,8440,FEE EXPENSES                  ,07/07/2015,9015,"2,000.00",GRANTA DESIGN LTD                       ,,COMPUTER SYSTEMS & SOFTWARE (D,
SHEFFIELD CITY COUNCIL        ,PLACE                         ,23036,CORONIAL SERVICES             ,8440,HISTOLOGY FEES                ,07/07/2015,OP/I223061               ,"1,585.00",SOURCE BIOSCIENCE (UK) LTD              ,,CEMETERIES & CREMATORIA       ,
SHEFFIELD CITY COUNCIL        ,PLACE                         ,23036,CORONIAL SERVICES             ,8090,BEREAVEMENT SUPPLIES          ,07/07/2015,SA                       ,690.00,JOHN HEATH & SONS                       ,,FUNERAL DIRECTORS             ,
SHEFFIELD CITY COUNCIL        ,PLACE                         ,23036,CORONIAL SERVICES             ,8440,HISTOLOGY FEES                ,07/07/2015,OP/I224855               ,486.00,SOURCE BIOSCIENCE (UK) LTD              ,,CEMETERIES & CREMATORIA       ,
SHEFFIELD CITY COUNCIL        ,PLACE                         ,21314,CCRAC RADIOS                  ,8010,EQUIPMENT PURCHASE AND REPAIR ,07/07/2015,199164,309.00,D C R S                                 ,,RADIO COMMUNICATION EQUIPMENT ,
SHEFFIELD CITY COUNCIL        ,PLACE                         ,21316,"RENEW SHEFFIELD		             ",8440,FEE EXPENSES                  ,07/07/2015,IWSCC_003                ,"1,846.00",INK AND WATER LTD                       ,,DEFAULT DO NOT DELETE         ,
SHEFFIELD CITY COUNCIL        ,COMMUNITIES                   ,46097,"REABLEMENT FRONT LINE SOUTH		 ",8010,EQUIPMENT PURCHASE AND REPAIR ,07/07/2015,13300919,333.32,CURRYS ELECTRICAL                       ,,ELECTRICAL GOODS - SALES      ,
SHEFFIELD CITY COUNCIL        ,PLACE                         ,25001,GRAVES PARK - ANIMAL FARM INC ,8060,MATERIALS AND SUPPLIES GENERAL,07/07/2015,133187,435.40,WILLIAM EYRE & SONS                     ,,AGRICULTURAL MERCHANTS        ,
SHEFFIELD CITY COUNCIL        ,RESOURCES                     ,16001,BIS CORE SERVICES             ,7140,PUBLIC TRANSPORT COSTS        ,07/07/2015,01/5546537               ,336.00,CLARITY TRAVEL MANAGEMENT               ,,TRAVEL AGENTS & HOLIDAY COMPAN,
SHEFFIELD CITY COUNCIL        ,PLACE                         ,25001,GRAVES PARK - ANIMAL FARM INC ,8060,MATERIALS AND SUPPLIES GENERAL,07/07/2015,133188,260.74,WILLIAM EYRE & SONS                     ,,AGRICULTURAL MERCHANTS        ,
SHEFFIELD CITY COUNCIL        ,PLACE                         ,25001,GRAVES PARK - ANIMAL FARM INC ,8060,MATERIALS AND SUPPLIES GENERAL,07/07/2015,133185,540.60,WILLIAM EYRE & SONS                     ,,AGRICULTURAL MERCHANTS        ,
SHEFFIELD CITY COUNCIL        ,COMMUNITIES                   ,49003,GATEWAY EXTENSION PROJECT     ,8490,OTHER PROFESSIONAL FEES       ,07/07/2015,TI04090                  ,275.70,LANGUAGELINE SOLUTIONS                  ,,TRANSLATORS & INTERPRETERS    ,
SHEFFIELD CITY COUNCIL        ,PLACE                         ,25070,TREE TEAM                     ,6370,GROUNDS MTCE AND ARBORICULTURE,07/07/2015,1964,980.00,SHEFFIELD TREE CARE                     ,,TREE WORK & FORESTRY SERVICES ,
SHEFFIELD CITY COUNCIL        ,PLACE                         ,25070,TREE TEAM                     ,6370,GROUNDS MTCE AND ARBORICULTURE,07/07/2015,1962,660.00,SHEFFIELD TREE CARE                     ,,TREE WORK & FORESTRY SERVICES ,
SCR COMBINED AUTHORITY        ,ECONOMIC REGENERATION         ,30201,INWARD INVESTMENT             ,7140,PUBLIC TRANSPORT COSTS        ,07/07/2015,01/5546696               ,392.00,CLARITY TRAVEL MANAGEMENT               ,,TRAVEL AGENTS & HOLIDAY COMPAN,
SHEFFIELD CITY COUNCIL        ,PLACE                         ,25092,PARKS OPS EAST & NORTH EAST   ,8550,OTHER SERVICES                ,07/07/2015,5/1120/25LM/40826        ,"1,623.60",WILDSCAPES LTD                          ,,LANDSCAPE ARCHITECTS & DESIGNE,
SHEFFIELD CITY COUNCIL        ,COMMUNITIES                   ,49364,SUPPORTED HOUSING             ,9120,OTHER AGENCIES                ,07/07/2015,INV072186                ,"5,458.16",CONSTANT SECURITY SERVICES LIMITED      ,,SECURITY SERVICES             ,
SHEFFIELD CITY COUNCIL        ,PLACE                         ,28102,SECTOR GWTH ENHANCEMENT PROG  ,8440,FEE EXPENSES                  ,07/07/2015,15020,462.50,C R PHILP T/A CPK ASSOCIATES            ,,BUSINESS & MANAGEMENT CONSULTA,
SHEFFIELD CITY COUNCIL        ,PLACE                         ,21311,CC AMBASSADORS STREET CRIME   ,8110,"CLOTHING, UNIFORM AND LAUNDRY ",07/07/2015,924963772,515.76,ARCO LTD                                ,,SAFETY EQUIPMENT & CLOTHING   ,
SHEFFIELD CITY COUNCIL        ,CYPF                          ,39357,SHORT BREAKS FUNDING FOR DISAB,9120,OTHER AGENCIES                ,07/07/2015,02-Jul-15,"3,750.00",ASPERGERS CHILDREN & CARERS TOGETHER    ,,CHARITIES & VOLUNTARY ORGANISA,
SHEFFIELD CITY COUNCIL        ,PLACE                         ,21302,PEACE GARDENS                 ,8540,SECURITY SERVICES             ,07/07/2015,INV072187                ,"1,525.50",CONSTANT SECURITY SERVICES LIMITED      ,,SECURITY SERVICES             ,
SHEFFIELD CITY COUNCIL        ,CYPF                          ,39282,CARE PROCEEDINGS (LEGAL FEES) ,8470,LEGAL FEES                    ,07/07/2015,6413,342.25,FORENSIC TESTING SERVICE LTD            ,,MEDICAL & DENTAL LABORATORIES ,
SHEFFIELD CITY COUNCIL        ,CYPF                          ,36026,SCHOOL MEALS                  ,8130,CATERING SUPPLIES             ,07/07/2015,SI-TSS-10002374          ,"374,730.00",TAYLOR SHAW LIMITED T/A TAYLOR SHAW     ,,CATERERS                      ,
SHEFFIELD CITY COUNCIL        ,CYPF                          ,36026,SCHOOL MEALS                  ,8150,CONTRACT CATERING             ,07/07/2015,SI-TSS-10002374          ,"199,832.00",TAYLOR SHAW LIMITED T/A TAYLOR SHAW     ,,CATERERS                      ,
SHEFFIELD CITY COUNCIL        ,COMMUNITIES                   ,42070,SERVICE OVERHEADS             ,6280,HIRE OF PREMISES              ,07/07/2015,3037451,735.00,7 HILLS LEISURE TRUST                   ,,SPORTS GROUND & STADIUM CONTRA,
SHEFFIELD CITY COUNCIL        ,CYPF                          ,36026,SCHOOL MEALS                  ,8440,FEE EXPENSES                  ,07/07/2015,SI-TSS-10002380          ,"7,044.58",TAYLOR SHAW LIMITED T/A TAYLOR SHAW     ,,CATERERS                      ,
SHEFFIELD CITY COUNCIL        ,PLACE                         ,25051,PLAYGROUND MAINTENANCE & INSPE,8010,EQUIPMENT PURCHASE AND REPAIR ,07/07/2015,RSIN0144460              ,365.00,RIGBY TAYLOR LTD.                       ,,CAR PAINT & LACQUER MNFRS & SU,
SHEFFIELD CITY COUNCIL        ,PLACE                         ,25092,PARKS OPS EAST & NORTH EAST   ,7020,VEHICLE FUEL COSTS            ,07/07/2015,4679279,268.80,CERTAS ENERGY UK LTD                    ,,OIL FUEL DISTRIBUTORS         ,
SHEFFIELD CITY COUNCIL        ,COMMUNITIES                   ,49153,OTHER REPAIRS & FEES          ,6020,REPAIRS AND MTCE - PROGRAMMED ,07/07/2015,LED100187-0002           ,500.00,MYI LIMITED (MCLARENS LTD )             ,,FINANCIAL SERVICES            ,
SHEFFIELD CITY COUNCIL        ,CYPF                          ,39357,SHORT BREAKS FUNDING FOR DISAB,9120,OTHER AGENCIES                ,07/07/2015,16934/SUS                ,388.58,UNIVERSITY OF SHEFFIELD                 ,,UNIVERSITIES & MEDICAL SCHOOLS,
SHEFFIELD CITY COUNCIL        ,CYPF                          ,39357,SHORT BREAKS FUNDING FOR DISAB,9120,OTHER AGENCIES                ,07/07/2015,02-Jul-15,"3,750.00",ASPERGERS CHILDREN & CARERS TOGETHER    ,,CHARITIES & VOLUNTARY ORGANISA,
SHEFFIELD CITY COUNCIL        ,PLACE                         ,22171,ROAD SAFETY ETP               ,8440,FEE EXPENSES                  ,07/07/2015,6473,350.00,RSGB LIMITED                            ,,TRAINING SERVICES             ,
SHEFFIELD CITY COUNCIL        ,CYPF                          ,36026,SCHOOL MEALS                  ,8440,FEE EXPENSES                  ,07/07/2015,SI-TSS-10002379          ,"7,044.58",TAYLOR SHAW LIMITED T/A TAYLOR SHAW     ,,CATERERS                      ,
SHEFFIELD CITY COUNCIL        ,PLACE                         ,24410,THE MOOR INDOOR MARKET        ,6090,WASTE DISPOSAL                ,07/07/2015,MO279                    ,600.00,R L DEAR (WASTE MERCHANTS) LTD          ,,WASTE MERCHANTS               ,
SHEFFIELD CITY COUNCIL        ,CYPF                          ,33141,CITY DEAL                     ,7140,PUBLIC TRANSPORT COSTS        ,07/07/2015,MAIN256240               ,"2,000.00",FIRST SOUTH YORKSHIRE                   ,,BUS & COACH OPERATORS & STATIO,
SHEFFIELD CITY COUNCIL        ,CYPF                          ,33112,LDD PLACEMENTS AUG14-JUL15    ,9120,OTHER AGENCIES                ,07/07/2015,3865,360.00,WORK LTD                                ,,TRAINING SERVICES             ,
SHEFFIELD CITY COUNCIL        ,CYPF                          ,33107,POST16 HIGH NEEDS AUG14-JUL15 ,9120,OTHER AGENCIES                ,07/07/2015,SIN003739                ,"52,760.00",RUSKIN MILL TRUST                       ,,SCHOOLS - SPECIAL             ,
SHEFFIELD CITY COUNCIL        ,COMMUNITIES                   ,42070,SERVICE OVERHEADS             ,6280,HIRE OF PREMISES              ,07/07/2015,2649,"1,170.00",UNITED HEALTH LTD C/O WOODVIEW CARE HOME,,NURSING HOMES                 ,
SHEFFIELD CITY COUNCIL        ,COMMUNITIES                   ,42070,SERVICE OVERHEADS             ,6280,HIRE OF PREMISES              ,07/07/2015,2643,"1,462.50",UNITED HEALTH LTD C/O WOODVIEW CARE HOME,,NURSING HOMES                 ,
SHEFFIELD CITY COUNCIL        ,PLACE                         ,28100,BUSINESS GROWTH TEAM          ,8440,FEE EXPENSES                  ,07/07/2015,1276,"2,125.00",BREEZE STRATEGY LIMITED                 ,,INVESTMENT CONSULTANTS        ,
SHEFFIELD CITY COUNCIL        ,RESOURCES                     ,90138,VEHICLE & PLANT EFFICIENCY 13-,1182,PURCHASE OF VEHICLES          ,07/07/2015,UMT0004703               ,"50,075.06",TREKA BUS LTD                           ,,VEHICLE CONVERSIONS           ,
SHEFFIELD CITY COUNCIL        ,RESOURCES                     ,11050,OSP2 KIER LTD CONTROL ACCOUNT ,9620,FINANCIAL PROCESSES           ,07/07/2015,160102,"515,662.00",KIER LIMITED                            ,,FACILITIES MANAGEMENT         ,
SHEFFIELD CITY COUNCIL        ,RESOURCES                     ,15133,STANIFORTH ROAD WORKSHOPS     ,7010,ROUTINE VEHICLE REPAIR & MTCE ,07/07/2015,27507,847.04,D.B.AUTO ELECTRICAL SUPPLIES            ,,"COMMERCIAL VEHICLE SERVICING, ",
SHEFFIELD CITY COUNCIL        ,RESOURCES                     ,15133,STANIFORTH ROAD WORKSHOPS     ,7010,ROUTINE VEHICLE REPAIR & MTCE ,07/07/2015,27638,767.27,D.B.AUTO ELECTRICAL SUPPLIES            ,,"COMMERCIAL VEHICLE SERVICING, ",
SHEFFIELD CITY COUNCIL        ,RESOURCES                     ,15133,STANIFORTH ROAD WORKSHOPS     ,7010,ROUTINE VEHICLE REPAIR & MTCE ,07/07/2015,27506,385.40,D.B.AUTO ELECTRICAL SUPPLIES            ,,"COMMERCIAL VEHICLE SERVICING, ",
SHEFFIELD CITY COUNCIL        ,RESOURCES                     ,15133,STANIFORTH ROAD WORKSHOPS     ,7010,ROUTINE VEHICLE REPAIR & MTCE ,07/07/2015,27668,250.42,D.B.AUTO ELECTRICAL SUPPLIES            ,,"COMMERCIAL VEHICLE SERVICING, ",
SHEFFIELD CITY COUNCIL        ,RESOURCES                     ,15133,STANIFORTH ROAD WORKSHOPS     ,7010,ROUTINE VEHICLE REPAIR & MTCE ,07/07/2015,27766,529.68,D.B.AUTO ELECTRICAL SUPPLIES            ,,"COMMERCIAL VEHICLE SERVICING, ",
SHEFFIELD CITY COUNCIL        ,RESOURCES                     ,15133,STANIFORTH ROAD WORKSHOPS     ,7010,ROUTINE VEHICLE REPAIR & MTCE ,07/07/2015,10231,477.00,ROBERTS MOTOR BODIES LIMITED            ,,CAR BODY REPAIRS              ,
SHEFFIELD CITY COUNCIL        ,RESOURCES                     ,15133,STANIFORTH ROAD WORKSHOPS     ,8070,STOCKS AND STORES             ,07/07/2015,27692,427.00,D.B.AUTO ELECTRICAL SUPPLIES            ,,"COMMERCIAL VEHICLE SERVICING, ",
SHEFFIELD CITY COUNCIL        ,RESOURCES                     ,15133,STANIFORTH ROAD WORKSHOPS     ,8070,STOCKS AND STORES             ,07/07/2015,27778,474.72,D.B.AUTO ELECTRICAL SUPPLIES            ,,"COMMERCIAL VEHICLE SERVICING, ",
SHEFFIELD CITY COUNCIL        ,RESOURCES                     ,15133,STANIFORTH ROAD WORKSHOPS     ,7010,ROUTINE VEHICLE REPAIR & MTCE ,07/07/2015,27566,573.73,D.B.AUTO ELECTRICAL SUPPLIES            ,,"COMMERCIAL VEHICLE SERVICING, ",
SHEFFIELD CITY COUNCIL        ,RESOURCES                     ,15133,STANIFORTH ROAD WORKSHOPS     ,8070,STOCKS AND STORES             ,07/07/2015,27584,386.20,D.B.AUTO ELECTRICAL SUPPLIES            ,,"COMMERCIAL VEHICLE SERVICING, ",
SHEFFIELD CITY COUNCIL        ,COMMUNITIES                   ,42034,PURCHASING LEARNING DISABILITI,9190,DIRECT PAYMENTS               ,07/07/2015,J1202380                 ,"2,486.70",REDACTED PERSONAL DATA,Social Community Care,CAREFIRST DIRECT PAYMENTS     ,
SHEFFIELD CITY COUNCIL        ,COMMUNITIES                   ,42034,PURCHASING LEARNING DISABILITI,9190,DIRECT PAYMENTS               ,07/07/2015,J1202380                 ,"1,828.57",A4E                                     ,,TRAINING SERVICES             ,
SHEFFIELD CITY COUNCIL        ,COMMUNITIES                   ,44001,PURCHASING                    ,9190,DIRECT PAYMENTS               ,07/07/2015,J1202380                 ,"18,358.71",REDACTED PERSONAL DATA,,CHARITIES & VOLUNTARY ORGANISA,
SHEFFIELD CITY COUNCIL        ,COMMUNITIES                   ,42034,PURCHASING LEARNING DISABILITI,9190,DIRECT PAYMENTS               ,07/07/2015,J1202380                 ,"3,065.75",REDACTED PERSONAL DATA,Social Community Care,CAREFIRST DIRECT PAYMENTS     ,
SHEFFIELD CITY COUNCIL        ,COMMUNITIES                   ,46039,ADULT SOCIAL CARE PURCHASING  ,9190,DIRECT PAYMENTS               ,07/07/2015,J1202380                 ,573.57,REDACTED PERSONAL DATA,Social Community Care,CAREFIRST DIRECT PAYMENTS     ,
SHEFFIELD CITY COUNCIL        ,COMMUNITIES                   ,42034,PURCHASING LEARNING DISABILITI,9190,DIRECT PAYMENTS               ,07/07/2015,J1202380                 ,"1,944.20",REDACTED PERSONAL DATA,Social Community Care,CAREFIRST DIRECT PAYMENTS     ,
SHEFFIELD CITY COUNCIL        ,COMMUNITIES                   ,46039,ADULT SOCIAL CARE PURCHASING  ,9190,DIRECT PAYMENTS               ,07/07/2015,J1202380                 ,780.00,REDACTED PERSONAL DATA,Social Community Care,CAREFIRST DIRECT PAYMENTS     ,
SHEFFIELD CITY COUNCIL        ,COMMUNITIES                   ,46039,ADULT SOCIAL CARE PURCHASING  ,9190,DIRECT PAYMENTS               ,07/07/2015,J1202380                 ,"1,045.28",REDACTED PERSONAL DATA,Social Community Care,CAREFIRST DIRECT PAYMENTS     ,
SHEFFIELD CITY COUNCIL        ,COMMUNITIES                   ,42034,PURCHASING LEARNING DISABILITI,9190,DIRECT PAYMENTS               ,07/07/2015,J1202380                 ,346.22,REDACTED PERSONAL DATA,Social Community Care,CAREFIRST DIRECT PAYMENTS     ,
SHEFFIELD CITY COUNCIL        ,COMMUNITIES                   ,46039,ADULT SOCIAL CARE PURCHASING  ,9190,DIRECT PAYMENTS               ,07/07/2015,J1202380                 ,572.15,SY CARE & SUPPORT SHEFFIELD             ,Social Community Care,CAREFIRST DIRECT PAYMENTS     ,
SHEFFIELD CITY COUNCIL        ,COMMUNITIES                   ,44001,PURCHASING                    ,9190,DIRECT PAYMENTS               ,07/07/2015,J1202380                 ,"2,363.91",THE ROWAN ORGANISATION MANAGED ACCOUNTS ,Social Community Care,CAREFIRST DIRECT PAYMENTS     ,
SHEFFIELD CITY COUNCIL        ,COMMUNITIES                   ,42034,PURCHASING LEARNING DISABILITI,9190,DIRECT PAYMENTS               ,07/07/2015,J1202380                 ,"3,073.82",REDACTED PERSONAL DATA,Social Community Care,CAREFIRST DIRECT PAYMENTS     ,
SHEFFIELD CITY COUNCIL        ,COMMUNITIES                   ,44001,PURCHASING                    ,9190,DIRECT PAYMENTS               ,07/07/2015,J1202380                 ,"2,425.44",REDACTED PERSONAL DATA,Social Community Care,CAREFIRST DIRECT PAYMENTS     ,
SHEFFIELD CITY COUNCIL        ,COMMUNITIES                   ,42034,PURCHASING LEARNING DISABILITI,9190,DIRECT PAYMENTS               ,07/07/2015,J1202380                 ,"3,106.40",REDACTED PERSONAL DATA,Social Community Care,CAREFIRST DIRECT PAYMENTS     ,
SHEFFIELD CITY COUNCIL        ,COMMUNITIES                   ,44001,PURCHASING                    ,9190,DIRECT PAYMENTS               ,07/07/2015,J1202380                 ,"1,127.00",REDACTED PERSONAL DATA,Social Community Care,CAREFIRST DIRECT PAYMENTS     ,
SHEFFIELD CITY COUNCIL        ,COMMUNITIES                   ,44001,PURCHASING                    ,9190,DIRECT PAYMENTS               ,07/07/2015,J1202380                 ,300.00,REDACTED PERSONAL DATA,Social Community Care,CAREFIRST DIRECT PAYMENTS     ,
SHEFFIELD CITY COUNCIL        ,COMMUNITIES                   ,46039,ADULT SOCIAL CARE PURCHASING  ,9250,INDEPENDENT DAY CARE          ,07/07/2015,SB1506                   ,576.00,ORCHARD CARE RESIDENTIAL HOME           ,,NURSING HOMES                 ,
SHEFFIELD CITY COUNCIL        ,COMMUNITIES                   ,42034,PURCHASING LEARNING DISABILITI,9250,INDEPENDENT DAY CARE          ,07/07/2015,7103,480.00,ENABLE (SHEFFIELD)                      ,,CHARITIES & VOLUNTARY ORGANISA,
SHEFFIELD CITY COUNCIL        ,COMMUNITIES                   ,42034,PURCHASING LEARNING DISABILITI,9250,INDEPENDENT DAY CARE          ,07/07/2015,3813,"1,440.00",PACES SHEFFIELD                         ,,SCHOOLS - SPECIAL             ,
SHEFFIELD CITY COUNCIL        ,COMMUNITIES                   ,42034,PURCHASING LEARNING DISABILITI,9250,INDEPENDENT DAY CARE          ,07/07/2015,3820,280.00,SHEFFIELD MENCAP                        ,,SOCIAL SERVICES               ,
SHEFFIELD CITY COUNCIL        ,COMMUNITIES                   ,42034,PURCHASING LEARNING DISABILITI,9190,FUNDED HOME SUPPORT           ,07/07/2015,692,"5,808.08",THE ADSETTS PARTNERSHIP C/O AUTISM PLUS ,,CHARITIES & VOLUNTARY ORGANISA,
SHEFFIELD CITY COUNCIL        ,COMMUNITIES                   ,42034,PURCHASING LEARNING DISABILITI,9190,CITYWIDE SPOT                 ,07/07/2015,692,"5,444.92",THE ADSETTS PARTNERSHIP C/O AUTISM PLUS ,,CHARITIES & VOLUNTARY ORGANISA,
SHEFFIELD CITY COUNCIL        ,COMMUNITIES                   ,42034,PURCHASING LEARNING DISABILITI,9190,CITYWIDE SPOT                 ,07/07/2015,280716,"1,825.16",UNITED RESPONSE                         ,,CHARITIES & VOLUNTARY ORGANISA,
SHEFFIELD CITY COUNCIL        ,COMMUNITIES                   ,42034,PURCHASING LEARNING DISABILITI,9190,CITYWIDE SPOT                 ,07/07/2015,292676,"3,038.52",H F TRUST LIMITED                       ,,CHARITIES & VOLUNTARY ORGANISA,
SHEFFIELD CITY COUNCIL        ,COMMUNITIES                   ,42034,PURCHASING LEARNING DISABILITI,9190,CITYWIDE SPOT                 ,07/07/2015,292677,590.00,H F TRUST LIMITED                       ,,CHARITIES & VOLUNTARY ORGANISA,
SHEFFIELD CITY COUNCIL        ,COMMUNITIES                   ,42034,PURCHASING LEARNING DISABILITI,9190,CITYWIDE SPOT                 ,07/07/2015,293149,"2,800.04",H F TRUST LIMITED                       ,,CHARITIES & VOLUNTARY ORGANISA,
SHEFFIELD CITY COUNCIL        ,COMMUNITIES                   ,42034,PURCHASING LEARNING DISABILITI,9190,CITYWIDE SPOT                 ,07/07/2015,293150,"4,425.24",H F TRUST LIMITED                       ,,CHARITIES & VOLUNTARY ORGANISA,
SHEFFIELD CITY COUNCIL        ,COMMUNITIES                   ,42034,PURCHASING LEARNING DISABILITI,9190,CITYWIDE SPOT                 ,07/07/2015,293151,"1,118.52",H F TRUST LIMITED                       ,,CHARITIES & VOLUNTARY ORGANISA,
SHEFFIELD CITY COUNCIL        ,COMMUNITIES                   ,42034,PURCHASING LEARNING DISABILITI,9190,CITYWIDE SPOT                 ,07/07/2015,293152,442.52,H F TRUST LIMITED                       ,,CHARITIES & VOLUNTARY ORGANISA,
SHEFFIELD CITY COUNCIL        ,COMMUNITIES                   ,46039,ADULT SOCIAL CARE PURCHASING  ,9190,CITYWIDE SPOT                 ,07/07/2015,293153,406.00,H F TRUST LIMITED                       ,,CHARITIES & VOLUNTARY ORGANISA,
SHEFFIELD CITY COUNCIL        ,COMMUNITIES                   ,42034,PURCHASING LEARNING DISABILITI,9190,CITYWIDE SPOT                 ,07/07/2015,293154,"1,645.48",H F TRUST LIMITED                       ,,CHARITIES & VOLUNTARY ORGANISA,
SHEFFIELD CITY COUNCIL        ,COMMUNITIES                   ,42034,PURCHASING LEARNING DISABILITI,9190,CITYWIDE SPOT                 ,07/07/2015,293156,850.76,H F TRUST LIMITED                       ,,CHARITIES & VOLUNTARY ORGANISA,
SHEFFIELD CITY COUNCIL        ,COMMUNITIES                   ,42034,PURCHASING LEARNING DISABILITI,9190,CITYWIDE SPOT                 ,07/07/2015,293157,"1,686.72",H F TRUST LIMITED                       ,,CHARITIES & VOLUNTARY ORGANISA,
SHEFFIELD CITY COUNCIL        ,COMMUNITIES                   ,42034,PURCHASING LEARNING DISABILITI,9190,CITYWIDE SPOT                 ,07/07/2015,293158,"2,299.96",H F TRUST LIMITED                       ,,CHARITIES & VOLUNTARY ORGANISA,
SHEFFIELD CITY COUNCIL        ,COMMUNITIES                   ,42034,PURCHASING LEARNING DISABILITI,9190,CITYWIDE SPOT                 ,07/07/2015,293159,"1,686.72",H F TRUST LIMITED                       ,,CHARITIES & VOLUNTARY ORGANISA,
SHEFFIELD CITY COUNCIL        ,COMMUNITIES                   ,42034,PURCHASING LEARNING DISABILITI,9190,CITYWIDE SPOT                 ,07/07/2015,293160,"1,472.52",H F TRUST LIMITED                       ,,CHARITIES & VOLUNTARY ORGANISA,
SHEFFIELD CITY COUNCIL        ,COMMUNITIES                   ,42034,PURCHASING LEARNING DISABILITI,9190,CITYWIDE SPOT                 ,07/07/2015,293161,"1,686.72",H F TRUST LIMITED                       ,,CHARITIES & VOLUNTARY ORGANISA,
SHEFFIELD CITY COUNCIL        ,COMMUNITIES                   ,42034,PURCHASING LEARNING DISABILITI,9190,CITYWIDE SPOT                 ,07/07/2015,293162,"2,749.40",H F TRUST LIMITED                       ,,CHARITIES & VOLUNTARY ORGANISA,
SHEFFIELD CITY COUNCIL        ,COMMUNITIES                   ,42034,PURCHASING LEARNING DISABILITI,9190,CITYWIDE SPOT                 ,07/07/2015,293164,"1,686.72",H F TRUST LIMITED                       ,,CHARITIES & VOLUNTARY ORGANISA,
SHEFFIELD CITY COUNCIL        ,COMMUNITIES                   ,42034,PURCHASING LEARNING DISABILITI,9190,CITYWIDE SPOT                 ,07/07/2015,293165,"1,686.72",H F TRUST LIMITED                       ,,CHARITIES & VOLUNTARY ORGANISA,
SHEFFIELD CITY COUNCIL        ,COMMUNITIES                   ,42034,PURCHASING LEARNING DISABILITI,9190,CITYWIDE SPOT                 ,07/07/2015,293166,"1,413.52",H F TRUST LIMITED                       ,,CHARITIES & VOLUNTARY ORGANISA,
SHEFFIELD CITY COUNCIL        ,COMMUNITIES                   ,46039,ADULT SOCIAL CARE PURCHASING  ,9190,FUNDED HOME SUPPORT           ,07/07/2015,293167,894.84,H F TRUST LIMITED                       ,,CHARITIES & VOLUNTARY ORGANISA,
SHEFFIELD CITY COUNCIL        ,COMMUNITIES                   ,46039,ADULT SOCIAL CARE PURCHASING  ,9190,CITYWIDE SPOT                 ,07/07/2015,293167,615.56,H F TRUST LIMITED                       ,,CHARITIES & VOLUNTARY ORGANISA,
SHEFFIELD CITY COUNCIL        ,COMMUNITIES                   ,42034,PURCHASING LEARNING DISABILITI,9190,CITYWIDE SPOT                 ,07/07/2015,293168,334.52,H F TRUST LIMITED                       ,,CHARITIES & VOLUNTARY ORGANISA,
SHEFFIELD CITY COUNCIL        ,COMMUNITIES                   ,42034,PURCHASING LEARNING DISABILITI,9190,CITYWIDE SPOT                 ,07/07/2015,293169,"1,312.76",H F TRUST LIMITED                       ,,CHARITIES & VOLUNTARY ORGANISA,
SHEFFIELD CITY COUNCIL        ,COMMUNITIES                   ,42034,PURCHASING LEARNING DISABILITI,9190,FUNDED HOME SUPPORT           ,07/07/2015,293170,"1,030.00",H F TRUST LIMITED                       ,,CHARITIES & VOLUNTARY ORGANISA,
SHEFFIELD CITY COUNCIL        ,COMMUNITIES                   ,42034,PURCHASING LEARNING DISABILITI,9190,CITYWIDE SPOT                 ,07/07/2015,293170,"1,268.52",H F TRUST LIMITED                       ,,CHARITIES & VOLUNTARY ORGANISA,
SHEFFIELD CITY COUNCIL        ,COMMUNITIES                   ,42034,PURCHASING LEARNING DISABILITI,9190,CITYWIDE SPOT                 ,07/07/2015,293171,993.16,H F TRUST LIMITED                       ,,CHARITIES & VOLUNTARY ORGANISA,
SHEFFIELD CITY COUNCIL        ,COMMUNITIES                   ,42034,PURCHASING LEARNING DISABILITI,9190,CITYWIDE SPOT                 ,07/07/2015,293172,"1,947.00",H F TRUST LIMITED                       ,,CHARITIES & VOLUNTARY ORGANISA,
SHEFFIELD CITY COUNCIL        ,COMMUNITIES                   ,42034,PURCHASING LEARNING DISABILITI,9240,FUNDED NURSING CARE (IN       ,07/07/2015,293173,"1,445.52",H F TRUST LIMITED                       ,,CHARITIES & VOLUNTARY ORGANISA,
SHEFFIELD CITY COUNCIL        ,COMMUNITIES                   ,42034,PURCHASING LEARNING DISABILITI,9240,SUPPORTED LIVING CARE         ,07/07/2015,293173,"4,522.48",H F TRUST LIMITED                       ,,CHARITIES & VOLUNTARY ORGANISA,
SHEFFIELD CITY COUNCIL        ,COMMUNITIES                   ,42034,PURCHASING LEARNING DISABILITI,9190,CITYWIDE SPOT                 ,07/07/2015,293174,"1,467.52",H F TRUST LIMITED                       ,,CHARITIES & VOLUNTARY ORGANISA,
SHEFFIELD CITY COUNCIL        ,COMMUNITIES                   ,42034,PURCHASING LEARNING DISABILITI,9190,CITYWIDE SPOT                 ,07/07/2015,293175,696.00,H F TRUST LIMITED                       ,,CHARITIES & VOLUNTARY ORGANISA,
SHEFFIELD CITY COUNCIL        ,COMMUNITIES                   ,42034,PURCHASING LEARNING DISABILITI,9190,CITYWIDE SPOT                 ,07/07/2015,293644,944.00,H F TRUST LIMITED                       ,,CHARITIES & VOLUNTARY ORGANISA,
SHEFFIELD CITY COUNCIL        ,COMMUNITIES                   ,42034,PURCHASING LEARNING DISABILITI,9190,CITYWIDE SPOT                 ,07/07/2015,294531,"1,418.88",H F TRUST LIMITED                       ,,CHARITIES & VOLUNTARY ORGANISA,
SHEFFIELD CITY COUNCIL        ,COMMUNITIES                   ,42034,PURCHASING LEARNING DISABILITI,9190,CITYWIDE SPOT                 ,07/07/2015,294532,"1,216.44",H F TRUST LIMITED                       ,,CHARITIES & VOLUNTARY ORGANISA,
SHEFFIELD CITY COUNCIL        ,COMMUNITIES                   ,42034,PURCHASING LEARNING DISABILITI,9250,INDEPENDENT DAY CARE          ,07/07/2015,3822,440.00,SHEFFIELD MENCAP                        ,,SOCIAL SERVICES               ,
SHEFFIELD CITY COUNCIL        ,COMMUNITIES                   ,42034,PURCHASING LEARNING DISABILITI,9250,INDEPENDENT DAY CARE          ,07/07/2015,3823,345.00,SHEFFIELD MENCAP                        ,,SOCIAL SERVICES               ,
SHEFFIELD CITY COUNCIL        ,CYPF                          ,39284,INDEPENDENT FOSTERING PLACEMEN,9270,INDEPENDENT FOSTERING         ,07/07/2015,630160057,"1,764.00",REDACTED PERSONAL DATA,,ADOPTION & FOSTERING          ,
SHEFFIELD CITY COUNCIL        ,CYPF                          ,39405,LEAVING CARE                  ,9270,INDEPENDENT FOSTERING         ,07/07/2015,630160060,"3,532.19",REDACTED PERSONAL DATA,,ADOPTION & FOSTERING          ,
SHEFFIELD CITY COUNCIL        ,CYPF                          ,39284,INDEPENDENT FOSTERING PLACEMEN,9270,INDEPENDENT FOSTERING         ,07/07/2015,630160061,"3,604.25",REDACTED PERSONAL DATA,,ADOPTION & FOSTERING          ,
SHEFFIELD CITY COUNCIL        ,CYPF                          ,39284,INDEPENDENT FOSTERING PLACEMEN,9270,INDEPENDENT FOSTERING         ,07/07/2015,630160062,"4,692.52",REDACTED PERSONAL DATA,,ADOPTION & FOSTERING          ,
SHEFFIELD CITY COUNCIL        ,CYPF                          ,39284,INDEPENDENT FOSTERING PLACEMEN,9270,INDEPENDENT FOSTERING         ,07/07/2015,630160064,"5,160.40",REDACTED PERSONAL DATA,,ADOPTION & FOSTERING          ,
SHEFFIELD CITY COUNCIL        ,CYPF                          ,39284,INDEPENDENT FOSTERING PLACEMEN,9270,INDEPENDENT FOSTERING         ,07/07/2015,630160065,"5,868.80",REDACTED PERSONAL DATA,,ADOPTION & FOSTERING          ,
SHEFFIELD CITY COUNCIL        ,CYPF                          ,39405,LEAVING CARE                  ,9270,INDEPENDENT FOSTERING         ,07/07/2015,630160066,"3,604.25",REDACTED PERSONAL DATA,,ADOPTION & FOSTERING          ,
SHEFFIELD CITY COUNCIL        ,CYPF                          ,39284,INDEPENDENT FOSTERING PLACEMEN,9270,INDEPENDENT FOSTERING         ,07/07/2015,147241,"2,773.12",REDACTED PERSONAL DATA,,ADOPTION & FOSTERING          ,
SHEFFIELD CITY COUNCIL        ,CYPF                          ,39284,INDEPENDENT FOSTERING PLACEMEN,9270,INDEPENDENT FOSTERING         ,07/07/2015,630160068,"3,304.00",REDACTED PERSONAL DATA,,ADOPTION & FOSTERING          ,
SHEFFIELD CITY COUNCIL        ,CYPF                          ,39405,LEAVING CARE                  ,9270,INDEPENDENT FOSTERING         ,07/07/2015,630160069,"3,304.00",REDACTED PERSONAL DATA,,ADOPTION & FOSTERING          ,
SHEFFIELD CITY COUNCIL        ,CYPF                          ,39284,INDEPENDENT FOSTERING PLACEMEN,9270,INDEPENDENT FOSTERING         ,07/07/2015,630160075,"4,423.72",REDACTED PERSONAL DATA,,ADOPTION & FOSTERING          ,
SHEFFIELD CITY COUNCIL        ,CYPF                          ,39284,INDEPENDENT FOSTERING PLACEMEN,9270,INDEPENDENT FOSTERING         ,07/07/2015,630160076,"3,604.25",REDACTED PERSONAL DATA,,ADOPTION & FOSTERING          ,
SHEFFIELD CITY COUNCIL        ,CYPF                          ,39284,INDEPENDENT FOSTERING PLACEMEN,9270,INDEPENDENT FOSTERING         ,07/07/2015,630160109,"3,604.25",REDACTED PERSONAL DATA,,ADOPTION & FOSTERING          ,
SHEFFIELD CITY COUNCIL        ,CYPF                          ,39284,INDEPENDENT FOSTERING PLACEMEN,9270,INDEPENDENT FOSTERING         ,07/07/2015,630160110,"3,304.00",REDACTED PERSONAL DATA,,ADOPTION & FOSTERING          ,
SHEFFIELD CITY COUNCIL        ,CYPF                          ,39284,INDEPENDENT FOSTERING PLACEMEN,9270,INDEPENDENT FOSTERING         ,07/07/2015,630160117,"3,604.25",REDACTED PERSONAL DATA,,ADOPTION & FOSTERING          ,
SHEFFIELD CITY COUNCIL        ,CYPF                          ,39284,INDEPENDENT FOSTERING PLACEMEN,9270,INDEPENDENT FOSTERING         ,07/07/2015,630160120,"3,604.25",REDACTED PERSONAL DATA,,ADOPTION & FOSTERING          ,
SHEFFIELD CITY COUNCIL        ,CYPF                          ,39284,INDEPENDENT FOSTERING PLACEMEN,9270,INDEPENDENT FOSTERING         ,07/07/2015,630160150,"3,001.18",REDACTED PERSONAL DATA,,ADOPTION & FOSTERING          ,
SHEFFIELD CITY COUNCIL        ,CYPF                          ,39284,INDEPENDENT FOSTERING PLACEMEN,9270,INDEPENDENT FOSTERING         ,07/07/2015,630160158,"5,868.80",REDACTED PERSONAL DATA,,ADOPTION & FOSTERING          ,
SHEFFIELD CITY COUNCIL        ,CYPF                          ,39284,INDEPENDENT FOSTERING PLACEMEN,9270,INDEPENDENT FOSTERING         ,07/07/2015,630160159,"3,604.25",REDACTED PERSONAL DATA,,ADOPTION & FOSTERING          ,
SHEFFIELD CITY COUNCIL        ,CYPF                          ,39405,LEAVING CARE                  ,9270,INDEPENDENT FOSTERING         ,07/07/2015,630160177,"3,411.80",REDACTED PERSONAL DATA,,ADOPTION & FOSTERING          ,
SHEFFIELD CITY COUNCIL        ,CYPF                          ,39284,INDEPENDENT FOSTERING PLACEMEN,9270,INDEPENDENT FOSTERING         ,07/07/2015,630160193,"3,199.84",REDACTED PERSONAL DATA,,ADOPTION & FOSTERING          ,
SHEFFIELD CITY COUNCIL        ,CYPF                          ,39284,INDEPENDENT FOSTERING PLACEMEN,9270,INDEPENDENT FOSTERING         ,07/07/2015,630160197,"3,676.29",REDACTED PERSONAL DATA,,ADOPTION & FOSTERING          ,
SHEFFIELD CITY COUNCIL        ,CYPF                          ,39284,INDEPENDENT FOSTERING PLACEMEN,9270,INDEPENDENT FOSTERING         ,07/07/2015,630160253,"4,751.88",REDACTED PERSONAL DATA,,ADOPTION & FOSTERING          ,
SHEFFIELD CITY COUNCIL        ,CYPF                          ,39284,INDEPENDENT FOSTERING PLACEMEN,9270,INDEPENDENT FOSTERING         ,07/07/2015,630160265,"3,676.29",REDACTED PERSONAL DATA,,ADOPTION & FOSTERING          ,
SHEFFIELD CITY COUNCIL        ,CYPF                          ,39284,INDEPENDENT FOSTERING PLACEMEN,9270,INDEPENDENT FOSTERING         ,07/07/2015,630160266,"2,970.24",REDACTED PERSONAL DATA,,ADOPTION & FOSTERING          ,
SHEFFIELD CITY COUNCIL        ,CYPF                          ,39284,INDEPENDENT FOSTERING PLACEMEN,9270,INDEPENDENT FOSTERING         ,07/07/2015,147295,"3,210.48",REDACTED PERSONAL DATA,,ADOPTION & FOSTERING          ,
SHEFFIELD CITY COUNCIL        ,CYPF                          ,39284,INDEPENDENT FOSTERING PLACEMEN,9270,INDEPENDENT FOSTERING         ,07/07/2015,630160368,"3,676.29",REDACTED PERSONAL DATA,,ADOPTION & FOSTERING          ,
SHEFFIELD CITY COUNCIL        ,CYPF                          ,39284,INDEPENDENT FOSTERING PLACEMEN,9270,INDEPENDENT FOSTERING         ,07/07/2015,630160405,"3,178.00",REDACTED PERSONAL DATA,,ADOPTION & FOSTERING          ,
SHEFFIELD CITY COUNCIL        ,CYPF                          ,39284,INDEPENDENT FOSTERING PLACEMEN,9270,INDEPENDENT FOSTERING         ,07/07/2015,630160432,"3,604.25",REDACTED PERSONAL DATA,,ADOPTION & FOSTERING          ,
SHEFFIELD CITY COUNCIL        ,CYPF                          ,39284,INDEPENDENT FOSTERING PLACEMEN,9270,INDEPENDENT FOSTERING         ,07/07/2015,630160518,"3,178.00",REDACTED PERSONAL DATA,,ADOPTION & FOSTERING          ,
SHEFFIELD CITY COUNCIL        ,CYPF                          ,39284,INDEPENDENT FOSTERING PLACEMEN,9270,INDEPENDENT FOSTERING         ,07/07/2015,630160521,"2,968.00",REDACTED PERSONAL DATA,,ADOPTION & FOSTERING          ,
SHEFFIELD CITY COUNCIL        ,CYPF                          ,39284,INDEPENDENT FOSTERING PLACEMEN,9270,INDEPENDENT FOSTERING         ,07/07/2015,630160528,"3,082.66",REDACTED PERSONAL DATA,,ADOPTION & FOSTERING          ,
SHEFFIELD CITY COUNCIL        ,CYPF                          ,39284,INDEPENDENT FOSTERING PLACEMEN,9270,INDEPENDENT FOSTERING         ,07/07/2015,630160529,"3,082.66",REDACTED PERSONAL DATA,,ADOPTION & FOSTERING          ,
SHEFFIELD CITY COUNCIL        ,CYPF                          ,39284,INDEPENDENT FOSTERING PLACEMEN,9270,INDEPENDENT FOSTERING         ,07/07/2015,630160552,"3,178.00",REDACTED PERSONAL DATA,,ADOPTION & FOSTERING          ,
SHEFFIELD CITY COUNCIL        ,CYPF                          ,39284,INDEPENDENT FOSTERING PLACEMEN,9270,INDEPENDENT FOSTERING         ,07/07/2015,630160562,"3,676.29",REDACTED PERSONAL DATA,,ADOPTION & FOSTERING          ,
SHEFFIELD CITY COUNCIL        ,CYPF                          ,39284,INDEPENDENT FOSTERING PLACEMEN,9270,INDEPENDENT FOSTERING         ,07/07/2015,630160599,454.00,REDACTED PERSONAL DATA,,ADOPTION & FOSTERING          ,
SHEFFIELD CITY COUNCIL        ,CYPF                          ,39284,INDEPENDENT FOSTERING PLACEMEN,9270,INDEPENDENT FOSTERING         ,07/07/2015,630161124,"3,676.40",REDACTED PERSONAL DATA,,ADOPTION & FOSTERING          ,
SHEFFIELD CITY COUNCIL        ,CYPF                          ,39284,INDEPENDENT FOSTERING PLACEMEN,9270,INDEPENDENT FOSTERING         ,07/07/2015,NFA137061                ,"3,060.12",REDACTED PERSONAL DATA,,ADOPTION & FOSTERING          ,
SHEFFIELD CITY COUNCIL        ,CYPF                          ,39284,INDEPENDENT FOSTERING PLACEMEN,9270,INDEPENDENT FOSTERING         ,07/07/2015,NFA137062                ,"2,966.04",REDACTED PERSONAL DATA,,ADOPTION & FOSTERING          ,
SHEFFIELD CITY COUNCIL        ,CYPF                          ,39284,INDEPENDENT FOSTERING PLACEMEN,9270,INDEPENDENT FOSTERING         ,07/07/2015,NFA137063                ,"2,791.60",REDACTED PERSONAL DATA,,ADOPTION & FOSTERING          ,
SHEFFIELD CITY COUNCIL        ,CYPF                          ,39284,INDEPENDENT FOSTERING PLACEMEN,9270,INDEPENDENT FOSTERING         ,07/07/2015,NFA137064                ,"2,966.04",REDACTED PERSONAL DATA,,ADOPTION & FOSTERING          ,
SHEFFIELD CITY COUNCIL        ,CYPF                          ,39284,INDEPENDENT FOSTERING PLACEMEN,9270,INDEPENDENT FOSTERING         ,07/07/2015,NFA137065                ,"2,940.00",REDACTED PERSONAL DATA,,ADOPTION & FOSTERING          ,
SHEFFIELD CITY COUNCIL        ,CYPF                          ,39405,LEAVING CARE                  ,9270,INDEPENDENT FOSTERING         ,07/07/2015,NFA137066                ,"3,120.04",REDACTED PERSONAL DATA,,ADOPTION & FOSTERING          ,
SHEFFIELD CITY COUNCIL        ,CYPF                          ,39284,INDEPENDENT FOSTERING PLACEMEN,9270,INDEPENDENT FOSTERING         ,07/07/2015,NFA137067                ,"3,120.04",REDACTED PERSONAL DATA,,ADOPTION & FOSTERING          ,
SHEFFIELD CITY COUNCIL        ,CYPF                          ,39284,INDEPENDENT FOSTERING PLACEMEN,9270,INDEPENDENT FOSTERING         ,07/07/2015,NFA137068                ,"2,791.60",REDACTED PERSONAL DATA,,ADOPTION & FOSTERING          ,
SHEFFIELD CITY COUNCIL        ,CYPF                          ,39284,INDEPENDENT FOSTERING PLACEMEN,9270,INDEPENDENT FOSTERING         ,07/07/2015,NFA137069                ,"2,940.00",REDACTED PERSONAL DATA,,ADOPTION & FOSTERING          ,
SHEFFIELD CITY COUNCIL        ,CYPF                          ,39405,LEAVING CARE                  ,9270,INDEPENDENT FOSTERING         ,07/07/2015,165904,874.02,REDACTED PERSONAL DATA,,ADOPTION & FOSTERING          ,
SHEFFIELD CITY COUNCIL        ,CYPF                          ,39284,INDEPENDENT FOSTERING PLACEMEN,9270,INDEPENDENT FOSTERING         ,07/07/2015,165905,829.99,REDACTED PERSONAL DATA,,ADOPTION & FOSTERING          ,
SHEFFIELD CITY COUNCIL        ,CYPF                          ,39284,INDEPENDENT FOSTERING PLACEMEN,9270,INDEPENDENT FOSTERING         ,07/07/2015,22566,"3,084.20",REDACTED PERSONAL DATA,,ADOPTION & FOSTERING          ,
SHEFFIELD CITY COUNCIL        ,CYPF                          ,39284,INDEPENDENT FOSTERING PLACEMEN,9270,INDEPENDENT FOSTERING         ,07/07/2015,23016,"3,014.76",REDACTED PERSONAL DATA,,ADOPTION & FOSTERING          ,
SHEFFIELD CITY COUNCIL        ,CYPF                          ,39284,INDEPENDENT FOSTERING PLACEMEN,9270,INDEPENDENT FOSTERING         ,07/07/2015,23017,"3,108.00",REDACTED PERSONAL DATA,,ADOPTION & FOSTERING          ,
SHEFFIELD CITY COUNCIL        ,CYPF                          ,39284,INDEPENDENT FOSTERING PLACEMEN,9270,INDEPENDENT FOSTERING         ,07/07/2015,25240,"3,060.00",REDACTED PERSONAL DATA,,ADOPTION & FOSTERING          ,
SHEFFIELD CITY COUNCIL        ,CYPF                          ,39405,LEAVING CARE                  ,9270,INDEPENDENT FOSTERING         ,07/07/2015,25241,"3,010.00",REDACTED PERSONAL DATA,,ADOPTION & FOSTERING          ,
SHEFFIELD CITY COUNCIL        ,CYPF                          ,39284,INDEPENDENT FOSTERING PLACEMEN,9270,INDEPENDENT FOSTERING         ,07/07/2015,25244,"3,060.00",REDACTED PERSONAL DATA,,ADOPTION & FOSTERING          ,
SHEFFIELD CITY COUNCIL        ,CYPF                          ,39284,INDEPENDENT FOSTERING PLACEMEN,9270,INDEPENDENT FOSTERING         ,07/07/2015,0615/16070/C             ,"3,319.96",REDACTED PERSONAL DATA,,ADOPTION & FOSTERING          ,
SHEFFIELD CITY COUNCIL        ,CYPF                          ,39405,LEAVING CARE                  ,9270,INDEPENDENT FOSTERING         ,07/07/2015,25245,"1,360.00",REDACTED PERSONAL DATA,,ADOPTION & FOSTERING          ,
SHEFFIELD CITY COUNCIL        ,CYPF                          ,39284,INDEPENDENT FOSTERING PLACEMEN,9270,INDEPENDENT FOSTERING         ,07/07/2015,25246,"3,220.00",REDACTED PERSONAL DATA,,ADOPTION & FOSTERING          ,
SHEFFIELD CITY COUNCIL        ,CYPF                          ,39284,INDEPENDENT FOSTERING PLACEMEN,9270,INDEPENDENT FOSTERING         ,07/07/2015,25247,"3,010.00",REDACTED PERSONAL DATA,,ADOPTION & FOSTERING          ,
SHEFFIELD CITY COUNCIL        ,CYPF                          ,39405,LEAVING CARE                  ,9270,INDEPENDENT FOSTERING         ,07/07/2015,25248,"3,220.00",REDACTED PERSONAL DATA,,ADOPTION & FOSTERING          ,
SHEFFIELD CITY COUNCIL        ,CYPF                          ,39284,INDEPENDENT FOSTERING PLACEMEN,9270,INDEPENDENT FOSTERING         ,07/07/2015,25249,"3,220.00",REDACTED PERSONAL DATA,,ADOPTION & FOSTERING          ,
SHEFFIELD CITY COUNCIL        ,CYPF                          ,39405,LEAVING CARE                  ,9270,INDEPENDENT FOSTERING         ,07/07/2015,25251,"3,220.00",REDACTED PERSONAL DATA,,ADOPTION & FOSTERING          ,
SHEFFIELD CITY COUNCIL        ,CYPF                          ,39284,INDEPENDENT FOSTERING PLACEMEN,9270,INDEPENDENT FOSTERING         ,07/07/2015,25252,"3,220.00",REDACTED PERSONAL DATA,,ADOPTION & FOSTERING          ,
SHEFFIELD CITY COUNCIL        ,CYPF                          ,39284,INDEPENDENT FOSTERING PLACEMEN,9270,INDEPENDENT FOSTERING         ,07/07/2015,25253,"3,010.00",REDACTED PERSONAL DATA,,ADOPTION & FOSTERING          ,
SHEFFIELD CITY COUNCIL        ,CYPF                          ,39284,INDEPENDENT FOSTERING PLACEMEN,9270,INDEPENDENT FOSTERING         ,07/07/2015,25254,"3,060.00",REDACTED PERSONAL DATA,,ADOPTION & FOSTERING          ,
SHEFFIELD CITY COUNCIL        ,CYPF                          ,39284,INDEPENDENT FOSTERING PLACEMEN,9270,INDEPENDENT FOSTERING         ,07/07/2015,0615/9335/CR             ,"3,703.00",REDACTED PERSONAL DATA,,ADOPTION & FOSTERING          ,
SHEFFIELD CITY COUNCIL        ,CYPF                          ,39405,LEAVING CARE                  ,9270,INDEPENDENT FOSTERING         ,07/07/2015,25255,"3,060.00",REDACTED PERSONAL DATA,,ADOPTION & FOSTERING          ,
SHEFFIELD CITY COUNCIL        ,CYPF                          ,39405,LEAVING CARE                  ,9270,INDEPENDENT FOSTERING         ,07/07/2015,25256,"3,060.00",REDACTED PERSONAL DATA,,ADOPTION & FOSTERING          ,
SHEFFIELD CITY COUNCIL        ,CYPF                          ,39405,LEAVING CARE                  ,9270,INDEPENDENT FOSTERING         ,07/07/2015,25258,"3,010.00",REDACTED PERSONAL DATA,,ADOPTION & FOSTERING          ,
SHEFFIELD CITY COUNCIL        ,CYPF                          ,39284,INDEPENDENT FOSTERING PLACEMEN,9270,INDEPENDENT FOSTERING         ,07/07/2015,25261,"3,010.00",REDACTED PERSONAL DATA,,ADOPTION & FOSTERING          ,
SHEFFIELD CITY COUNCIL        ,CYPF                          ,39284,INDEPENDENT FOSTERING PLACEMEN,9270,INDEPENDENT FOSTERING         ,07/07/2015,25262,"3,010.00",REDACTED PERSONAL DATA,,ADOPTION & FOSTERING          ,
SHEFFIELD CITY COUNCIL        ,CYPF                          ,39284,INDEPENDENT FOSTERING PLACEMEN,9270,INDEPENDENT FOSTERING         ,07/07/2015,25263,"3,682.96",REDACTED PERSONAL DATA,,ADOPTION & FOSTERING          ,
SHEFFIELD CITY COUNCIL        ,CYPF                          ,39405,LEAVING CARE                  ,9270,INDEPENDENT FOSTERING         ,07/07/2015,25264,"3,060.00",REDACTED PERSONAL DATA,,ADOPTION & FOSTERING          ,
SHEFFIELD CITY COUNCIL        ,CYPF                          ,39405,LEAVING CARE                  ,9270,INDEPENDENT FOSTERING         ,07/07/2015,25265,"3,010.00",REDACTED PERSONAL DATA,,ADOPTION & FOSTERING          ,
SHEFFIELD CITY COUNCIL        ,CYPF                          ,39284,INDEPENDENT FOSTERING PLACEMEN,9270,INDEPENDENT FOSTERING         ,07/07/2015,25268,"2,150.00",REDACTED PERSONAL DATA,,ADOPTION & FOSTERING          ,
SHEFFIELD CITY COUNCIL        ,CYPF                          ,39284,INDEPENDENT FOSTERING PLACEMEN,9270,INDEPENDENT FOSTERING         ,07/07/2015,25269,"2,150.00",REDACTED PERSONAL DATA,,ADOPTION & FOSTERING          ,
SHEFFIELD CITY COUNCIL        ,CYPF                          ,39405,LEAVING CARE                  ,9270,INDEPENDENT FOSTERING         ,07/07/2015,3000887,"3,514.84",CAPSTONE FOSTER CARE (NORTH) LTD        ,,ADOPTION & FOSTERING          ,
SHEFFIELD CITY COUNCIL        ,CYPF                          ,39284,INDEPENDENT FOSTERING PLACEMEN,9270,INDEPENDENT FOSTERING         ,07/07/2015,5812,"5,570.60",REDACTED PERSONAL DATA,,ADOPTION & FOSTERING          ,
SHEFFIELD CITY COUNCIL        ,CYPF                          ,39428,INDEPENDENT RES BLOCK PLACEMEN,9270,INDEPENDENT RESIDENTIAL PMENT ,07/07/2015,611904,"9,540.00",NORTHERN LIFE CARE LTD T/A UBU          ,,RESIDENTIAL CARE HOMES        ,
SHEFFIELD CITY COUNCIL        ,CYPF                          ,39405,LEAVING CARE                  ,9270,CARELEAVERS ACCOMMODATION     ,07/07/2015,611905,"7,980.00",NORTHERN LIFE CARE LTD T/A UBU          ,,RESIDENTIAL CARE HOMES        ,
SHEFFIELD CITY COUNCIL        ,CYPF                          ,39428,INDEPENDENT RES BLOCK PLACEMEN,9270,INDEPENDENT RESIDENTIAL PMENT ,07/07/2015,611906,"7,980.00",NORTHERN LIFE CARE LTD T/A UBU          ,,RESIDENTIAL CARE HOMES        ,
SHEFFIELD CITY COUNCIL        ,CYPF                          ,39006,UASC/ASYLUM 16-17             ,9270,INDEPENDENT FOSTERING         ,07/07/2015,630160419,"3,178.00",REDACTED PERSONAL DATA,,ADOPTION & FOSTERING          ,
SHEFFIELD CITY COUNCIL        ,CYPF                          ,39006,UASC/ASYLUM 16-17             ,9270,INDEPENDENT FOSTERING         ,07/07/2015,630160554,"3,679.48",REDACTED PERSONAL DATA,,ADOPTION & FOSTERING          ,
SHEFFIELD CITY COUNCIL        ,CYPF                          ,39405,LEAVING CARE                  ,9270,CARELEAVERS ACCOMMODATION     ,07/07/2015,8687,"3,800.00",HUTTON CARE PARTNERSHIP LTD             ,,SHELTERED HOUSING             ,
SHEFFIELD CITY COUNCIL        ,CYPF                          ,39405,LEAVING CARE                  ,9270,CARELEAVERS ACCOMMODATION     ,07/07/2015,8688,"3,800.00",HUTTON CARE PARTNERSHIP LTD             ,,SHELTERED HOUSING             ,
SHEFFIELD CITY COUNCIL        ,CYPF                          ,39405,LEAVING CARE                  ,9270,CARELEAVERS ACCOMMODATION     ,07/07/2015,8689,"3,800.00",HUTTON CARE PARTNERSHIP LTD             ,,SHELTERED HOUSING             ,
SHEFFIELD CITY COUNCIL        ,CYPF                          ,39405,LEAVING CARE                  ,9270,CARELEAVERS ACCOMMODATION     ,07/07/2015,8691,"3,800.00",HUTTON CARE PARTNERSHIP LTD             ,,SHELTERED HOUSING             ,
SHEFFIELD CITY COUNCIL        ,CYPF                          ,39006,UASC/ASYLUM 16-17             ,9270,INDEPENDENT FOSTERING         ,07/07/2015,25250,"3,010.00",REDACTED PERSONAL DATA,,ADOPTION & FOSTERING          ,
SHEFFIELD CITY COUNCIL        ,CYPF                          ,39006,UASC/ASYLUM 16-17             ,9270,INDEPENDENT FOSTERING         ,07/07/2015,25259,"3,010.00",REDACTED PERSONAL DATA,,ADOPTION & FOSTERING          ,
SHEFFIELD CITY COUNCIL        ,CYPF                          ,39006,UASC/ASYLUM 16-17             ,9270,INDEPENDENT FOSTERING         ,07/07/2015,25267,"3,010.00",REDACTED PERSONAL DATA,,ADOPTION & FOSTERING          ,
SHEFFIELD CITY COUNCIL        ,CYPF                          ,39405,LEAVING CARE                  ,9270,CARELEAVERS ACCOMMODATION     ,07/07/2015,3073,595.00,EARL MARSHALL GUEST HOUSE LTD           ,,GUEST HOUSES                  ,
SHEFFIELD CITY COUNCIL        ,CYPF                          ,39405,LEAVING CARE                  ,9270,CARELEAVERS ACCOMMODATION     ,07/07/2015,3074,320.95,EARL MARSHALL GUEST HOUSE LTD           ,,GUEST HOUSES                  ,
SHEFFIELD CITY COUNCIL        ,CYPF                          ,39405,LEAVING CARE                  ,9270,CARELEAVERS ACCOMMODATION     ,07/07/2015,3078,320.95,EARL MARSHALL GUEST HOUSE LTD           ,,GUEST HOUSES                  ,
SHEFFIELD CITY COUNCIL        ,CYPF                          ,39428,INDEPENDENT RES BLOCK PLACEMEN,9270,INDEPENDENT RESIDENTIAL PMENT ,07/07/2015,4715,"2,820.00",TWENTY FOUR SEVEN                       ,,CHARITIES & VOLUNTARY ORGANISA,
SHEFFIELD CITY COUNCIL        ,CYPF                          ,39006,UASC/ASYLUM 16-17             ,9270,INDEPENDENT RESIDENTIAL PMENT ,07/07/2015,611901,"7,980.00",NORTHERN LIFE CARE LTD T/A UBU          ,,RESIDENTIAL CARE HOMES        ,
SHEFFIELD CITY COUNCIL        ,CYPF                          ,39405,LEAVING CARE                  ,9270,CARELEAVERS ACCOMMODATION     ,07/07/2015,611902,"9,580.00",NORTHERN LIFE CARE LTD T/A UBU          ,,RESIDENTIAL CARE HOMES        ,
SHEFFIELD CITY COUNCIL        ,CYPF                          ,39428,INDEPENDENT RES BLOCK PLACEMEN,9270,INDEPENDENT RESIDENTIAL PMENT ,07/07/2015,611903,"9,580.00",NORTHERN LIFE CARE LTD T/A UBU          ,,RESIDENTIAL CARE HOMES        ,
SHEFFIELD CITY COUNCIL        ,CYPF                          ,39213,EAST SA - CIN S17             ,8490,TRANSLATN/SIGN/INTERPRET FEES ,07/07/2015,1363,"1,621.42",LANGUAGELINE SOLUTIONS                  ,,TRANSLATORS & INTERPRETERS    ,
SHEFFIELD CITY COUNCIL        ,CYPF                          ,39213,EAST SA - CIN S17             ,9270,PAYMENTS TO RELATIVES/FRIENDS ,07/07/2015,EAST/39                  ,"2,733.36",REDACTED PERSONAL DATA,Unclassified Non Trade,OUT OF SCOPE FOR SIC MONITORIN,
SHEFFIELD CITY COUNCIL        ,CYPF                          ,39147,PREVENTION & SUPPORT - CDT    ,8490,TRANSLATN/SIGN/INTERPRET FEES ,07/07/2015,1339,927.60,LANGUAGELINE SOLUTIONS                  ,,TRANSLATORS & INTERPRETERS    ,
SHEFFIELD CITY COUNCIL        ,CYPF                          ,39238,WEST SA - CIN S17             ,8490,TRANSLATN/SIGN/INTERPRET FEES ,07/07/2015,1352,585.00,LANGUAGELINE SOLUTIONS                  ,,TRANSLATORS & INTERPRETERS    ,
SHEFFIELD CITY COUNCIL        ,COMMUNITIES                   ,49672,CONTRACT PAYMENTS � DRUGS     ,9030,HEALTH                        ,07/07/2015,MPA20150707213 1         ,699.20,ASDA PHARMACY - ADSA STORES LTD         ,,PUBLIC HEALTH SUPPLIERS       ,
SHEFFIELD CITY COUNCIL        ,COMMUNITIES                   ,49672,CONTRACT PAYMENTS � DRUGS     ,9030,HEALTH                        ,07/07/2015,MPA20150707213 14        ,593.60,GLEADLESS VALLEY PHARMACY LTD           ,,PUBLIC HEALTH SUPPLIERS       ,
SHEFFIELD CITY COUNCIL        ,COMMUNITIES                   ,49672,CONTRACT PAYMENTS � DRUGS     ,9030,HEALTH                        ,07/07/2015,MPA20150707213 17        ,489.60,LLOYDSPHARMACY (346)                    ,,PUBLIC HEALTH SUPPLIERS       ,
SHEFFIELD CITY COUNCIL        ,COMMUNITIES                   ,49672,CONTRACT PAYMENTS � DRUGS     ,9030,HEALTH                        ,07/07/2015,MPA20150707213 18        ,257.60,LLOYDSPHARMACY(6286)                    ,,PUBLIC HEALTH SUPPLIERS       ,
SHEFFIELD CITY COUNCIL        ,COMMUNITIES                   ,49672,CONTRACT PAYMENTS � DRUGS     ,9030,HEALTH                        ,07/07/2015,MPA20150707213 21        ,424.00,LLOYDSPHARMACY                          ,,PUBLIC HEALTH SUPPLIERS       ,
SHEFFIELD CITY COUNCIL        ,COMMUNITIES                   ,49672,CONTRACT PAYMENTS � DRUGS     ,9030,HEALTH                        ,07/07/2015,MPA20150707213 23        ,330.40,LLOYDSPHARMACY (6502)                   ,,PUBLIC HEALTH SUPPLIERS       ,
SHEFFIELD CITY COUNCIL        ,COMMUNITIES                   ,49672,CONTRACT PAYMENTS � DRUGS     ,9030,HEALTH                        ,07/07/2015,MPA20150707213 28        ,409.60,LLOYDSPHARMACY (6582                    ,,PUBLIC HEALTH SUPPLIERS       ,
SHEFFIELD CITY COUNCIL        ,COMMUNITIES                   ,49672,CONTRACT PAYMENTS � DRUGS     ,9030,HEALTH                        ,07/07/2015,MPA20150707213 30        ,586.40,LLOYDSPHARMACY                          ,,PUBLIC HEALTH SUPPLIERS       ,
SHEFFIELD CITY COUNCIL        ,COMMUNITIES                   ,49672,CONTRACT PAYMENTS � DRUGS     ,9030,HEALTH                        ,07/07/2015,MPA20150707213 32        ,559.20,LLOYDSPHARMACY(0296) JORDANTHORPE       ,,PUBLIC HEALTH SUPPLIERS       ,
SHEFFIELD CITY COUNCIL        ,COMMUNITIES                   ,49672,CONTRACT PAYMENTS � DRUGS     ,9030,HEALTH                        ,07/07/2015,MPA20150707213 36        ,257.60,LO'S PHARMACY LTD                       ,,PUBLIC HEALTH SUPPLIERS       ,
SHEFFIELD CITY COUNCIL        ,COMMUNITIES                   ,49672,CONTRACT PAYMENTS � DRUGS     ,9030,HEALTH                        ,07/07/2015,MPA20150707213 39        ,466.40,NORFOLK PARK PHARMACY                   ,,PUBLIC HEALTH SUPPLIERS       ,
SHEFFIELD CITY COUNCIL        ,COMMUNITIES                   ,49672,CONTRACT PAYMENTS � DRUGS     ,9030,HEALTH                        ,07/07/2015,MPA20150707213 41        ,328.80,ROWLANDS PHARMACY 1270                  ,,PUBLIC HEALTH SUPPLIERS       ,
SHEFFIELD CITY COUNCIL        ,COMMUNITIES                   ,49672,CONTRACT PAYMENTS � DRUGS     ,9030,HEALTH                        ,07/07/2015,MPA20150707213 43        ,577.60,ROWLANDS PHARMACY 1263                  ,,PUBLIC HEALTH SUPPLIERS       ,
SHEFFIELD CITY COUNCIL        ,COMMUNITIES                   ,49672,CONTRACT PAYMENTS � DRUGS     ,9030,HEALTH                        ,07/07/2015,MPA20150707213 45        ,324.00,ROWLANDS PHARMACY 1274                  ,,PUBLIC HEALTH SUPPLIERS       ,
SHEFFIELD CITY COUNCIL        ,COMMUNITIES                   ,49672,CONTRACT PAYMENTS � DRUGS     ,9030,HEALTH                        ,07/07/2015,MPA20150707213 56        ,610.40,BESTWAY NATIONAL CHEMISTS LIMITED       ,,CHEMISTS' & PHARMACISTS' SUPPL,
SHEFFIELD CITY COUNCIL        ,COMMUNITIES                   ,49672,CONTRACT PAYMENTS � DRUGS     ,9030,HEALTH                        ,07/07/2015,MPA20150707213 58        ,993.60,BESTWAY NATIONAL CHEMISTS LIMITED       ,,CHEMISTS' & PHARMACISTS' SUPPL,
SHEFFIELD CITY COUNCIL        ,COMMUNITIES                   ,49672,CONTRACT PAYMENTS � DRUGS     ,9030,HEALTH                        ,07/07/2015,MPA20150707213 62        ,480.00,BESTWAY NATIONAL CHEMISTS LIMITED       ,,CHEMISTS' & PHARMACISTS' SUPPL,
SHEFFIELD CITY COUNCIL        ,COMMUNITIES                   ,49672,CONTRACT PAYMENTS � DRUGS     ,9030,HEALTH                        ,07/07/2015,MPA20150707213 64        ,"1,476.80",BESTWAY NATIONAL CHEMISTS LIMITED       ,,CHEMISTS' & PHARMACISTS' SUPPL,
SHEFFIELD CITY COUNCIL        ,COMMUNITIES                   ,49672,CONTRACT PAYMENTS � DRUGS     ,9030,HEALTH                        ,07/07/2015,MPA20150707213 68        ,821.60,MANOR COM PHARMACY LTD T/A VANTAGE PHARM,,PUBLIC HEALTH SUPPLIERS       ,
SHEFFIELD CITY COUNCIL        ,COMMUNITIES                   ,49672,CONTRACT PAYMENTS � DRUGS     ,9030,HEALTH                        ,07/07/2015,MPA20150707213 69        ,261.60,HI WELDRICK LTD  (PHARMACY)             ,,PUBLIC HEALTH SUPPLIERS       ,
SHEFFIELD CITY COUNCIL        ,COMMUNITIES                   ,49672,CONTRACT PAYMENTS � DRUGS     ,9030,HEALTH                        ,07/07/2015,MPA20150707213 73        ,306.40,HI WELDRICK LTD  (PHARMACY)             ,,PUBLIC HEALTH SUPPLIERS       ,
SHEFFIELD CITY COUNCIL        ,COMMUNITIES                   ,49672,CONTRACT PAYMENTS � DRUGS     ,9030,HEALTH                        ,07/07/2015,MPA20150707213 79        ,320.00,ASDA PHARMACY CHAPELTOWN                ,,PUBLIC HEALTH SUPPLIERS       ,
SHEFFIELD CITY COUNCIL        ,COMMUNITIES                   ,49672,CONTRACT PAYMENTS � DRUGS     ,9030,HEALTH                        ,07/07/2015,MPA20150707213 81        ,335.20,BOOTS UK LTD                            ,,PUBLIC HEALTH SUPPLIERS       ,
SHEFFIELD CITY COUNCIL        ,COMMUNITIES                   ,46039,ADULT SOCIAL CARE PURCHASING  ,4260,RESIDENTIAL COSTS RECOVERED   ,07/07/2015,J1182960 210615          ,385.67,IDEAL CAREHOMES LTD                     ,,RESIDENTIAL CARE HOMES        ,
SHEFFIELD CITY COUNCIL        ,COMMUNITIES                   ,42034,PURCHASING LEARNING DISABILITI,9200,CONTINUING RESIDENTIAL CARE   ,07/07/2015,J1186024 190715          ,"8,500.64",SPRINGFIELD HOUSE (VALEO LTD)           ,,RESIDENTIAL CARE HOMES        ,
SHEFFIELD CITY COUNCIL        ,COMMUNITIES                   ,42034,PURCHASING LEARNING DISABILITI,9200,CONTINUING RESIDENTIAL CARE   ,07/07/2015,J1186031 190715          ,"5,442.64",VALEO LTD                               ,,RESIDENTIAL CARE HOMES        ,
SHEFFIELD CITY COUNCIL        ,COMMUNITIES                   ,42034,PURCHASING LEARNING DISABILITI,9200,CONTINUING RESIDENTIAL CARE   ,07/07/2015,J1186136 190715          ,"23,062.64",LEIGHTON HOUSE (VALEO LTD)              ,,RESIDENTIAL CARE HOMES        ,
SHEFFIELD CITY COUNCIL        ,COMMUNITIES                   ,42034,PURCHASING LEARNING DISABILITI,9200,CONTINUING RESIDENTIAL CARE   ,07/07/2015,J1186216 190715          ,"6,625.92",VALEO LIMITED                           ,,RESIDENTIAL CARE HOMES        ,
